Transaction Number,Transaction date,Invoice Date,Beneficiary ID,Beneficiary Name,Purpose of Expenditure,Local Authority Department that incurred Expenditure,Amount
3424653,27/04/2018,27/03/2018,3031605,Personal detail - redacted,Service Charges to Landlords,HRA City West Homes,"1,408.00"
12103727,12/04/2018,09/04/2018,3005393,Zodiac Arts Ltd,Day Opportunities,Bi-Borough Director of Integrated Care,810
12139205,16/05/2018,01/05/2018,3005393,Zodiac Arts Ltd,Day Opportunities,Bi-Borough Director of Integrated Care,648
12168397,14/06/2018,04/06/2018,3005393,Zodiac Arts Ltd,Day Opportunities,Bi-Borough Director of Integrated Care,810
3450966,27/06/2018,31/01/2018,3015181,Whitefield School & Centre,OOB SEN Funding- Post 16 (Academies),Education,"15,313.00"
12105377,16/04/2018,12/04/2018,3000179,Personal detail - redacted,Placements,Family Services 3,677.85
3415562,27/04/2018,29/03/2018,3028068,St Francis Xavier Sixth Form College,SEN Top Up- Special & Special Units,Education,"10,509.84"
3410375,03/04/2018,02/03/2018,3007855,RSP Rail Travel Account,Section 17 Young Persons Support Allowance,Family Services 2,"6,156.80"
3422608,27/04/2018,30/03/2018,3007855,RSP Rail Travel Account,Section 17 Young Persons Support Allowance,Family Services 2,"4,413.70"
3434920,25/05/2018,27/04/2018,3007855,RSP Rail Travel Account,Section 17 Young Persons Support Allowance,Family Services 2,"4,407.50"
3441076,22/06/2018,25/05/2018,3007855,RSP Rail Travel Account,Section 17 Young Persons Support Allowance,Family Services 2,"4,473.50"
3422560,25/04/2018,16/01/2018,3000063,Groundwork London,Consultancy (Hired & Contr - Consultancy),Place Shaping,"16,440.00"
3422561,27/04/2018,16/01/2018,3000063,Groundwork London,Consultancy (Hired & Contr - Consultancy),Place Shaping,"3,890.00"
3422562,27/04/2018,16/01/2018,3000063,Groundwork London,Consultancy (Hired & Contr - Consultancy),Place Shaping,"3,890.00"
3422563,20/04/2018,12/02/2018,3000063,Groundwork London,Activities and Events,Community Services,"3,000.00"
3422564,27/04/2018,13/03/2018,3000063,Groundwork London,Consultancy (Hired & Contr - Consultancy),Place Shaping,"3,890.00"
3422565,27/04/2018,13/03/2018,3000063,Groundwork London,Consultancy (Hired & Contr - Consultancy),Place Shaping,"3,890.00"
3423498,25/04/2018,26/03/2018,3000063,Groundwork London,Fees General,Place Shaping,"16,440.00"
3432974,11/06/2018,14/05/2018,3000063,Groundwork London,Hired and Contracted Services,WAES Director (Principal),"4,940.50"
3442475,15/06/2018,01/05/2018,3003706,Danfo (Uk) Ltd,Public Coveniences,Waste and Parks,"38,420.61"
3415077,20/04/2018,20/03/2018,3002097,Priors Court Foundation,SEN Top Up- Special & Special Units,Education,"98,782.00"
3446282,26/06/2018,31/12/2016,3000115,Westminster Society,Respite Placements,Bi-Borough Director of Integrated Care,892.5
12175153,20/06/2018,20/06/2018,3000179,Personal detail - redacted,Fees,Family Services 3,729.43
3448061,26/06/2018,28/02/2017,3000115,Westminster Society,Respite Placements,Bi-Borough Director of Integrated Care,"2,176.00"
12105238,16/04/2018,31/03/2017,3000115,Westminster Society,Day Opportunities,Bi-Borough Director of Integrated Care,"2,244.00"
3409710,03/04/2018,30/06/2017,3000115,Westminster Society,Adults Residential Placements,Bi-Borough Director of Integrated Care,"14,657.93"
3446288,26/06/2018,31/05/2017,3000115,Westminster Society,Respite Placements,Bi-Borough Director of Integrated Care,"1,904.00"
3446289,26/06/2018,31/05/2017,3000115,Westminster Society,Respite Placements,Bi-Borough Director of Integrated Care,833
3446286,26/06/2018,30/04/2017,3000115,Westminster Society,Respite Placements,Bi-Borough Director of Integrated Care,"4,624.00"
3446285,26/06/2018,30/04/2017,3000115,Westminster Society,Respite Placements,Bi-Borough Director of Integrated Care,"2,023.00"
12111112,23/04/2018,31/08/2017,3000115,Westminster Society,Placements,Family Services 2,"3,179.00"
3446284,26/06/2018,31/08/2017,3000115,Westminster Society,Respite Placements,Bi-Borough Director of Integrated Care,"6,392.00"
3446283,26/06/2018,31/08/2017,3000115,Westminster Society,Respite Placements,Bi-Borough Director of Integrated Care,"3,748.50"
12095479,04/04/2018,30/09/2017,3000115,Westminster Society,Placements,Family Services 2,510
12105239,16/04/2018,30/09/2017,3000115,Westminster Society,Day Opportunities,Bi-Borough Director of Integrated Care,816
3446287,26/06/2018,31/10/2017,3000115,Westminster Society,Respite Placements,Bi-Borough Director of Integrated Care,"2,176.00"
3446290,26/06/2018,31/10/2017,3000115,Westminster Society,Respite Placements,Bi-Borough Director of Integrated Care,833
12105242,16/04/2018,31/10/2017,3000115,Westminster Society,Day Opportunities,Bi-Borough Director of Integrated Care,816
12152397,29/05/2018,31/10/2017,3000115,Westminster Society,Placements,Family Services 2,"1,071.00"
12105241,16/04/2018,30/11/2017,3000115,Westminster Society,Day Opportunities,Bi-Borough Director of Integrated Care,816
12105245,16/04/2018,31/12/2017,3000115,Westminster Society,Day Opportunities,Bi-Borough Director of Integrated Care,816
3409711,03/04/2018,31/01/2018,3000115,Westminster Society,Adults Residential Placements,Bi-Borough Director of Integrated Care,"14,798.29"
3409712,03/04/2018,31/01/2018,3000115,Westminster Society,Adults Residential Placements,Bi-Borough Director of Integrated Care,"11,797.95"
12105246,16/04/2018,31/01/2018,3000115,Westminster Society,Day Opportunities,Bi-Borough Director of Integrated Care,612
3418155,10/04/2018,31/01/2018,3000115,Westminster Society,Community Other Short Term Care,Director of Integrated Commissioning,"10,373.44"
3421344,20/04/2018,28/02/2018,3000115,Westminster Society,Hire of Rooms,Education,"1,485.00"
3410172,03/04/2018,14/03/2018,3000115,Westminster Society,Equipment Maintenance,Director of Integrated Commissioning,"69,564.00"
12101940,10/04/2018,15/02/2018,3000115,Westminster Society,Placements,Family Services 2,544
12178907,26/06/2018,15/02/2018,3000115,Westminster Society,Placements,Family Services 2,544
3421345,23/04/2018,31/03/2018,3000115,Westminster Society,Hire of Rooms,Education,"1,732.50"
3422568,24/04/2018,03/04/2018,3000115,Westminster Society,Community Other Short Term Care,Director of Integrated Commissioning,"84,070.12"
3419336,12/04/2018,31/03/2018,3000115,Westminster Society,Fees General,Bi-Borough Director of Integrated Care,"13,703.81"
3421104,17/04/2018,31/03/2018,3000115,Westminster Society,Community Other Short Term Care,Director of Integrated Commissioning,"12,377.40"
3422567,24/04/2018,16/04/2018,3000115,Westminster Society,Equipment Maintenance,Director of Integrated Commissioning,"69,564.00"
3429902,11/05/2018,31/03/2018,3000115,Westminster Society,Adults Supported Living,Bi-Borough Director of Integrated Care,"272,775.94"
3429294,11/05/2018,01/05/2018,3000115,Westminster Society,Community Other Short Term Care,Director of Integrated Commissioning,"84,070.12"
3437606,08/06/2018,01/06/2018,3000115,Westminster Society,Community Other Short Term Care,Director of Integrated Commissioning,"84,070.12"
3432598,17/05/2018,31/03/2018,3000115,Westminster Society,Element 3 - Top-up Funding,Education,"3,093.75"
3431050,15/05/2018,30/04/2018,3000115,Westminster Society,Independent Units,Director of Integrated Commissioning,"20,000.00"
3430024,16/05/2018,30/04/2018,3000115,Westminster Society,Assessment services,Education,"84,629.37"
3431051,15/05/2018,30/04/2018,3000115,Westminster Society,Hire of Rooms,Education,"1,732.50"
3443729,18/06/2018,08/06/2018,3000115,Westminster Society,Assessment services,Education,"84,629.37"
3444357,13/06/2018,31/05/2018,3000115,Westminster Society,Hire of Rooms,Education,"1,237.50"
3428686,09/05/2018,30/04/2018,3009439,Orchard & Shipman Group Plc,Temporary Accommodation,Housing Operations,"27,121.90"
3445363,14/06/2018,31/05/2018,3009439,Orchard & Shipman Group Plc,Temporary Accommodation,Housing Operations,"28,025.97"
3427023,08/05/2018,05/10/2017,3006240,EDF Energy Customers PLC,Gas (Energy),Property Investments and Estates,"25,443.24"
3419062,12/04/2018,06/11/2017,3006240,EDF Energy Customers PLC,Electricity (Energy),Property Investments and Estates,"20,039.56"
3438388,04/06/2018,03/12/2017,3006240,EDF Energy Customers PLC,Gas (Energy),Property Investments and Estates,"89,595.90"
3438389,05/06/2018,05/01/2018,3006240,EDF Energy Customers PLC,Electricity (Energy),Highways Infrastructure & Public Realm,"12,979.83"
3438390,04/06/2018,05/01/2018,3006240,EDF Energy Customers PLC,Gas (Energy),Property Investments and Estates,"40,974.72"
3387642,01/05/2018,15/01/2018,3006240,EDF Energy Customers PLC,Electricity (Energy),HRA City West Homes,"1,683.18"
3387643,01/05/2018,15/01/2018,3006240,EDF Energy Customers PLC,Electricity (Energy),HRA City West Homes,840.05
3401453,03/05/2018,03/02/2018,3006240,EDF Energy Customers PLC,Electricity (Energy),HRA City West Homes,875.53
3438391,04/06/2018,06/02/2018,3006240,EDF Energy Customers PLC,Gas (Energy),Property Investments and Estates,"44,233.85"
3415815,13/04/2018,06/02/2018,3006240,EDF Energy Customers PLC,Electricity (Energy),Highways Infrastructure & Public Realm,"213,368.44"
3398719,05/04/2018,13/02/2018,3006240,EDF Energy Customers PLC,Electricity (Energy),HRA City West Homes,568.33
3419056,13/04/2018,05/03/2018,3006240,EDF Energy Customers PLC,Electricity (Energy),Highways Infrastructure & Public Realm,"91,130.54"
3409217,20/04/2018,07/03/2018,3006240,EDF Energy Customers PLC,Electricity (Energy),HRA City West Homes,"1,757.53"
3409219,25/04/2018,07/03/2018,3006240,EDF Energy Customers PLC,Electricity (Energy),HRA City West Homes,569.47
3409218,25/04/2018,07/03/2018,3006240,EDF Energy Customers PLC,Electricity (Energy),HRA City West Homes,"1,024.86"
3421814,19/04/2018,12/03/2018,3006240,EDF Energy Customers PLC,Electricity -E16,Schools,"1,111.95"
3416232,23/05/2018,15/03/2018,3006240,EDF Energy Customers PLC,Electricity (Energy),HRA City West Homes,881.31
3415816,23/05/2018,15/03/2018,3006240,EDF Energy Customers PLC,Electricity (Energy),HRA City West Homes,977.26
3415818,23/05/2018,15/03/2018,3006240,EDF Energy Customers PLC,Electricity (Energy),HRA City West Homes,722.53
3416233,23/05/2018,15/03/2018,3006240,EDF Energy Customers PLC,Electricity (Energy),HRA City West Homes,"1,707.48"
3427285,08/05/2018,05/04/2018,3006240,EDF Energy Customers PLC,Gas (Energy),Property Investments and Estates,905.88
3431170,24/05/2018,03/05/2018,3006240,EDF Energy Customers PLC,Electricity -E16,Schools,"1,110.64"
3431172,24/05/2018,03/05/2018,3006240,EDF Energy Customers PLC,Electricity -E16,Schools,872.6
3433721,29/05/2018,08/05/2018,3006240,EDF Energy Customers PLC,Gas (Energy),Property Investments and Estates,"57,875.23"
3431492,30/05/2018,09/05/2018,3006240,EDF Energy Customers PLC,Fees General,HRA City West Homes,903.57
3431491,30/05/2018,09/05/2018,3006240,EDF Energy Customers PLC,Fees General,HRA City West Homes,757.96
3432480,06/06/2018,10/05/2018,3006240,EDF Energy Customers PLC,Electricity (Energy),HRA City West Homes,683.57
3442480,13/06/2018,14/05/2018,3006240,EDF Energy Customers PLC,Gas (Energy),Property Investments and Estates,"166,165.65"
3441730,21/06/2018,31/05/2018,3006240,EDF Energy Customers PLC,Electricity -E16,Schools,"1,048.72"
3427513,04/05/2018,07/02/2018,3005020,Nsl Limited,Hired and Contracted Services,Parking,"4,318.60"
3407359,03/04/2018,06/03/2018,3011269,Atomwide Ltd,"ICT (non teaching) -Purchase, Hire and Maintenance contracts -E22",Schools,650
3424216,01/05/2018,01/04/2018,3011293,Artic Building Services Ltd,Contractors - Repairs and Maintenance -E12,Schools,"1,316.82"
3429164,31/05/2018,01/05/2018,3011293,Artic Building Services Ltd,Contractors R&M ARTIC - E12,Schools,"1,573.25"
3442597,29/06/2018,01/06/2018,3011293,Artic Building Services Ltd,Contractors R&M ARTIC - E12,Schools,"1,573.25"
3442598,29/06/2018,31/05/2018,3011293,Artic Building Services Ltd,Contractors R&M ARTIC - E12,Schools,"1,612.46"
3363078,04/04/2018,13/11/2017,3002039,Smart Parking Ltd,Design and development,City Management and Communities,"4,535.00"
3419423,30/04/2018,31/03/2018,3002039,Smart Parking Ltd,Hired and Contracted Services,Parking,"6,823.04"
3425896,24/05/2018,24/04/2018,3002039,Smart Parking Ltd,Design and development,City Management and Communities,"1,449.00"
3427085,30/05/2018,30/04/2018,3002039,Smart Parking Ltd,Hired and Contracted Services,Parking,"6,664.68"
3422255,03/05/2018,03/04/2018,3027332,Emblem Print Products Ltd,Stationery: Not Elsewhere Classified (Stationery),Community Services,756
3428312,14/05/2018,14/02/2018,3017736,Canal & River Trust,NNDR,Property Investments and Estates,754
3416225,06/04/2018,01/03/2018,3005020,Nsl Limited,Parking Enforcement Contract,Parking,"9,079.95"
3416224,10/04/2018,13/03/2018,3005020,Nsl Limited,Parking Enforcement Contract,Parking,"22,046.61"
3418928,11/04/2018,06/03/2018,3000847,Prospero Recruitment Ltd,,Schools,745
3418932,12/04/2018,13/03/2018,3000847,Prospero Recruitment Ltd,,Schools,585
3418107,16/04/2018,13/03/2018,3000847,Prospero Recruitment Ltd,,Schools,900
3439754,22/06/2018,25/05/2018,3019818,Smith of Derby Ltd,,Property Investments and Estates,944
3418929,19/04/2018,20/03/2018,3000847,Prospero Recruitment Ltd,,Schools,585
3416095,19/04/2018,20/03/2018,3000847,Prospero Recruitment Ltd,,Schools,"1,125.00"
3418933,26/04/2018,27/03/2018,3000847,Prospero Recruitment Ltd,,Schools,585
3423579,26/04/2018,27/03/2018,3000847,Prospero Recruitment Ltd,,Schools,900
3421203,04/05/2018,04/04/2018,3000847,Prospero Recruitment Ltd,,Schools,835
3423578,04/05/2018,04/04/2018,3000847,Prospero Recruitment Ltd,,Schools,900
3428198,24/05/2018,24/04/2018,3000847,Prospero Recruitment Ltd,,Schools,"1,125.00"
3429307,31/05/2018,01/05/2018,3000847,Prospero Recruitment Ltd,,Schools,585
3429306,31/05/2018,01/05/2018,3000847,Prospero Recruitment Ltd,,Schools,755
3432987,08/06/2018,09/05/2018,3000847,Prospero Recruitment Ltd,,Schools,780
3431665,08/06/2018,09/05/2018,3000847,Prospero Recruitment Ltd,,Schools,"1,125.00"
3416217,27/04/2018,30/03/2018,3005020,Nsl Limited,,Parking,"46,194.41"
3416218,27/04/2018,30/03/2018,3005020,Nsl Limited,,Parking,"1,961.66"
3446307,26/06/2018,15/05/2018,3000847,Prospero Recruitment Ltd,,Schools,"1,125.00"
3446306,18/06/2018,15/05/2018,3000847,Prospero Recruitment Ltd,,Schools,900
3416219,27/04/2018,30/03/2018,3005020,Nsl Limited,,Parking,"1,661.36"
3416220,27/04/2018,30/03/2018,3005020,Nsl Limited,,Parking,"5,559.30"
3416221,27/04/2018,30/03/2018,3005020,Nsl Limited,,Parking,"326,471.21"
3416222,27/04/2018,30/03/2018,3005020,Nsl Limited,,Parking,"9,218.69"
3442566,21/06/2018,22/05/2018,3000847,Prospero Recruitment Ltd,,Schools,780
3446308,26/06/2018,22/05/2018,3000847,Prospero Recruitment Ltd,,Schools,"1,125.00"
3445257,29/06/2018,30/05/2018,3000847,Prospero Recruitment Ltd,,Schools,705
3448492,21/06/2018,08/05/2018,3019356,Gateway Qualifications,,WAES Director (Principal),"1,128.00"
3419442,04/05/2018,09/04/2018,3005020,Nsl Limited,,Parking,"3,657.50"
3419528,09/05/2018,11/04/2018,3005020,Nsl Limited,,Parking,"1,538.67"
3419529,09/05/2018,11/04/2018,3005020,Nsl Limited,,Parking,"69,416.40"
3421177,27/04/2018,01/04/2018,3005020,Nsl Limited,,Parking,"1,019.60"
3421178,27/04/2018,01/04/2018,3005020,Nsl Limited,,Parking,"518,690.77"
3421179,27/04/2018,01/04/2018,3005020,Nsl Limited,,Parking,"12,389.55"
3421168,27/04/2018,01/04/2018,3005020,Nsl Limited,,Parking,"4,318.60"
3421329,27/04/2018,01/04/2018,3005020,Nsl Limited,,"Policy, Performance and Communications","4,846.29"
3430364,17/05/2018,01/04/2018,3005020,Nsl Limited,,Parking,"7,700.09"
3437575,05/06/2018,28/02/2018,3001434,Govnet Communications T/A Understanding ModernGov,,Director of Finance and Resources,770
3434942,25/05/2018,13/04/2018,3005020,Nsl Limited,,Parking,"10,144.20"
3421176,11/05/2018,13/04/2018,3005020,Nsl Limited,,Parking,"58,642.57"
3424783,27/04/2018,01/04/2018,3005020,Nsl Limited,,Parking,"24,492.45"
3424772,27/04/2018,01/04/2018,3005020,Nsl Limited,,Parking,"7,256.13"
3422999,17/05/2018,19/04/2018,3005020,Nsl Limited,,Parking,"2,956.80"
3423000,17/05/2018,19/04/2018,3005020,Nsl Limited,,Parking,"4,614.61"
3424773,22/05/2018,24/04/2018,3005020,Nsl Limited,,Parking,"31,777.99"
3425389,24/05/2018,26/04/2018,3005020,Nsl Limited,,Parking,660
3426525,24/05/2018,26/04/2018,3005020,Nsl Limited,,Parking,"27,239.05"
3428146,25/05/2018,30/04/2018,3005020,Nsl Limited,,Parking,"8,024.41"
3428141,25/05/2018,30/04/2018,3005020,Nsl Limited,,Parking,"1,961.66"
3428142,25/05/2018,30/04/2018,3005020,Nsl Limited,,Parking,"1,661.36"
3428143,25/05/2018,30/04/2018,3005020,Nsl Limited,,Parking,"5,559.30"
3428145,25/05/2018,30/04/2018,3005020,Nsl Limited,,Parking,"9,218.69"
3428138,31/05/2018,03/05/2018,3005020,Nsl Limited,,Parking,"54,735.09"
3433238,05/06/2018,08/05/2018,3005020,Nsl Limited,,Parking,"9,202.71"
3430068,29/05/2018,01/05/2018,3005020,Nsl Limited,,Parking,"445,399.67"
3430071,29/05/2018,01/05/2018,3005020,Nsl Limited,,Parking,"6,160.80"
3430069,29/05/2018,01/05/2018,3005020,Nsl Limited,,Parking,"3,986.40"
3430070,29/05/2018,01/05/2018,3005020,Nsl Limited,,Parking,"4,509.51"
3431150,07/06/2018,10/05/2018,3005020,Nsl Limited,,Parking,"63,306.98"
3431151,08/06/2018,11/05/2018,3005020,Nsl Limited,,Parking,"1,293.60"
3430974,29/05/2018,01/05/2018,3005020,Nsl Limited,,Parking,"282,852.35"
3431745,29/05/2018,01/05/2018,3005020,Nsl Limited,,Parking,"23,833.51"
3431746,29/05/2018,01/05/2018,3005020,Nsl Limited,,Parking,963.22
3431747,29/05/2018,01/05/2018,3005020,Nsl Limited,,Parking,"1,118.63"
3438403,31/05/2018,01/05/2018,3005020,Nsl Limited,,Parking,"3,400.24"
3440659,26/06/2018,29/05/2018,3005020,Nsl Limited,,Parking,"23,424.98"
3440953,28/06/2018,31/05/2018,3005020,Nsl Limited,,Parking,"9,218.69"
3440954,28/06/2018,31/05/2018,3005020,Nsl Limited,,Parking,"5,559.30"
3440955,28/06/2018,31/05/2018,3005020,Nsl Limited,,Parking,"282,852.35"
3440942,28/06/2018,31/05/2018,3005020,Nsl Limited,,Parking,"1,661.36"
3440943,28/06/2018,31/05/2018,3005020,Nsl Limited,,Parking,"1,961.66"
3440950,28/06/2018,31/05/2018,3005020,Nsl Limited,,Parking,"8,024.41"
3439814,28/06/2018,31/05/2018,3005020,Nsl Limited,,HRA City West Homes,"1,450.00"
3424717,18/05/2018,18/04/2018,3000301,Computer Imprintable Label Systems Ltd,,Parking,"7,537.00"
3442039,29/06/2018,01/06/2018,3005020,Nsl Limited,,Parking,"463,745.35"
3442028,29/06/2018,01/06/2018,3005020,Nsl Limited,,Parking,"4,144.95"
3442029,29/06/2018,01/06/2018,3005020,Nsl Limited,,Parking,"5,903.75"
3442030,29/06/2018,01/06/2018,3005020,Nsl Limited,,Parking,"6,417.50"
3442031,29/06/2018,01/06/2018,3005020,Nsl Limited,,Parking,"2,932.50"
3442032,29/06/2018,01/06/2018,3005020,Nsl Limited,,Parking,"1,660.32"
3442033,29/06/2018,01/06/2018,3005020,Nsl Limited,,Parking,"1,106.88"
3448007,29/06/2018,01/06/2018,3005020,Nsl Limited,,Parking,"23,647.58"
3410155,13/04/2018,14/03/2018,3029489,The Midcounties Co-Operative Ltd,,Family Services 3,"1,150.00"
3448619,29/06/2018,01/06/2018,3005020,Nsl Limited,,Parking,"1,047.78"
3448620,29/06/2018,01/06/2018,3005020,Nsl Limited,,Parking,"8,859.62"
3448621,29/06/2018,01/06/2018,3005020,Nsl Limited,,Parking,"43,366.51"
3448623,29/06/2018,01/06/2018,3005020,Nsl Limited,,Parking,"66,831.49"
3451093,29/06/2018,01/06/2018,3005020,Nsl Limited,,Parking,"1,744.72"
3451094,29/06/2018,01/06/2018,3005020,Nsl Limited,,Parking,705.38
3451095,29/06/2018,01/06/2018,3005020,Nsl Limited,,Parking,"1,039.50"
3440284,29/06/2018,01/06/2018,3029489,The Midcounties Co-Operative Ltd,,Family Services 3,"1,436.40"
3409761,11/04/2018,12/03/2018,3000673,Shaw & Sons Ltd,,Chief Executive's Office,"1,672.39"
3409760,11/04/2018,12/03/2018,3000673,Shaw & Sons Ltd,,Chief Executive's Office,560.5
3414967,20/04/2018,21/03/2018,3000673,Shaw & Sons Ltd,,Chief Executive's Office,556.32
3421529,11/05/2018,11/04/2018,3022981,IBISWorld Limited,,Tri-borough Libraries and Archives,"8,000.00"
3435431,24/05/2018,23/05/2018,3001652,Sands Catering Ltd,,Education,890
3434350,14/06/2018,17/05/2018,3017425,Red Arrow Trading Ltd,,Parking,"3,448.00"
3415251,14/05/2018,22/03/2018,3010110,Scci Alphatrack Ltd,,HRA City West Homes,"8,122.42"
3415252,14/05/2018,22/03/2018,3010110,Scci Alphatrack Ltd,,HRA City West Homes,"8,122.42"
3415253,24/05/2018,22/03/2018,3010110,Scci Alphatrack Ltd,,HRA City West Homes,"8,122.42"
3415254,17/05/2018,22/03/2018,3010110,Scci Alphatrack Ltd,,HRA City West Homes,"4,574.79"
3424211,24/05/2018,24/04/2018,3010110,Scci Alphatrack Ltd,,HRA City West Homes,"9,409.01"
3424212,24/05/2018,24/04/2018,3010110,Scci Alphatrack Ltd,,HRA City West Homes,"9,409.01"
3431815,14/06/2018,15/05/2018,3010110,Scci Alphatrack Ltd,,HRA City West Homes,"8,122.42"
3431816,14/06/2018,15/05/2018,3010110,Scci Alphatrack Ltd,,HRA City West Homes,"1,325.34"
3431817,14/06/2018,15/05/2018,3010110,Scci Alphatrack Ltd,,HRA City West Homes,"3,987.00"
3431818,14/06/2018,15/05/2018,3010110,Scci Alphatrack Ltd,,HRA City West Homes,"9,409.01"
3434973,01/06/2018,08/03/2018,3001990,Alere Toxicology Plc,,Family Services 2,"1,049.00"
3438419,31/05/2018,06/04/2018,3001990,Alere Toxicology Plc,,Family Services 2,604
12115381,25/04/2018,13/04/2018,3008410,A2Dominion Housing Group Ltd,,Bi-Borough Director of Integrated Care,637.04
3415467,04/04/2018,21/03/2018,3017931,Specialised Orthotic Services Ltd,,Family Services 2,"1,848.63"
3416131,05/04/2018,29/03/2018,3017931,Specialised Orthotic Services Ltd,,Family Services 2,966.91
3436671,29/05/2018,23/05/2018,3017931,Specialised Orthotic Services Ltd,,Family Services 2,944.32
12145726,23/05/2018,15/05/2018,3008410,A2Dominion Housing Group Ltd,,Bi-Borough Director of Integrated Care,637.04
12176497,21/06/2018,12/06/2018,3008410,A2Dominion Housing Group Ltd,,Bi-Borough Director of Integrated Care,637.04
3439752,29/06/2018,31/05/2018,3018196,Edwardes Bros (Dulwich) Ltd,,HRA City West Homes,985
3416065,17/05/2018,31/03/2018,3008410,A2Dominion Housing Group Ltd,,Public Health,"11,250.00"
3432436,18/05/2018,19/04/2018,3010661,Fairley House Upper School,,Education,"10,300.00"
3420459,16/04/2018,31/03/2018,3008410,A2Dominion Housing Group Ltd,,Housing Operations,"23,370.00"
3449290,25/06/2018,10/05/2018,3010661,Fairley House Upper School,,Education,"10,300.00"
3440890,21/06/2018,22/05/2018,3010661,Fairley House Upper School,,Education,"4,847.04"
3426617,30/05/2018,30/04/2018,3028992,Fire Door Compliance Consultants Ltd,,HRA City West Homes,"15,547.00"
3439585,29/06/2018,31/05/2018,3028992,Fire Door Compliance Consultants Ltd,,HRA City West Homes,"13,373.00"
3427416,08/05/2018,24/04/2018,3008410,A2Dominion Housing Group Ltd,,Chief Executive's Office,"1,575.00"
3430342,14/05/2018,10/05/2018,3008410,A2Dominion Housing Group Ltd,,Housing Operations,"8,640.00"
3430342,14/05/2018,10/05/2018,3008410,A2Dominion Housing Group Ltd,,Housing Operations,"15,884.22"
3430342,14/05/2018,10/05/2018,3008410,A2Dominion Housing Group Ltd,,Housing Operations,"411,440.04"
3430343,14/05/2018,10/05/2018,3008410,A2Dominion Housing Group Ltd,,Housing Operations,"2,340.00"
3430343,14/05/2018,10/05/2018,3008410,A2Dominion Housing Group Ltd,,Housing Operations,"1,937.10"
3421147,17/04/2018,16/02/2018,3012634,Association Of Accounting Technicians,,WAES Director (Principal),736
3421149,17/04/2018,09/03/2018,3012634,Association Of Accounting Technicians,,WAES Director (Principal),659
3421138,17/04/2018,16/03/2018,3012634,Association Of Accounting Technicians,,WAES Director (Principal),"1,280.00"
3421140,04/05/2018,06/04/2018,3012634,Association Of Accounting Technicians,,WAES Director (Principal),504
3448531,21/06/2018,30/04/2018,3012634,Association Of Accounting Technicians,,WAES Director (Principal),659
3448527,21/06/2018,11/05/2018,3012634,Association Of Accounting Technicians,,WAES Director (Principal),602
3430343,14/05/2018,10/05/2018,3008410,A2Dominion Housing Group Ltd,,Housing Operations,"43,003.62"
3421034,27/04/2018,31/03/2018,3013599,Life in Balance,,Director of Integrated Commissioning,"1,329.20"
3447983,20/06/2018,11/05/2018,3008410,A2Dominion Housing Group Ltd,,Housing Operations,"10,800.00"
3403678,03/04/2018,22/02/2018,3023143,Mayfair Community Choir,,"Policy, Performance and Communications","1,185.00"
3447983,20/06/2018,11/05/2018,3008410,A2Dominion Housing Group Ltd,,Housing Operations,"535,027.02"
3447967,20/06/2018,11/06/2018,3008410,A2Dominion Housing Group Ltd,,Housing Operations,"57,725.58"
3447967,20/06/2018,11/06/2018,3008410,A2Dominion Housing Group Ltd,,Housing Operations,"2,925.00"
3448260,28/06/2018,20/06/2018,3032293,Aarav Properties Ltd,,Housing Operations,"4,000.00"
3416507,20/04/2018,26/03/2018,3013883,The Cavendish School Charitable Trust Ltd,,Education,"4,700.00"
3409819,10/04/2018,05/04/2017,3025414,Castle Water Ltd,,Property Investments and Estates,"4,781.26"
3427271,11/05/2018,05/04/2018,3008465,Abbey Community Association Ltd,,Public Health,"11,250.00"
3433252,18/05/2018,03/05/2018,3002913,Abbey Community Association Ltd,,Chief Executive's Office,"2,150.00"
3419431,20/04/2018,01/04/2018,3002913,Abbey Community Association Ltd,,"Policy, Performance and Communications","38,625.00"
12104838,13/04/2018,09/04/2018,3009118,Personal detail - redacted,,Bi-Borough Director of Integrated Care,572.6
12133134,11/05/2018,04/05/2018,3009118,Personal detail - redacted,,Bi-Borough Director of Integrated Care,572.6
12162490,08/06/2018,04/06/2018,3009118,Personal detail - redacted,,Bi-Borough Director of Integrated Care,572.6
3415919,24/04/2018,27/03/2018,3016165,The King Alfred School,,Education,"12,226.83"
12105005,13/04/2018,09/04/2018,3024189,Personal detail - redacted,,Bi-Borough Director of Integrated Care,"1,736.00"
3407436,03/04/2018,02/03/2018,3019831,Career Teachers Ltd,,Schools,620
3409820,10/04/2018,22/04/2017,3025414,Castle Water Ltd,,Property Investments and Estates,"5,304.71"
3416135,17/04/2018,09/03/2018,3019831,Career Teachers Ltd,,Schools,620
3416134,13/04/2018,16/03/2018,3019831,Career Teachers Ltd,,Schools,620
3428322,18/05/2018,20/04/2018,3019831,Career Teachers Ltd,,Schools,620
3431883,25/05/2018,27/04/2018,3019831,Career Teachers Ltd,,Schools,620
3446240,26/06/2018,04/05/2018,3019831,Career Teachers Ltd,,Schools,620
3446241,22/06/2018,25/05/2018,3019831,Career Teachers Ltd,,Schools,620
3444627,14/06/2018,30/03/2018,3031173,33 Design Ltd,,"Growth, Planning and Housing","10,200.00"
3443957,13/06/2018,30/04/2018,3031173,33 Design Ltd,,"Growth, Planning and Housing","10,200.00"
3440802,13/06/2018,10/05/2017,3025414,Castle Water Ltd,,Property Investments and Estates,"1,473.22"
3440809,13/06/2018,10/05/2017,3025414,Castle Water Ltd,,Property Investments and Estates,"1,652.73"
3438133,06/06/2018,05/05/2018,3010670,Terra Consultancy Ltd,,WAES Director (Principal),720
3423070,18/05/2018,19/04/2018,3002243,Ra Information Systems,,Development Planning,"5,980.00"
3437937,30/05/2018,23/03/2018,3017267,Mosaic Community Trust,,WAES Director (Principal),"2,475.00"
3439579,26/06/2018,27/05/2018,3027949,Greenflame Consultancy Services Ltd,,Public Protection and Licensing,"8,140.00"
12133332,11/05/2018,04/05/2018,3024189,Personal detail - redacted,,Bi-Borough Director of Integrated Care,"1,736.00"
3426691,15/05/2018,20/03/2018,3006041,Church House Conference Centre Ltd,,Community Services,"1,200.00"
3438812,08/06/2018,23/03/2018,3006041,Church House Conference Centre Ltd,,"Growth, Planning and Housing","11,769.00"
12162951,08/06/2018,04/06/2018,3024189,Personal detail - redacted,,Bi-Borough Director of Integrated Care,"1,736.00"
12104936,13/04/2018,09/04/2018,3026859,Personal detail - redacted,,Bi-Borough Director of Integrated Care,992
3409007,09/04/2018,12/03/2018,3014041,King's College Hospital NHS Foundation Trust,,Public Health,794
3415718,26/04/2018,29/03/2018,3014041,King's College Hospital NHS Foundation Trust,,Public Health,903
3415719,26/04/2018,29/03/2018,3014041,King's College Hospital NHS Foundation Trust,,Public Health,903
3415720,26/04/2018,29/03/2018,3014041,King's College Hospital NHS Foundation Trust,,Public Health,903
12139225,16/05/2018,14/05/2018,3026859,Personal detail - redacted,,Bi-Borough Director of Integrated Care,992
3409821,10/04/2018,07/06/2017,3025414,Castle Water Ltd,,Property Investments and Estates,"4,987.19"
3415601,27/04/2018,28/03/2018,3029688,Personal detail - redacted,,Education,600
12162556,08/06/2018,04/06/2018,3026859,Personal detail - redacted,,Bi-Borough Director of Integrated Care,992
12104649,13/04/2018,09/04/2018,3025815,Personal detail - redacted,,Bi-Borough Director of Integrated Care,721.92
12133525,11/05/2018,04/05/2018,3025815,Personal detail - redacted,,Bi-Borough Director of Integrated Care,721.92
3431920,13/06/2018,14/05/2018,3029390, Zumba Fitness,,Housing Operations,"6,748.00"
3421575,18/04/2018,30/09/2017,3012324,Dr Purssell and Partners,,Public Health,"1,820.00"
3425443,02/05/2018,31/12/2016,3012324,Dr Purssell and Partners,,Public Health,"1,330.00"
3441636,11/06/2018,31/12/2017,3012324,Dr Purssell and Partners,,Public Health,"1,925.00"
3441635,07/06/2018,31/03/2018,3012324,Dr Purssell and Partners,,Public Health,"2,450.00"
3443360,11/06/2018,31/03/2018,3012324,Dr Purssell and Partners,,Public Health,"2,351.50"
3418005,20/04/2018,24/03/2018,3017986,EqualiTeach C.I.C,,Public Protection and Licensing,"3,049.00"
12164321,12/06/2018,08/06/2018,3025815,Personal detail - redacted,,Bi-Borough Director of Integrated Care,721.92
3427582,08/05/2018,03/03/2018,3027968,Marwood 252 Ltd,,Property Investments and Estates,"22,950.00"
3421108,03/05/2018,03/04/2018,3027968,Marwood 252 Ltd,,Property Investments and Estates,"25,200.00"
3416123,03/05/2018,03/04/2018,3012455,St Johns Wood Medical Practice,,Public Health,"20,545.00"
12097469,06/04/2018,26/02/2018,3024711,Mercyland Care Limited,,Bi-Borough Director of Integrated Care,851.2
3427583,31/05/2018,01/05/2018,3027968,Marwood 252 Ltd,,Property Investments and Estates,"23,400.00"
3424975,18/05/2018,20/04/2018,3012455,St Johns Wood Medical Practice,,Public Health,929.25
3428930,11/05/2018,09/05/2018,3031858,Personal detail - redacted,,Housing Operations,"3,000.00"
3424986,18/05/2018,20/04/2018,3012455,St Johns Wood Medical Practice,,Public Health,659.5
3426900,03/05/2018,15/04/2018,3030504,Personal detail - redacted,,"Policy, Performance and Communications","3,640.00"
3449053,25/06/2018,31/05/2018,3029189,Abeke Olatorera Samson,,WAES Director (Principal),514.19
3432320,24/05/2018,24/04/2018,3030469,Personal detail - redacted,,Bi-Borough Director of Integrated Care,540
3416082,17/04/2018,18/03/2018,3011253,PEAC (Uk) Ltd,,Schools,508
3417436,24/04/2018,25/01/2017,3011951,Latis Scientific,,Public Protection and Licensing,"3,010.50"
3410094,03/04/2018,02/02/2018,3012925,JRC Events,,Tri-borough Libraries and Archives,925
12187137,29/06/2018,28/06/2018,3011934,Personal detail - redacted,,Director of Integrated Commissioning,600
3414983,04/04/2018,28/02/2018,3000980,Ogilvie Fleet,,"Policy, Performance and Communications",696.78
3410208,16/04/2018,01/03/2018,3000980,Ogilvie Fleet,,Public Protection and Licensing,"2,774.88"
3410207,03/04/2018,01/03/2018,3000980,Ogilvie Fleet,,Public Protection and Licensing,"1,992.12"
3410205,16/04/2018,01/03/2018,3000980,Ogilvie Fleet,,Legal Services,"2,509.08"
3430486,08/06/2018,11/05/2018,3001541,Servelec Corelogic Ltd,,Corporate Finance,"104,647.91"
3430487,08/06/2018,11/05/2018,3001541,Servelec Corelogic Ltd,,TB Information Services and Strategy,"114,608.91"
3423569,30/04/2018,31/03/2018,3000980,Ogilvie Fleet,,"Policy, Performance and Communications",771.45
3432244,30/05/2018,30/04/2018,3000980,Ogilvie Fleet,,"Policy, Performance and Communications",746.55
3429710,31/05/2018,01/05/2018,3000980,Ogilvie Fleet,,Family Services 2,"2,189.88"
3425430,31/05/2018,20/04/2018,3011951,Latis Scientific,,Public Protection and Licensing,"3,200.00"
3445259,29/06/2018,30/05/2018,3000980,Ogilvie Fleet,,City Planning,"2,133.54"
3445260,29/06/2018,31/05/2018,3000980,Ogilvie Fleet,,"Policy, Performance and Communications",771.45
3431830,08/06/2018,09/05/2018,3011951,Latis Scientific,,Public Protection and Licensing,512
3443351,11/06/2018,11/05/2018,3011951,Latis Scientific,,Community Services,"2,600.00"
3415407,23/04/2018,26/03/2018,3013882,Personal detail - redacted,,Chief Executive's Office,"1,548.80"
3415725,04/04/2018,10/02/2018,3013738,Outdoor Restore Ltd,,Waste and Parks,"2,070.00"
3410105,09/04/2018,12/03/2018,3013738,Outdoor Restore Ltd,,Waste and Parks,"3,500.00"
3409865,09/04/2018,12/03/2018,3013738,Outdoor Restore Ltd,,Waste and Parks,"29,750.00"
3419579,04/05/2018,08/04/2018,3013738,Outdoor Restore Ltd,,Waste and Parks,"2,175.00"
3448846,21/06/2018,18/04/2018,3016302,Latymer Upper School,,Education,"4,936.04"
3449250,22/06/2018,24/04/2018,3016302,Latymer Upper School,,Education,"3,986.80"
3408821,11/04/2018,05/03/2018,3010670,Terra Consultancy Ltd,,WAES Director (Principal),520
3438134,06/06/2018,05/05/2018,3010670,Terra Consultancy Ltd,,WAES Director (Principal),"1,120.00"
3438136,22/06/2018,25/05/2018,3010670,Terra Consultancy Ltd,,WAES Director (Principal),960
3425677,08/05/2018,09/03/2018,3011248,Access UK Limited T/a HCSS Educational Ltd,,Schools,713
3445516,18/06/2018,04/06/2018,3030504,Personal detail - redacted,,"Policy, Performance and Communications","2,520.00"
3438140,25/06/2018,26/05/2018,3010670,Terra Consultancy Ltd,,WAES Director (Principal),960
3440789,13/06/2018,14/09/2017,3025414,Castle Water Ltd,,Property Investments and Estates,"1,831.04"
3415406,23/04/2018,26/03/2018,3013882,Personal detail - redacted,,Chief Executive's Office,"1,839.20"
3427770,08/05/2018,19/09/2017,3025414,Castle Water Ltd,,Waste and Parks,615.23
3419308,19/04/2018,04/04/2018,3029373,Eventay Ltd,,Housing Operations,"25,413.69"
3429961,22/05/2018,08/05/2018,3029373,Eventay Ltd,,Housing Operations,"22,230.00"
3432953,30/05/2018,16/05/2018,3029373,Eventay Ltd,,Housing Operations,"2,784.00"
3450737,28/06/2018,05/06/2018,3029373,Eventay Ltd,,Housing Operations,"18,253.33"
3414924,04/04/2018,26/02/2018,3000582,RWA Security Ltd,,Public Protection and Licensing,690
3410185,11/04/2018,12/03/2018,3000582,RWA Security Ltd,,Public Protection and Licensing,"1,104.00"
3408816,01/05/2018,14/02/2018,3010670,Terra Consultancy Ltd,,WAES Director (Principal),600
3427156,31/05/2018,01/05/2018,3000582,RWA Security Ltd,,Public Protection and Licensing,828
3438476,28/06/2018,29/05/2018,3000582,RWA Security Ltd,,Public Protection and Licensing,828
3425466,24/05/2018,26/04/2018,3013882,Personal detail - redacted,,Chief Executive's Office,"2,129.60"
3409818,10/04/2018,20/10/2017,3025414,Castle Water Ltd,,Property Investments and Estates,"4,262.64"
3427994,08/05/2018,23/10/2017,3025414,Castle Water Ltd,,Waste and Parks,"1,273.75"
3408923,03/04/2018,08/03/2018,3029373,Eventay Ltd,,HRA City West Homes,"5,395.83"
3408922,03/04/2018,08/03/2018,3029373,Eventay Ltd,,HRA City West Homes,"1,750.00"
3408924,03/04/2018,08/03/2018,3029373,Eventay Ltd,,HRA City West Homes,"1,020.83"
3408921,03/04/2018,09/03/2018,3029373,Eventay Ltd,,HRA City West Homes,"4,730.83"
3408920,03/04/2018,09/03/2018,3029373,Eventay Ltd,,HRA City West Homes,"6,266.67"
3408925,03/04/2018,09/03/2018,3029373,Eventay Ltd,,HRA City West Homes,"2,158.33"
3418258,26/04/2018,03/04/2018,3029373,Eventay Ltd,,HRA City West Homes,"3,581.67"
3418257,26/04/2018,03/04/2018,3029373,Eventay Ltd,,HRA City West Homes,"2,580.00"
3426608,21/05/2018,03/04/2018,3029373,Eventay Ltd,,HRA City West Homes,"2,937.50"
3418261,26/04/2018,03/04/2018,3029373,Eventay Ltd,,HRA City West Homes,"3,208.33"
3418260,26/04/2018,03/04/2018,3029373,Eventay Ltd,,HRA City West Homes,950
3418262,26/04/2018,04/04/2018,3029373,Eventay Ltd,,HRA City West Homes,"5,600.00"
3423939,26/04/2018,05/04/2018,3029373,Eventay Ltd,,HRA City West Homes,"1,581.73"
3427396,05/04/2018,05/04/2018,3029373,Eventay Ltd,,HRA City West Homes,"1,581.73"
3443050,14/06/2018,08/05/2018,3029373,Eventay Ltd,,HRA City West Homes,915.83
3429274,22/05/2018,08/05/2018,3029373,Eventay Ltd,,HRA City West Homes,"1,939.17"
3429276,22/05/2018,08/05/2018,3029373,Eventay Ltd,,HRA City West Homes,"3,500.00"
3443373,20/06/2018,08/05/2018,3029373,Eventay Ltd,,HRA City West Homes,625
3429275,22/05/2018,08/05/2018,3029373,Eventay Ltd,,HRA City West Homes,875
3434758,08/06/2018,16/05/2018,3029373,Eventay Ltd,,HRA City West Homes,"1,225.00"
3434747,08/06/2018,16/05/2018,3029373,Eventay Ltd,,HRA City West Homes,541.67
3432335,30/05/2018,16/05/2018,3029373,Eventay Ltd,,HRA City West Homes,625
3441881,19/06/2018,05/06/2018,3029373,Eventay Ltd,,HRA City West Homes,"1,083.33"
3441880,19/06/2018,05/06/2018,3029373,Eventay Ltd,,HRA City West Homes,"1,145.83"
3425465,24/05/2018,26/04/2018,3013882,Personal detail - redacted,,Chief Executive's Office,"2,162.40"
3441889,19/06/2018,05/06/2018,3029373,Eventay Ltd,,HRA City West Homes,"1,387.50"
3441882,19/06/2018,05/06/2018,3029373,Eventay Ltd,,HRA City West Homes,"3,185.00"
3441887,19/06/2018,05/06/2018,3029373,Eventay Ltd,,HRA City West Homes,"1,458.33"
3441888,19/06/2018,05/06/2018,3029373,Eventay Ltd,,HRA City West Homes,916.67
3441878,19/06/2018,05/06/2018,3029373,Eventay Ltd,,HRA City West Homes,"3,541.67"
3443067,20/06/2018,05/06/2018,3029373,Eventay Ltd,,HRA City West Homes,"2,291.67"
3441879,19/06/2018,05/06/2018,3029373,Eventay Ltd,,HRA City West Homes,"3,750.00"
3445527,27/06/2018,11/06/2018,3029373,Eventay Ltd,,HRA City West Homes,"12,976.92"
3448561,22/06/2018,11/05/2018,3011248,Access UK Limited T/a HCSS Educational Ltd,,Schools,713
3439285,28/06/2018,31/05/2018,3013882,Personal detail - redacted,,Chief Executive's Office,"2,532.60"
3418195,12/04/2018,23/03/2018,3002916,MU Enterprises Ltd,,Tri-borough Children's Services,505.83
3421741,19/04/2018,18/04/2018,3999999,Accident Exchange Limited,,Revenues and Benefits,"2,961.10"
12115491,25/04/2018,13/04/2018,3002255,Tracs Ltd,,Bi-Borough Director of Integrated Care,"6,748.80"
12115096,25/04/2018,13/04/2018,3002255,Tracs Ltd,,Bi-Borough Director of Integrated Care,"14,400.00"
12145820,23/05/2018,15/05/2018,3002255,Tracs Ltd,,Bi-Borough Director of Integrated Care,"6,748.80"
3432919,13/06/2018,16/05/2018,3013328,Approved Inspector Services Ltd,,Development Planning,"1,600.00"
12146038,23/05/2018,15/05/2018,3002255,Tracs Ltd,,Bi-Borough Director of Integrated Care,"14,400.00"
12176066,21/06/2018,12/06/2018,3002255,Tracs Ltd,,Bi-Borough Director of Integrated Care,"6,748.80"
12176316,21/06/2018,12/06/2018,3002255,Tracs Ltd,,Bi-Borough Director of Integrated Care,"14,400.00"
3418614,10/04/2018,09/04/2018,3012554,Acorn Nursery ,,Children's Services Commissioning,"23,712.00"
3439284,28/06/2018,31/05/2018,3013882,Personal detail - redacted,,Chief Executive's Office,"1,909.00"
3419048,11/04/2018,05/02/2018,3013700,The Office of the Immigration Services Commissioner,,Tri-borough Libraries and Archives,575
12138159,15/05/2018,14/05/2018,3009428,Action For Children Services Ltd,,Family Services 1,"3,767.14"
3424668,08/05/2018,16/04/2018,3025414,Castle Water Ltd,,Community Services,"10,761.36"
3421824,01/05/2018,01/04/2018,3002553,Box-It Ltd,,TB Information Services and Strategy,554.14
3417179,01/05/2018,01/04/2018,3002553,Box-It Ltd,,TB Information Services and Strategy,"13,672.45"
3418995,08/05/2018,09/04/2018,3016302,Latymer Upper School,,Education,"5,845.00"
12073376,04/04/2018,05/03/2018,3029682,Books Asia Ltd,,Tri-borough Libraries and Archives,548.58
12073379,04/04/2018,05/03/2018,3029682,Books Asia Ltd,,Tri-borough Libraries and Archives,510.59
12073378,04/04/2018,05/03/2018,3029682,Books Asia Ltd,,Tri-borough Libraries and Archives,789.62
12172829,18/06/2018,14/06/2018,3009428,Action For Children Services Ltd,,Family Services 1,"3,892.72"
12104686,13/04/2018,09/04/2018,3003860,Personal detail - redacted,,Bi-Borough Director of Integrated Care,676.8
12133584,11/05/2018,04/05/2018,3003860,Personal detail - redacted,,Bi-Borough Director of Integrated Care,676.8
12162817,08/06/2018,04/06/2018,3003860,Personal detail - redacted,,Bi-Borough Director of Integrated Care,676.8
3425594,01/05/2018,20/03/2018,3001433,Adcs,,Tri-borough Children's Services,"1,645.88"
3422643,24/04/2018,28/02/2017,3012417,Personal detail - redacted,,Tri-borough Libraries and Archives,553.96
3425005,10/05/2018,31/01/2018,3012417,Personal detail - redacted,,Chief Executive's Office,626.57
3419793,20/04/2018,31/03/2018,3012417,Personal detail - redacted,,Tri-borough Libraries and Archives,708.05
3425016,10/05/2018,31/03/2018,3012417,Personal detail - redacted,,Chief Executive's Office,652.07
3441149,21/06/2018,31/05/2018,3012417,Personal detail - redacted,,Tri-borough Libraries and Archives,783.45
3442612,21/06/2018,31/05/2018,3012417,Personal detail - redacted,,Chief Executive's Office,"2,514.12"
3441614,21/06/2018,31/05/2018,3012417,Personal detail - redacted,,"Policy, Performance and Communications",828.21
12103928,13/04/2018,12/04/2018,3009122,Personal detail - redacted,,Family Services 2,609.12
3420560,16/04/2018,31/03/2018,3013583,Rawlings of cranleigh ltd,,Community Services,"2,187.85"
12133659,11/05/2018,10/05/2018,3009122,Personal detail - redacted,,Family Services 2,609.12
12161775,08/06/2018,07/06/2018,3009122,Personal detail - redacted,,Family Services 2,609.12
12104619,13/04/2018,09/04/2018,3027201,Personal detail - redacted,,Bi-Borough Director of Integrated Care,800
12133489,11/05/2018,04/05/2018,3027201,Personal detail - redacted,,Bi-Borough Director of Integrated Care,800
3440725,07/06/2018,05/06/2018,3018212,Personal detail - redacted,,Housing Operations,"8,028.87"
3415054,26/04/2018,15/03/2018,3001684,Loomis Uk Ltd,,Tri-Borough Treasury and Pensions,808.32
3449399,28/06/2018,22/06/2018,3018212,Personal detail - redacted,,Housing Operations,"9,250.56"
3418212,12/04/2018,07/12/2017,3007728,Portman Early Childhood Centre,,Children's Services Commissioning,"64,450.00"
3418213,12/04/2018,07/12/2017,3007728,Portman Early Childhood Centre,,Children's Services Commissioning,"78,135.00"
3449894,28/06/2018,25/06/2018,3018212,Personal detail - redacted,,Housing Operations,"4,500.00"
3423794,16/05/2018,16/04/2018,3001684,Loomis Uk Ltd,,Tri-Borough Treasury and Pensions,808.32
3415688,16/04/2018,16/03/2018,3026721,St Bedes School,,Education,"24,734.74"
3415262,05/04/2018,01/03/2018,3011218,Abc Housing Co-Operative Ltd,,HRA City West Homes,"15,778.84"
3428702,10/05/2018,01/04/2018,3011218,Abc Housing Co-Operative Ltd,,HRA City West Homes,"12,766.83"
3434248,14/06/2018,15/05/2018,3001684,Loomis Uk Ltd,,Tri-Borough Treasury and Pensions,808.32
12095203,03/04/2018,19/03/2018,3027764,Blue Crystal Care T/A Rose Quartz Ltd,,Bi-Borough Director of Integrated Care,"1,440.00"
3428051,08/05/2018,03/04/2018,3009348,Portman Early Childhood Centre,,Family Services 2,"255,500.00"
3435833,22/06/2018,23/05/2018,3027090,Genus Social Work Ltd,,Family Services 3,"3,443.74"
12105062,13/04/2018,02/04/2018,3027764,Blue Crystal Care T/A Rose Quartz Ltd,,Bi-Borough Director of Integrated Care,720
3410034,03/04/2018,21/11/2017,3005880,Bevan Brittan Llp,,"Growth, Planning and Housing","3,681.42"
3404316,03/04/2018,02/03/2018,3011596,Timeplan Education Group Ltd,,Schools,594.16
3421886,20/04/2018,16/03/2018,3011596,Timeplan Education Group Ltd,,Schools,"1,188.32"
3421884,27/04/2018,30/03/2018,3011596,Timeplan Education Group Ltd,,Schools,"1,188.32"
3421885,11/05/2018,13/04/2018,3011596,Timeplan Education Group Ltd,,Schools,575
3427263,25/05/2018,27/04/2018,3011596,Timeplan Education Group Ltd,,Schools,575
3434863,08/06/2018,11/05/2018,3011596,Timeplan Education Group Ltd,,Schools,"1,189.32"
3422069,20/04/2018,23/03/2018,3024016,Mr Tuan Pham T/A Partake,,Family Services 2,"1,500.00"
3418139,01/05/2018,01/04/2018,3020262,Personal detail - redacted,,HRA City West Homes,565.2
3422068,20/04/2018,23/03/2018,3024016,Mr Tuan Pham T/A Partake,,Family Services 2,"1,800.00"
12104528,13/04/2018,09/04/2018,3022605,Personal detail - redacted,,Bi-Borough Director of Integrated Care,663.36
12133606,11/05/2018,10/05/2018,3022605,Personal detail - redacted,,Bi-Borough Director of Integrated Care,663.36
12162670,08/06/2018,04/06/2018,3022605,Personal detail - redacted,,Bi-Borough Director of Integrated Care,663.36
3430212,17/05/2018,11/05/2018,3999999,Advance Histopathology Laboratory Ltd,,Economy,"1,666.67"
12104902,13/04/2018,09/04/2018,3001771,Personal detail - redacted,,Bi-Borough Director of Integrated Care,"4,365.48"
12133229,11/05/2018,04/05/2018,3001771,Personal detail - redacted,,Bi-Borough Director of Integrated Care,"4,365.48"
12162524,08/06/2018,04/06/2018,3001771,Personal detail - redacted,,Bi-Borough Director of Integrated Care,"4,365.48"
12104847,13/04/2018,09/04/2018,3009267,Personal detail - redacted,,Bi-Borough Director of Integrated Care,605.84
3422066,20/04/2018,23/03/2018,3024016,Mr Tuan Pham T/A Partake,,Family Services 2,720
12133143,11/05/2018,04/05/2018,3009267,Personal detail - redacted,,Bi-Borough Director of Integrated Care,605.84
12162574,08/06/2018,04/06/2018,3009267,Personal detail - redacted,,Bi-Borough Director of Integrated Care,605.84
12104812,13/04/2018,09/04/2018,3009265,Personal detail - redacted,,Bi-Borough Director of Integrated Care,541.44
12133090,11/05/2018,04/05/2018,3009265,Personal detail - redacted,,Bi-Borough Director of Integrated Care,775.02
12162478,08/06/2018,04/06/2018,3009265,Personal detail - redacted,,Bi-Borough Director of Integrated Care,605.56
12104805,13/04/2018,09/04/2018,3009260,Age Concern Westminster,,Bi-Borough Director of Integrated Care,541.44
3419583,17/04/2018,01/04/2018,3013802,Violet Hill House Residents Association,,HRA City West Homes,722.95
3417950,01/05/2018,09/02/2018,3012689,Flower Base,,WAES Director (Principal),874.05
3437931,21/06/2018,24/05/2018,3013981,Reed Specilaist Recruitment Ltd,,Commercial and Financial Management,"93,018.00"
3422067,20/04/2018,23/03/2018,3024016,Mr Tuan Pham T/A Partake,,Family Services 2,"1,800.00"
12104927,13/04/2018,09/04/2018,3009260,Age Concern Westminster,,Bi-Borough Director of Integrated Care,"1,481.40"
3432937,01/06/2018,04/05/2018,3022856,Fernhead Road Methodist Church,,Chief Executive's Office,"1,000.00"
3435847,05/06/2018,16/12/2017,3025400,Kirin Sports Ltd,,Schools,"1,785.00"
3421042,17/04/2018,22/02/2018,3017054,St George's University Hospitals NHS Foundation Trust,,Chief Executive's Office,"4,102.80"
3436663,29/05/2018,10/02/2018,3025400,Kirin Sports Ltd,,Schools,"2,415.00"
12133082,11/05/2018,04/05/2018,3009260,Age Concern Westminster,,Bi-Borough Director of Integrated Care,541.44
3433231,30/05/2018,29/12/2017,3000239,Bertram Library Services,,Tri-borough Libraries and Archives,"5,341.57"
3431861,22/05/2018,01/05/2018,3015449,Electrical Safety Assessments Ltd,,Public Protection and Licensing,"3,895.00"
3419582,17/04/2018,01/04/2018,3013802,Violet Hill House Residents Association,,HRA City West Homes,722.95
12133252,11/05/2018,04/05/2018,3009260,Age Concern Westminster,,Bi-Borough Director of Integrated Care,"1,481.40"
12162468,08/06/2018,04/06/2018,3009260,Age Concern Westminster,,Bi-Borough Director of Integrated Care,541.44
3429058,15/05/2018,03/05/2018,3017570,Young Associates Ltd,,"Growth, Planning and Housing",552.5
12162547,08/06/2018,04/06/2018,3009260,Age Concern Westminster,,Bi-Borough Director of Integrated Care,"1,481.40"
3421043,18/04/2018,21/03/2018,3017054,St George's University Hospitals NHS Foundation Trust,,Chief Executive's Office,"6,231.30"
12167459,13/06/2018,11/06/2018,3002314,Barry Welding & Boiler Co,,HRA City West Homes,"2,470.00"
12167460,13/06/2018,11/06/2018,3002314,Barry Welding & Boiler Co,,HRA City West Homes,660
12167461,13/06/2018,11/06/2018,3002314,Barry Welding & Boiler Co,,HRA City West Homes,650
12167464,13/06/2018,11/06/2018,3002314,Barry Welding & Boiler Co,,HRA City West Homes,885
3415089,13/04/2018,13/03/2018,3002314,Barry Welding & Boiler Co,,HRA City West Homes,"9,345.00"
3415087,13/04/2018,13/03/2018,3002314,Barry Welding & Boiler Co,,HRA City West Homes,"1,155.00"
3423567,18/05/2018,20/04/2018,3002314,Barry Welding & Boiler Co,,HRA City West Homes,655
3423565,18/05/2018,20/04/2018,3002314,Barry Welding & Boiler Co,,HRA City West Homes,"1,480.00"
3423563,18/05/2018,20/04/2018,3002314,Barry Welding & Boiler Co,,HRA City West Homes,"1,450.00"
3434257,14/06/2018,17/05/2018,3002314,Barry Welding & Boiler Co,,HRA City West Homes,"5,525.00"
3434256,14/06/2018,17/05/2018,3002314,Barry Welding & Boiler Co,,HRA City West Homes,559.74
3434255,14/06/2018,17/05/2018,3002314,Barry Welding & Boiler Co,,HRA City West Homes,580
3434253,14/06/2018,17/05/2018,3002314,Barry Welding & Boiler Co,,HRA City West Homes,"1,265.00"
12177025,21/06/2018,19/06/2018,3002314,Barry Welding & Boiler Co,,HRA City West Homes,"1,485.00"
3420730,10/05/2018,12/04/2018,3008539,Agilisys Professional Services Limited,,TB Information Services and Strategy,"5,557.04"
12105988,16/04/2018,13/04/2018,3013020,Active Wellness,,Bi-Borough Director of Integrated Care,"1,987.74"
12104995,13/04/2018,09/04/2018,3005407,Personal detail - redacted,,Bi-Borough Director of Integrated Care,"1,106.28"
12133323,11/05/2018,04/05/2018,3005407,Personal detail - redacted,,Bi-Borough Director of Integrated Care,"1,106.28"
3430648,24/05/2018,26/04/2018,3017054,St George's University Hospitals NHS Foundation Trust,,Chief Executive's Office,"5,082.20"
3427751,04/05/2018,30/04/2018,3017082,Dabora Conway Ltd,,Housing Operations,"39,154.52"
3427751,04/05/2018,30/04/2018,3017082,Dabora Conway Ltd,,Housing Operations,"1,426.73"
12162941,08/06/2018,04/06/2018,3005407,Personal detail - redacted,,Bi-Borough Director of Integrated Care,"1,106.28"
12097318,05/04/2018,04/04/2018,3018527,Personal detail - redacted,,Director of Integrated Commissioning,600
12110512,19/04/2018,18/04/2018,3031550,Personal detail - redacted,,Director of Integrated Commissioning,600
3415257,04/04/2018,06/03/2018,3010617,Personal detail - redacted,,HRA City West Homes,767.25
3399921,10/04/2018,13/02/2018,3016956,Cycle Confident Ltd,,Highways Infrastructure & Public Realm,"15,078.00"
3436676,30/05/2018,01/05/2018,3016956,Cycle Confident Ltd,,Highways Infrastructure & Public Realm,"3,374.00"
3436678,30/05/2018,01/05/2018,3016956,Cycle Confident Ltd,,Highways Infrastructure & Public Realm,"6,178.00"
3448199,26/06/2018,01/05/2018,3016956,Cycle Confident Ltd,,Highways Infrastructure & Public Realm,"3,494.50"
3443113,29/06/2018,01/06/2018,3016956,Cycle Confident Ltd,,Highways Infrastructure & Public Realm,"3,504.00"
3443114,29/06/2018,01/06/2018,3016956,Cycle Confident Ltd,,Highways Infrastructure & Public Realm,"9,104.00"
3443115,29/06/2018,01/06/2018,3016956,Cycle Confident Ltd,,Highways Infrastructure & Public Realm,"4,016.50"
3422965,23/04/2018,01/03/2018,3029754,Personal detail - redacted,,Schools,"1,475.50"
12104527,13/04/2018,09/04/2018,3010652,Personal detail - redacted,,Bi-Borough Director of Integrated Care,"1,061.04"
12133605,11/05/2018,10/05/2018,3010652,Personal detail - redacted,,Bi-Borough Director of Integrated Care,"1,061.04"
3443850,14/06/2018,31/05/2018,3013583,Rawlings of cranleigh ltd,,Community Services,"2,157.71"
12162669,08/06/2018,04/06/2018,3010652,Personal detail - redacted,,Bi-Borough Director of Integrated Care,"1,061.04"
12105364,16/04/2018,12/04/2018,3018054,Personal detail - redacted,,Family Services 1,"2,000.00"
3445959,15/06/2018,02/05/2018,3027843,Richmond Caterers Ltd,,WCC People Services,"9,590.00"
3439222,07/06/2018,31/05/2018,3017082,Dabora Conway Ltd,,Housing Operations,"44,022.04"
3415419,16/04/2018,19/03/2018,3015354,Personal detail - redacted,,Tri-borough Children's Services,"1,875.00"
3439222,07/06/2018,31/05/2018,3017082,Dabora Conway Ltd,,Housing Operations,"2,858.17"
3415823,23/04/2018,27/09/2017,3005573,Hags - Smp Limited,,HRA City West Homes,"5,556.60"
3417309,09/04/2018,28/02/2018,3016773,Pauls Building Services,,Community Services,"6,500.00"
3415822,23/04/2018,27/10/2017,3005573,Hags - Smp Limited,,HRA City West Homes,"6,744.11"
3428212,15/05/2018,10/07/2017,3012543,Personal detail - redacted,,Development Planning,903.33
3415821,23/04/2018,30/11/2017,3005573,Hags - Smp Limited,,HRA City West Homes,"4,698.00"
3430866,15/05/2018,31/03/2018,3011939,Euro Stars Housing And Accomodation Ltd,,Housing Operations,"38,009.15"
3430865,15/05/2018,30/04/2018,3011939,Euro Stars Housing And Accomodation Ltd,,Housing Operations,"4,162.00"
12134019,11/05/2018,08/05/2018,3005573,Hags - Smp Limited,,HRA City West Homes,"1,425.00"
3441640,07/06/2018,31/05/2018,3011939,Euro Stars Housing And Accomodation Ltd,,Housing Operations,"39,923.73"
3441639,07/06/2018,31/05/2018,3011939,Euro Stars Housing And Accomodation Ltd,,Housing Operations,"6,139.85"
3430246,14/05/2018,01/04/2018,3029754,Personal detail - redacted,,Schools,903.5
3419581,17/04/2018,01/04/2018,3013802,Violet Hill House Residents Association,,HRA City West Homes,863.97
3415560,05/04/2018,21/02/2018,3028015,Thomson Property Solutions,,Tri-borough Libraries and Archives,525
3427725,22/05/2018,07/03/2018,3012543,Personal detail - redacted,,Development Planning,"1,250.00"
3438427,31/05/2018,30/05/2018,3999999,Personal detail - redacted,,HRA City West Homes,"1,140.00"
3415403,13/04/2018,16/03/2018,3013747,Prospects Services Ltd,,Children's Services Commissioning,"80,082.00"
3418249,26/04/2018,27/03/2018,3028015,Thomson Property Solutions,,Tri-borough Libraries and Archives,"1,050.00"
3431217,08/06/2018,12/05/2018,3017049,West End Community Trust,,WAES Director (Principal),"2,500.00"
3427200,18/05/2018,19/04/2018,3028015,Thomson Property Solutions,,Tri-borough Libraries and Archives,"1,955.00"
3426030,29/05/2018,29/04/2018,3028015,Thomson Property Solutions,,Tri-borough Libraries and Archives,"1,050.00"
3409790,12/04/2018,13/03/2018,3026712,Ember Services Limited,,Digital Programme,"11,500.00"
12104617,13/04/2018,09/04/2018,3009206,Personal detail - redacted,,Bi-Borough Director of Integrated Care,"1,092.00"
3444825,13/06/2018,01/05/2018,3029754,Personal detail - redacted,,Schools,"1,202.50"
12133486,11/05/2018,04/05/2018,3009206,Personal detail - redacted,,Bi-Borough Director of Integrated Care,"1,092.00"
3432624,14/06/2018,15/05/2018,3018332,Standage & Co Ltd,,HRA City West Homes,"1,324.82"
12162754,08/06/2018,04/06/2018,3009206,Personal detail - redacted,,Bi-Borough Director of Integrated Care,"1,092.00"
3425971,25/05/2018,27/04/2018,3012083,C Steele Associates,,WCC People Services,"1,000.00"
12133572,11/05/2018,04/05/2018,3018564,Personal detail - redacted,,Bi-Borough Director of Integrated Care,"1,176.84"
3249798,18/06/2018,23/09/2016,3016322,Swiss Cottage School,,Education,"6,738.16"
3406344,06/04/2018,07/03/2018,3011378,Koru Medical Ltd,,Bi-Borough Director of Integrated Care,"1,887.80"
3430150,25/05/2018,27/04/2018,3026712,Ember Services Limited,,Digital Programme,"2,300.00"
3425682,30/04/2018,14/03/2018,3011378,Koru Medical Ltd,,Bi-Borough Director of Integrated Care,565.8
12162805,08/06/2018,04/06/2018,3018564,Personal detail - redacted,,Bi-Borough Director of Integrated Care,523.04
3445777,29/06/2018,01/06/2018,3026712,Ember Services Limited,,Digital Programme,"5,750.00"
3426667,30/05/2018,30/04/2018,3011378,Koru Medical Ltd,,Bi-Borough Director of Integrated Care,"1,137.00"
3434108,19/06/2018,20/05/2018,3011378,Koru Medical Ltd,,Bi-Borough Director of Integrated Care,"1,880.24"
3448768,21/06/2018,01/06/2018,3029754,Personal detail - redacted,,Schools,"1,384.50"
12102512,11/04/2018,10/04/2018,3028300,Personal detail - redacted,,Director of Integrated Commissioning,600
3439164,29/06/2018,31/05/2018,3031865,Personal detail - redacted,,Family Services 2,"2,318.75"
12104917,13/04/2018,09/04/2018,3009162,Personal detail - redacted,,Bi-Borough Director of Integrated Care,"1,624.32"
3441173,13/06/2018,16/05/2018,3013765,Screwfix Direct Ltd,,Community Services,568.76
3447283,19/06/2018,01/06/2018,3029754,Personal detail - redacted,,Schools,"1,267.50"
3416914,16/04/2018,17/03/2018,3029302,Personal detail - redacted,,"Policy, Performance and Communications",512.5
3431098,15/05/2018,04/04/2018,3012689,Flower Base,,WAES Director (Principal),785.35
12133242,11/05/2018,04/05/2018,3009162,Personal detail - redacted,,Bi-Borough Director of Integrated Care,"1,624.32"
12162537,08/06/2018,04/06/2018,3009162,Personal detail - redacted,,Bi-Borough Director of Integrated Care,"1,624.32"
12104926,13/04/2018,09/04/2018,3002995,Personal detail - redacted,,Bi-Borough Director of Integrated Care,613.72
12133251,11/05/2018,04/05/2018,3002995,Personal detail - redacted,,Bi-Borough Director of Integrated Care,613.72
12162546,08/06/2018,04/06/2018,3002995,Personal detail - redacted,,Bi-Borough Director of Integrated Care,613.72
12158306,04/06/2018,31/05/2018,3022405,Personal detail - redacted,,Family Services 3,628
12163303,11/06/2018,07/06/2018,3022405,Personal detail - redacted,,Family Services 3,628
12168792,15/06/2018,13/06/2018,3022405,Personal detail - redacted,,Family Services 3,628
12177925,25/06/2018,21/06/2018,3022405,Personal detail - redacted,,Family Services 3,628
3423285,02/05/2018,23/04/2018,3022405,Personal detail - redacted,,Family Services 1,744.28
12104648,13/04/2018,09/04/2018,3012563,Personal detail - redacted,,Bi-Borough Director of Integrated Care,"3,158.40"
12133524,11/05/2018,04/05/2018,3012563,Personal detail - redacted,,Bi-Borough Director of Integrated Care,902.4
12162790,08/06/2018,04/06/2018,3012563,Personal detail - redacted,,Bi-Borough Director of Integrated Care,902.4
12120879,30/04/2018,27/04/2018,3031611,Personal detail - redacted,,Director of Integrated Commissioning,600
12098249,09/04/2018,05/04/2018,3009322,Altwood Housing Limited,,Family Services 2,"1,209.60"
12115461,25/04/2018,13/04/2018,3009322,Altwood Housing Limited,,Bi-Borough Director of Integrated Care,840
12145801,23/05/2018,15/05/2018,3009322,Altwood Housing Limited,,Bi-Borough Director of Integrated Care,840
12143428,21/05/2018,17/05/2018,3009322,Altwood Housing Limited,,Family Services 2,792
12148117,25/05/2018,23/05/2018,3009322,Altwood Housing Limited,,Family Services 2,"1,339.20"
12148123,25/05/2018,23/05/2018,3009322,Altwood Housing Limited,,Family Services 2,"1,296.00"
12176013,21/06/2018,12/06/2018,3009322,Altwood Housing Limited,,Bi-Borough Director of Integrated Care,840
3424525,09/05/2018,25/04/2018,3031051,Rapid Office Systems Ltd,,WAES Director (Principal),712.2
3424526,09/05/2018,25/04/2018,3031051,Rapid Office Systems Ltd,,WAES Director (Principal),950
3424527,09/05/2018,25/04/2018,3031051,Rapid Office Systems Ltd,,WAES Director (Principal),717
12178867,26/06/2018,25/06/2018,3009322,Altwood Housing Limited,,Family Services 2,"1,339.20"
3417413,26/04/2018,31/03/2018,3009322,Altwood Housing Limited,,Housing Operations,"46,252.00"
3428579,11/05/2018,30/04/2018,3009322,Altwood Housing Limited,,Housing Operations,"53,896.00"
3430200,14/05/2018,11/05/2018,3009322,Altwood Housing Limited,,Director of Finance and Resources,690
3443657,13/06/2018,11/06/2018,3009322,Altwood Housing Limited,,Director of Finance and Resources,"1,391.60"
12104654,13/04/2018,09/04/2018,3009023,Personal detail - redacted,,Bi-Borough Director of Integrated Care,"2,816.24"
3442270,08/06/2018,23/05/2018,3010914,Moorhouse Pre-School,,WAES Director (Principal),"1,080.00"
3404406,03/04/2018,02/03/2018,3018611,Encouragement Through the Arts and Talking,,"Policy, Performance and Communications","1,210.73"
12133528,11/05/2018,04/05/2018,3009023,Personal detail - redacted,,Bi-Borough Director of Integrated Care,"2,816.24"
12162793,08/06/2018,04/06/2018,3009023,Personal detail - redacted,,Bi-Borough Director of Integrated Care,"2,816.24"
3415565,13/04/2018,14/03/2018,3028156,Osborne Property Services Ltd,,HRA City West Homes,"16,583.65"
3416295,27/04/2018,29/03/2018,3029719,TMP (UK) Ltd,,Public Protection and Licensing,"3,299.80"
3434166,15/06/2018,17/05/2018,3029719,TMP (UK) Ltd,,"Growth, Planning and Housing","12,630.00"
3437063,22/06/2018,24/05/2018,3029719,TMP (UK) Ltd,,Public Protection and Licensing,850
3408570,06/04/2018,08/03/2018,3029719,TMP (UK) Ltd,,Development Planning,"2,303.00"
3408571,06/04/2018,08/03/2018,3029719,TMP (UK) Ltd,,Public Protection and Licensing,970
3415602,13/04/2018,15/03/2018,3029719,TMP (UK) Ltd,,Bi-Borough Director of Integrated Care,"1,147.00"
3415603,02/05/2018,22/03/2018,3029719,TMP (UK) Ltd,,Family Services 2,"14,120.18"
3420655,11/05/2018,12/04/2018,3029719,TMP (UK) Ltd,,"Policy, Performance and Communications","1,683.50"
3422093,11/05/2018,12/04/2018,3029719,TMP (UK) Ltd,,Housing Operations,"1,147.00"
3430662,08/06/2018,10/05/2018,3029719,TMP (UK) Ltd,,Public Protection and Licensing,"1,233.00"
3419280,01/05/2018,01/04/2018,3013434,Behavioural Educational Services,,Education,"1,635.00"
3410036,03/04/2018,24/11/2017,3005880,Bevan Brittan Llp,,"Growth, Planning and Housing","4,635.85"
3433536,31/05/2018,01/05/2018,3013434,Behavioural Educational Services,,Education,"1,635.00"
3443849,29/06/2018,01/06/2018,3013434,Behavioural Educational Services,,Education,"1,635.00"
3410037,09/04/2018,24/01/2018,3005880,Bevan Brittan Llp,,"Growth, Planning and Housing","4,346.00"
12104530,13/04/2018,09/04/2018,3003841,Personal detail - redacted,,Bi-Borough Director of Integrated Care,"3,043.72"
12133405,11/05/2018,04/05/2018,3003841,Personal detail - redacted,,Bi-Borough Director of Integrated Care,"3,043.72"
12162672,08/06/2018,04/06/2018,3003841,Personal detail - redacted,,Bi-Borough Director of Integrated Care,"3,043.72"
3419580,16/04/2018,01/04/2018,3013802,Violet Hill House Residents Association,,HRA City West Homes,863.97
3414254,16/05/2018,23/03/2018,3030361,Personal detail - redacted,,Family Services 2,808
3428706,09/05/2018,16/10/2017,3011666,Teachers2Parents Ltd,,Schools,769
3410040,09/04/2018,09/03/2018,3005880,Bevan Brittan Llp,,"Growth, Planning and Housing","2,573.00"
3422599,08/05/2018,10/04/2018,3005880,Bevan Brittan Llp,,"Growth, Planning and Housing",772
3425135,25/05/2018,26/04/2018,3000792,Northern Trust,,Tri-Borough Treasury and Pensions,"3,318.60"
3430605,14/05/2018,05/02/2018,3011666,Teachers2Parents Ltd,,Schools,769
3424842,27/04/2018,30/10/2017,3000107,Staying First,,Housing Operations,741.67
3424831,27/04/2018,22/11/2017,3000107,Staying First,,Housing Operations,681.68
3424832,27/04/2018,27/11/2017,3000107,Staying First,,Housing Operations,576.67
3424833,27/04/2018,27/11/2017,3000107,Staying First,,Housing Operations,516.68
3424834,27/04/2018,15/12/2017,3000107,Staying First,,Housing Operations,576.68
3424835,27/04/2018,18/12/2017,3000107,Staying First,,Housing Operations,595
3424836,27/04/2018,21/12/2017,3000107,Staying First,,Housing Operations,951.67
3424825,27/04/2018,21/12/2017,3000107,Staying First,,Housing Operations,718.34
3437624,30/05/2018,31/01/2017,3005017,Partner Abuse Intervention Ltd,,Family Services 2,"2,340.00"
3424827,27/04/2018,31/01/2018,3000107,Staying First,,Housing Operations,570
3424829,27/04/2018,08/02/2018,3000107,Staying First,,Housing Operations,993.35
3424830,27/04/2018,01/03/2018,3000107,Staying First,,Housing Operations,786.67
3424819,27/04/2018,01/03/2018,3000107,Staying First,,Housing Operations,540.84
3424823,27/04/2018,28/03/2018,3000107,Staying First,,Housing Operations,615.84
3428310,25/05/2018,30/04/2018,3017630,ITS Testing Services (UK) Ltd,,Public Protection and Licensing,"1,665.00"
3428311,25/05/2018,30/04/2018,3017630,ITS Testing Services (UK) Ltd,,Public Protection and Licensing,"1,452.00"
3443146,11/06/2018,16/01/2018,3011666,Teachers2Parents Ltd,,Schools,749
3437646,04/06/2018,17/03/2017,3001722,Ricoh Uk Ltd,,Corporate Services Trading,"1,739.90"
3430217,14/05/2018,11/05/2018,3999999,Amersham Investment Management Ltd,,Economy,"2,000.00"
3437647,04/06/2018,09/04/2017,3001722,Ricoh Uk Ltd,,Corporate Services Trading,"2,634.69"
3420403,17/04/2018,11/01/2018,3002876,Westminster City School,,Schools,"28,164.63"
3437648,04/06/2018,11/05/2017,3001722,Ricoh Uk Ltd,,Corporate Services Trading,"10,210.19"
3437649,04/06/2018,07/06/2017,3001722,Ricoh Uk Ltd,,Corporate Services Trading,"5,599.13"
3427092,23/05/2018,13/09/2017,3001722,Ricoh Uk Ltd,,WAES Director (Principal),"4,722.44"
3417818,11/04/2018,02/02/2018,3002876,Westminster City School,,Schools,"10,074.99"
12120367,30/04/2018,26/04/2018,3002324,Personal detail - redacted,,Family Services 1,918
3426545,23/05/2018,16/10/2017,3001722,Ricoh Uk Ltd,,WAES Director (Principal),"1,533.14"
12127540,04/05/2018,02/05/2018,3002324,Personal detail - redacted,,Family Services 2,"1,166.00"
3438038,30/05/2018,09/11/2017,3001722,Ricoh Uk Ltd,,WAES Director (Principal),"2,496.40"
3424460,02/05/2018,17/04/2018,3013830,Atlantis Estates Ltd,,HRA City West Homes,779.81
3427719,11/05/2018,02/05/2018,3011272,Jms Estates (Iom) Ltd,,Housing Operations,"4,167.47"
3427719,11/05/2018,02/05/2018,3011272,Jms Estates (Iom) Ltd,,Housing Operations,"94,895.83"
3438039,30/05/2018,11/12/2017,3001722,Ricoh Uk Ltd,,WAES Director (Principal),"6,490.96"
3420405,20/04/2018,06/04/2018,3002876,Westminster City School,,Schools,"15,424.74"
3416642,09/04/2018,07/03/2018,3001722,Ricoh Uk Ltd,,Schools,560.34
3430124,14/05/2018,13/03/2018,3011254,Essex County Council,,Schools,701
3420601,16/04/2018,07/02/2018,3025957,Ove Arup & Partners Ltd,,HRA City West Homes,"124,999.99"
3422872,23/04/2018,14/03/2018,3011254,Essex County Council,,Schools,"1,153.00"
3428070,16/05/2018,02/05/2018,3002876,Westminster City School,,Schools,"17,176.20"
3434642,04/06/2018,19/03/2018,3001722,Ricoh Uk Ltd,,Corporate Services Trading,"7,462.96"
3434643,23/05/2018,26/03/2018,3001722,Ricoh Uk Ltd,,Procurement Services,"29,647.05"
3434645,24/05/2018,12/04/2018,3001722,Ricoh Uk Ltd,,Procurement Services,"5,731.19"
3424314,29/05/2018,13/04/2018,3001722,Ricoh Uk Ltd,,Corporate Services Trading,"2,563.74"
3434653,06/06/2018,07/05/2018,3001722,Ricoh Uk Ltd,,WAES Director (Principal),898.54
3435341,13/06/2018,14/05/2018,3001722,Ricoh Uk Ltd,,Corporate Services Trading,"9,527.34"
3435344,13/06/2018,14/05/2018,3001722,Ricoh Uk Ltd,,Procurement Services,"4,435.41"
12158351,04/06/2018,31/05/2018,3002324,Personal detail - redacted,,Family Services 3,"1,707.43"
3415540,06/04/2018,28/02/2018,3025957,Ove Arup & Partners Ltd,,West End Place Programme,"6,716.16"
3415541,11/04/2018,01/03/2018,3025957,Ove Arup & Partners Ltd,,HRA City West Homes,"1,150.00"
3415542,11/04/2018,01/03/2018,3025957,Ove Arup & Partners Ltd,,HRA City West Homes,"1,150.00"
3415543,11/04/2018,01/03/2018,3025957,Ove Arup & Partners Ltd,,HRA City West Homes,"125,000.00"
3410510,13/04/2018,14/03/2018,3025957,Ove Arup & Partners Ltd,,"Growth, Planning and Housing","101,632.00"
12163343,11/06/2018,07/06/2018,3002324,Personal detail - redacted,,Family Services 3,664
12168831,15/06/2018,13/06/2018,3002324,Personal detail - redacted,,Family Services 3,664
3439172,01/06/2018,02/04/2018,3029577,Mayday Trust,,Housing Operations,"123,325.00"
3446255,18/06/2018,30/03/2018,3025957,Ove Arup & Partners Ltd,,HRA City West Homes,"23,500.00"
12175135,20/06/2018,20/06/2018,3002324,Personal detail - redacted,,Family Services 1,"1,049.14"
3437485,04/06/2018,30/03/2018,3025957,Ove Arup & Partners Ltd,,Place Shaping,"12,038.91"
3419610,01/05/2018,01/04/2018,3025957,Ove Arup & Partners Ltd,,HRA City West Homes,"225,000.00"
12167863,14/06/2018,30/04/2018,3000115,Westminster Society,,Bi-Borough Director of Integrated Care,544
3432941,31/05/2018,01/05/2018,3025957,Ove Arup & Partners Ltd,,HRA City West Homes,"121,850.00"
3438763,04/06/2018,29/05/2017,3002914,Look Ahead Housing & Care Ltd ,,Housing Operations,"113,492.00"
3438585,28/06/2018,29/05/2018,3025957,Ove Arup & Partners Ltd,,Place Shaping,"23,371.98"
12177962,25/06/2018,21/06/2018,3002324,Personal detail - redacted,,Family Services 3,664
3447382,29/06/2018,30/05/2018,3028156,Osborne Property Services Ltd,,HRA City West Homes,"79,090.28"
3420543,10/05/2018,10/04/2018,3013466,Parayhouse School,,Education,"6,123.00"
12121242,30/04/2018,25/04/2018,3009005,Anchor Trust,,Bi-Borough Director of Integrated Care,"2,404.00"
3443853,18/06/2018,04/06/2018,3015857,Education Business Associates Ltd,,Education,"1,020.00"
12121249,30/04/2018,25/04/2018,3009005,Anchor Trust,,Bi-Borough Director of Integrated Care,"2,404.00"
3427713,01/06/2018,02/05/2018,3009847,Proludic Limited,,HRA City West Homes,737.63
12121260,30/04/2018,25/04/2018,3009005,Anchor Trust,,Bi-Borough Director of Integrated Care,"32,589.82"
12177749,22/06/2018,18/03/2018,3002950,Zocalo Ltd T/as Bluebird Care,,Bi-Borough Director of Integrated Care,"2,003.75"
12177757,22/06/2018,18/04/2018,3002950,Zocalo Ltd T/as Bluebird Care,,Bi-Borough Director of Integrated Care,"1,785.00"
3430147,08/06/2018,10/05/2018,3025964,SSE Telecommunications Ltd,,City Management and Communities,"2,547.23"
3420544,10/05/2018,10/04/2018,3013466,Parayhouse School,,Education,"6,123.00"
3419000,17/04/2018,01/03/2018,3021096,Copyrite Business Solutions Ltd,,Schools,576.62
12167864,14/06/2018,30/04/2018,3000115,Westminster Society,,Bi-Borough Director of Integrated Care,544
3410078,09/04/2018,11/03/2018,3012201,Morgan Hunt Public Sector Ltd,,WAES Director (Principal),583.54
3410083,09/04/2018,11/03/2018,3012201,Morgan Hunt Public Sector Ltd,,WAES Director (Principal),668.16
12121268,30/04/2018,25/04/2018,3009005,Anchor Trust,,Bi-Borough Director of Integrated Care,"2,404.00"
3415280,09/04/2018,18/03/2018,3012201,Morgan Hunt Public Sector Ltd,,WAES Director (Principal),631.09
3408379,06/04/2018,09/03/2018,3012479,Envoy Partnership Ltd,,Public Health,"9,100.00"
3415286,09/04/2018,25/03/2018,3012201,Morgan Hunt Public Sector Ltd,,WAES Director (Principal),605.15
12121271,30/04/2018,25/04/2018,3009005,Anchor Trust,,Bi-Borough Director of Integrated Care,"2,404.00"
12121275,30/04/2018,25/04/2018,3009005,Anchor Trust,,Bi-Borough Director of Integrated Care,"2,404.00"
3416805,13/04/2018,01/04/2018,3012201,Morgan Hunt Public Sector Ltd,,WAES Director (Principal),527.35
3415522,19/04/2018,16/03/2018,3025414,Castle Water Ltd,,HRA City West Homes,"2,200.72"
3420545,10/05/2018,10/04/2018,3013466,Parayhouse School,,Education,"6,123.00"
12121278,30/04/2018,25/04/2018,3009005,Anchor Trust,,Bi-Borough Director of Integrated Care,"2,404.00"
3424421,10/05/2018,22/04/2018,3012201,Morgan Hunt Public Sector Ltd,,WAES Director (Principal),753.1
3427548,11/05/2018,29/04/2018,3012201,Morgan Hunt Public Sector Ltd,,WAES Director (Principal),872.71
3429803,18/05/2018,06/05/2018,3012201,Morgan Hunt Public Sector Ltd,,WAES Director (Principal),894.86
3433648,21/05/2018,27/03/2018,3021096,Copyrite Business Solutions Ltd,,Schools,616.22
3418034,10/04/2018,17/03/2018,3025414,Castle Water Ltd,,Tri-borough Libraries and Archives,770.33
3432426,25/05/2018,13/05/2018,3012201,Morgan Hunt Public Sector Ltd,,WAES Director (Principal),915.59
12121286,30/04/2018,25/04/2018,3009005,Anchor Trust,,Bi-Borough Director of Integrated Care,"2,404.00"
3435488,01/06/2018,20/05/2018,3012201,Morgan Hunt Public Sector Ltd,,WAES Director (Principal),753.1
3404928,04/04/2018,05/03/2018,3007718,Places For People Homes Ltd,,Housing Operations,"6,000.00"
3420546,10/05/2018,10/04/2018,3013466,Parayhouse School,,Education,"6,123.00"
3438682,08/06/2018,27/05/2018,3012201,Morgan Hunt Public Sector Ltd,,WAES Director (Principal),629.06
3406057,03/04/2018,02/03/2018,3028696,Cuttle Construction Ltd,,HRA City West Homes,"139,633.60"
3415580,25/04/2018,26/03/2018,3028696,Cuttle Construction Ltd,,HRA City West Homes,"100,776.81"
3431566,30/05/2018,24/04/2018,3028696,Cuttle Construction Ltd,,HRA City West Homes,"173,126.33"
3434380,20/06/2018,21/05/2018,3028696,Cuttle Construction Ltd,,HRA City West Homes,"69,744.70"
3446017,22/06/2018,10/06/2018,3012201,Morgan Hunt Public Sector Ltd,,WAES Director (Principal),886
3434347,25/05/2018,30/04/2018,3016268,Aspect Landscape Planning LTD,,HRA City West Homes,"1,096.50"
3428956,11/05/2018,09/05/2018,3030024,Places For People Group Ltd,,Housing Operations,"65,589.00"
3428956,11/05/2018,09/05/2018,3030024,Places For People Group Ltd,,Housing Operations,"327,945.00"
3433303,11/06/2018,18/05/2018,3030024,Places For People Group Ltd,,Housing Operations,"41,589.25"
3433303,11/06/2018,18/05/2018,3030024,Places For People Group Ltd,,Housing Operations,"8,317.85"
3448728,29/06/2018,17/06/2018,3012201,Morgan Hunt Public Sector Ltd,,WAES Director (Principal),726.52
3427693,01/06/2018,02/05/2018,3007718,Places For People Homes Ltd,,Housing Operations,"3,000.00"
3433298,05/06/2018,18/05/2018,3030024,Places For People Group Ltd,,Housing Operations,"65,589.00"
3433298,05/06/2018,18/05/2018,3030024,Places For People Group Ltd,,Housing Operations,"327,945.00"
3433299,05/06/2018,18/05/2018,3030024,Places For People Group Ltd,,Housing Operations,"43,725.98"
3433299,05/06/2018,18/05/2018,3030024,Places For People Group Ltd,,Housing Operations,"218,629.90"
3433301,11/06/2018,18/05/2018,3030024,Places For People Group Ltd,,Housing Operations,"31,008.33"
3433301,11/06/2018,18/05/2018,3030024,Places For People Group Ltd,,Housing Operations,"6,201.67"
3420682,11/05/2018,13/04/2018,3017740,Luton Swimming Pool Supplies,,Schools,685
3405402,10/05/2018,28/02/2018,3001917,Continental Landscapes Ltd,,HRA City West Homes,940
3409729,12/04/2018,13/03/2018,3001917,Continental Landscapes Ltd,,Waste and Parks,"130,463.12"
3409730,12/04/2018,13/03/2018,3001917,Continental Landscapes Ltd,,Waste and Parks,"6,273.25"
3409731,12/04/2018,13/03/2018,3001917,Continental Landscapes Ltd,,Waste and Parks,"51,187.00"
3409732,12/04/2018,13/03/2018,3001917,Continental Landscapes Ltd,,Waste and Parks,"77,880.00"
3409721,12/04/2018,13/03/2018,3001917,Continental Landscapes Ltd,,Waste and Parks,"2,500.00"
3409722,12/04/2018,13/03/2018,3001917,Continental Landscapes Ltd,,Waste and Parks,"1,000.00"
3409679,12/04/2018,13/03/2018,3001917,Continental Landscapes Ltd,,Waste and Parks,"1,590.00"
3409681,12/04/2018,13/03/2018,3001917,Continental Landscapes Ltd,,Waste and Parks,"12,753.10"
3409682,12/04/2018,13/03/2018,3001917,Continental Landscapes Ltd,,Waste and Parks,"41,900.00"
3409683,12/04/2018,13/03/2018,3001917,Continental Landscapes Ltd,,Waste and Parks,"6,125.60"
3409684,12/04/2018,13/03/2018,3001917,Continental Landscapes Ltd,,Waste and Parks,"3,475.14"
3409673,12/04/2018,13/03/2018,3001917,Continental Landscapes Ltd,,Waste and Parks,"1,260.00"
3409674,12/04/2018,13/03/2018,3001917,Continental Landscapes Ltd,,Waste and Parks,"3,935.27"
3409675,12/04/2018,13/03/2018,3001917,Continental Landscapes Ltd,,Waste and Parks,"6,105.00"
3409677,12/04/2018,13/03/2018,3001917,Continental Landscapes Ltd,,Waste and Parks,"15,000.00"
3409678,12/04/2018,13/03/2018,3001917,Continental Landscapes Ltd,,Waste and Parks,"2,588.48"
3409667,12/04/2018,13/03/2018,3001917,Continental Landscapes Ltd,,Waste and Parks,"1,524.60"
3409668,12/04/2018,13/03/2018,3001917,Continental Landscapes Ltd,,Waste and Parks,"30,275.75"
3415066,13/04/2018,15/03/2018,3001917,Continental Landscapes Ltd,,Waste and Parks,"1,690.08"
3417792,30/04/2018,31/03/2018,3001917,Continental Landscapes Ltd,,HRA City West Homes,"1,514.10"
3417793,30/04/2018,31/03/2018,3001917,Continental Landscapes Ltd,,HRA City West Homes,"1,477.80"
3417797,30/04/2018,31/03/2018,3001917,Continental Landscapes Ltd,,HRA City West Homes,"1,860.00"
3417798,30/04/2018,31/03/2018,3001917,Continental Landscapes Ltd,,HRA City West Homes,806.55
3417801,30/04/2018,31/03/2018,3001917,Continental Landscapes Ltd,,HRA City West Homes,"1,156.50"
3428639,30/05/2018,30/04/2018,3001917,Continental Landscapes Ltd,,Waste and Parks,"133,072.34"
3428640,30/05/2018,30/04/2018,3001917,Continental Landscapes Ltd,,Waste and Parks,"1,410.75"
3428641,30/05/2018,30/04/2018,3001917,Continental Landscapes Ltd,,Waste and Parks,"30,881.26"
3428642,30/05/2018,30/04/2018,3001917,Continental Landscapes Ltd,,Waste and Parks,"12,823.20"
3428643,30/05/2018,30/04/2018,3001917,Continental Landscapes Ltd,,Waste and Parks,"6,398.71"
3441332,29/06/2018,31/05/2018,3001917,Continental Landscapes Ltd,,Community Services,"5,557.51"
3441333,29/06/2018,31/05/2018,3001917,Continental Landscapes Ltd,,Waste and Parks,"18,880.00"
3441334,29/06/2018,31/05/2018,3001917,Continental Landscapes Ltd,,Waste and Parks,"1,062.71"
3441335,29/06/2018,31/05/2018,3001917,Continental Landscapes Ltd,,Waste and Parks,"133,072.34"
3441336,29/06/2018,31/05/2018,3001917,Continental Landscapes Ltd,,Waste and Parks,"6,398.71"
3441337,29/06/2018,31/05/2018,3001917,Continental Landscapes Ltd,,Waste and Parks,"12,823.20"
3441338,29/06/2018,31/05/2018,3001917,Continental Landscapes Ltd,,Waste and Parks,"30,881.26"
3441339,29/06/2018,31/05/2018,3001917,Continental Landscapes Ltd,,"Policy, Performance and Communications","17,633.00"
3441340,29/06/2018,31/05/2018,3001917,Continental Landscapes Ltd,,HRA City West Homes,"4,102.00"
3441341,29/06/2018,31/05/2018,3001917,Continental Landscapes Ltd,,HRA City West Homes,"1,390.50"
3441343,29/06/2018,31/05/2018,3001917,Continental Landscapes Ltd,,HRA City West Homes,"5,985.00"
3406534,05/04/2018,26/02/2018,3000002,Gva Grimley Ltd,,Property Investments and Estates,900
3423940,08/05/2018,27/03/2018,3025414,Castle Water Ltd,,Schools,763
3435200,20/06/2018,21/05/2018,3027579,Neilcott Construction Ltd,,Schools,"19,700.00"
12182560,27/06/2018,30/06/2018,3000115,Westminster Society,,Bi-Borough Director of Integrated Care,"1,003.00"
3422084,24/04/2018,27/02/2018,3027973,Russell Trew Ltd,,HRA City West Homes,"31,416.28"
3424913,16/05/2018,09/04/2018,3025414,Castle Water Ltd,,Schools,690.03
3435007,23/05/2018,21/03/2018,3017953,Wates Construction Ltd,,HRA City West Homes,"18,300.39"
3404125,11/04/2018,28/02/2018,3015115,Icon Building Consultancy,,Community Services,"4,000.00"
3410067,11/04/2018,12/03/2018,3010991,Glemnet Limited,,HRA City West Homes,"1,210.26"
3419092,09/05/2018,09/04/2018,3000919,Wates Living Space,,HRA City West Homes,"97,672.66"
3415466,04/04/2018,28/02/2018,3017745,London Communications Agency,,HRA City West Homes,"5,362.24"
3419397,10/05/2018,10/04/2018,3000919,Wates Living Space,,HRA City West Homes,"109,383.59"
12121301,30/04/2018,25/04/2018,3009005,Anchor Trust,,Bi-Borough Director of Integrated Care,"2,404.00"
12121311,30/04/2018,25/04/2018,3009005,Anchor Trust,,Bi-Borough Director of Integrated Care,"2,404.00"
12121313,30/04/2018,25/04/2018,3009005,Anchor Trust,,Bi-Borough Director of Integrated Care,"2,404.00"
12121318,30/04/2018,25/04/2018,3009005,Anchor Trust,,Bi-Borough Director of Integrated Care,"2,404.00"
12121320,30/04/2018,25/04/2018,3009005,Anchor Trust,,Bi-Borough Director of Integrated Care,"2,404.00"
12121328,30/04/2018,25/04/2018,3009005,Anchor Trust,,Bi-Borough Director of Integrated Care,"2,404.00"
12121330,30/04/2018,25/04/2018,3009005,Anchor Trust,,Bi-Borough Director of Integrated Care,"2,404.00"
3430436,23/05/2018,18/04/2018,3017953,Wates Construction Ltd,,HRA City West Homes,"36,257.02"
3445778,20/06/2018,30/04/2018,3027973,Russell Trew Ltd,,HRA City West Homes,"7,640.91"
3420167,11/05/2018,12/04/2018,3010991,Glemnet Limited,,HRA City West Homes,"1,210.26"
3418968,11/04/2018,27/02/2018,3006362,Fit For Sport Ltd,,Schools,615
3422983,23/04/2018,04/09/2017,3020788,Bunn & Co,,Director of Integrated Commissioning,"1,732.95"
3421045,30/04/2018,31/03/2018,3017745,London Communications Agency,,HRA City West Homes,"1,006.72"
3428573,09/05/2018,03/05/2018,3009446,Nablodge Ltd,,Housing Operations,"3,448.61"
3428573,09/05/2018,03/05/2018,3009446,Nablodge Ltd,,Housing Operations,"56,138.29"
3444793,14/06/2018,04/06/2018,3009446,Nablodge Ltd,,Housing Operations,"56,928.81"
3444793,14/06/2018,04/06/2018,3009446,Nablodge Ltd,,Housing Operations,"4,644.32"
3418046,04/05/2018,05/04/2018,3028156,Osborne Property Services Ltd,,HRA City West Homes,"11,118.25"
3419306,27/04/2018,28/03/2018,3029302,Personal detail - redacted,,"Policy, Performance and Communications",755.5
3442568,27/06/2018,07/06/2018,3000919,Wates Living Space,,HRA City West Homes,"683,824.27"
3431820,08/06/2018,11/05/2018,3010991,Glemnet Limited,,HRA City West Homes,"1,210.26"
12121337,30/04/2018,25/04/2018,3009005,Anchor Trust,,Bi-Borough Director of Integrated Care,"2,404.00"
12121340,30/04/2018,25/04/2018,3009005,Anchor Trust,,Bi-Borough Director of Integrated Care,"2,404.00"
3440619,19/06/2018,31/01/2015,3005467,Sharpe Pritchard,,Property Investments and Estates,920
3416705,30/04/2018,31/03/2018,3002571,Action On Addiction,,Public Health,"6,666.63"
3415862,30/04/2018,31/03/2018,3002571,Action On Addiction,,Public Health,738.6
3440819,13/06/2018,24/04/2018,3025414,Castle Water Ltd,,Property Investments and Estates,542.8
3448488,27/06/2018,27/02/2018,3021753,Housing Systems Ltd,,HRA City West Homes,795
3433632,21/05/2018,24/04/2018,3025414,Castle Water Ltd,,Schools,517.61
3404319,03/04/2018,02/03/2018,3012087,Heeran Construction Ltd,,Property Investments and Estates,"9,900.00"
3404321,03/04/2018,02/03/2018,3012087,Heeran Construction Ltd,,Property Investments and Estates,"6,845.00"
3404755,03/04/2018,03/03/2018,3012087,Heeran Construction Ltd,,Property Investments and Estates,"138,339.47"
12121341,30/04/2018,25/04/2018,3009005,Anchor Trust,,Bi-Borough Director of Integrated Care,"2,404.00"
3431222,30/05/2018,30/04/2018,3017745,London Communications Agency,,HRA City West Homes,"1,444.56"
3405527,05/04/2018,06/03/2018,3012087,Heeran Construction Ltd,,Property Investments and Estates,"4,450.00"
3433090,25/05/2018,30/04/2018,3015115,Icon Building Consultancy,,Community Services,750
3408838,09/04/2018,10/03/2018,3012087,Heeran Construction Ltd,,Property Investments and Estates,"65,674.83"
3446832,18/06/2018,30/05/2018,3016822,Alpha Fire Alarms Ltd,,Community Services,"1,980.00"
3408985,11/04/2018,12/03/2018,3012087,Heeran Construction Ltd,,Property Investments and Estates,"3,925.00"
3430552,14/05/2018,28/03/2018,3006362,Fit For Sport Ltd,,Schools,840
3408986,11/04/2018,12/03/2018,3012087,Heeran Construction Ltd,,Tri-borough Libraries and Archives,"80,623.65"
3409883,11/04/2018,12/03/2018,3012087,Heeran Construction Ltd,,Property Investments and Estates,"27,009.43"
3409884,12/04/2018,13/03/2018,3012087,Heeran Construction Ltd,,Property Investments and Estates,"2,300.00"
3423104,08/05/2018,14/03/2018,3012087,Heeran Construction Ltd,,Schools,"46,550.00"
3419802,11/05/2018,11/04/2018,3012087,Heeran Construction Ltd,,Tri-borough Libraries and Archives,"33,576.32"
3408884,16/04/2018,05/03/2018,3021404,Penina Social Work Services Ltd,,Family Services 3,"2,000.00"
3419801,11/05/2018,11/04/2018,3012087,Heeran Construction Ltd,,Property Investments and Estates,"79,507.88"
3422657,20/04/2018,29/12/2017,3020788,Bunn & Co,,Director of Integrated Commissioning,"1,774.61"
3421386,16/05/2018,16/04/2018,3012087,Heeran Construction Ltd,,Education,"9,200.00"
12157431,01/06/2018,24/05/2018,3009005,Anchor Trust,,Bi-Borough Director of Integrated Care,"2,404.00"
3447891,29/06/2018,31/05/2018,3017745,London Communications Agency,,HRA City West Homes,"2,984.80"
3422638,18/05/2018,19/04/2018,3012087,Heeran Construction Ltd,,Property Investments and Estates,"9,144.10"
3440541,28/06/2018,31/05/2018,3015115,Icon Building Consultancy,,Community Services,"7,500.00"
3410071,11/04/2018,14/03/2018,3011669,Turn It On,,Schools,"3,951.00"
3422639,18/05/2018,19/04/2018,3012087,Heeran Construction Ltd,,Property Investments and Estates,"9,875.95"
3426668,16/05/2018,18/04/2018,3011669,Turn It On,,Schools,"1,600.00"
3422869,18/05/2018,19/04/2018,3012087,Heeran Construction Ltd,,HRA City West Homes,"2,470.00"
3428241,25/05/2018,30/04/2018,3006362,Fit For Sport Ltd,,Schools,691.13
12157437,01/06/2018,24/05/2018,3009005,Anchor Trust,,Bi-Borough Director of Integrated Care,"2,404.00"
3447482,19/06/2018,04/04/2017,3000145,John Pulseford Associates Ltd,,Highways Infrastructure & Public Realm,"9,399.20"
3425020,25/05/2018,25/04/2018,3012087,Heeran Construction Ltd,,Schools,"46,550.00"
3431088,13/06/2018,14/05/2018,3012087,Heeran Construction Ltd,,Property Investments and Estates,"5,970.00"
3422656,20/04/2018,26/02/2018,3020788,Bunn & Co,,Director of Integrated Commissioning,"1,774.66"
3424219,16/05/2018,18/04/2018,3011669,Turn It On,,Schools,550
3433128,15/06/2018,17/05/2018,3012087,Heeran Construction Ltd,,Property Investments and Estates,"8,972.10"
3426669,17/05/2018,19/04/2018,3011669,Turn It On,,Schools,"2,028.00"
3420547,10/05/2018,10/04/2018,3013466,Parayhouse School,,Education,"6,123.00"
3433129,15/06/2018,17/05/2018,3012087,Heeran Construction Ltd,,Chief Executive's Office,"8,154.88"
3421773,19/04/2018,07/12/2017,3000807,Financial Data Management Ltd,,"Policy, Performance and Communications","3,688.76"
12131616,09/05/2018,01/09/2017,3000115,Westminster Society,,Bi-Borough Director of Integrated Care,"2,125.00"
3424748,17/05/2018,19/04/2018,3011669,Turn It On,,Schools,"6,785.66"
3447206,19/06/2018,19/04/2018,3011669,Turn It On,,Schools,"8,150.67"
3433118,15/06/2018,17/05/2018,3012087,Heeran Construction Ltd,,Chief Executive's Office,"7,125.00"
3433119,15/06/2018,17/05/2018,3012087,Heeran Construction Ltd,,Chief Executive's Office,"3,300.00"
3421894,19/04/2018,29/12/2017,3000807,Financial Data Management Ltd,,"Policy, Performance and Communications","1,195.56"
3433120,15/06/2018,17/05/2018,3012087,Heeran Construction Ltd,,Chief Executive's Office,"3,360.00"
3414979,04/04/2018,31/01/2018,3000807,Financial Data Management Ltd,,Chief Executive's Office,"34,264.64"
3435538,25/05/2018,11/05/2018,3025414,Castle Water Ltd,,Schools,575.91
3425017,23/05/2018,25/04/2018,3011669,Turn It On,,Schools,"1,295.00"
3433121,15/06/2018,17/05/2018,3012087,Heeran Construction Ltd,,Chief Executive's Office,"4,856.00"
3435264,21/06/2018,22/05/2018,3012087,Heeran Construction Ltd,,Schools,"38,950.00"
3418106,10/04/2018,28/02/2018,3000807,Financial Data Management Ltd,,Chief Executive's Office,"1,955.60"
3432903,30/05/2018,02/05/2018,3011669,Turn It On,,Schools,912.08
3447515,27/06/2018,30/05/2018,3006362,Fit For Sport Ltd,,Schools,746.75
3437165,22/06/2018,24/05/2018,3012087,Heeran Construction Ltd,,Property Investments and Estates,"78,591.12"
3432904,14/06/2018,17/05/2018,3011669,Turn It On,,Schools,995
3424307,01/05/2018,01/04/2018,3000807,Financial Data Management Ltd,,Chief Executive's Office,"35,084.64"
3441957,19/06/2018,22/05/2018,3011669,Turn It On,,Schools,550
3442606,28/06/2018,29/05/2018,3012087,Heeran Construction Ltd,,Property Investments and Estates,"7,934.00"
12133998,11/05/2018,02/05/2018,3016720,Watret & Company Ltd,,HRA City West Homes,"2,690.00"
3441898,28/06/2018,29/05/2018,3012087,Heeran Construction Ltd,,Property Investments and Estates,"27,600.00"
3438685,28/06/2018,29/05/2018,3012087,Heeran Construction Ltd,,Property Investments and Estates,"12,600.00"
3420675,17/04/2018,08/03/2018,3018330,Six Degrees Technology Group Ltd,,WAES Director (Principal),"1,075.66"
3438686,28/06/2018,29/05/2018,3012087,Heeran Construction Ltd,,Property Investments and Estates,"20,700.00"
3438687,28/06/2018,29/05/2018,3012087,Heeran Construction Ltd,,Property Investments and Estates,"14,705.00"
3438688,28/06/2018,29/05/2018,3012087,Heeran Construction Ltd,,Property Investments and Estates,"12,100.00"
3424321,02/05/2018,25/04/2018,3002288,Liral Veget Training and Recruitment Ltd,,WAES Director (Principal),"3,954.42"
3422690,20/04/2018,19/03/2018,3027829,Faraday Property Management Ltd,,HRA City West Homes,"1,988.11"
3428130,10/05/2018,03/05/2018,3002288,Liral Veget Training and Recruitment Ltd,,WAES Director (Principal),"1,922.21"
3438689,28/06/2018,29/05/2018,3012087,Heeran Construction Ltd,,Property Investments and Estates,"21,422.36"
3422689,20/04/2018,19/03/2018,3027829,Faraday Property Management Ltd,,HRA City West Homes,"2,148.52"
3439646,29/06/2018,31/05/2018,3012087,Heeran Construction Ltd,,Property Investments and Estates,"2,315.00"
3421863,11/05/2018,11/04/2018,3018330,Six Degrees Technology Group Ltd,,WAES Director (Principal),"2,490.00"
3439647,29/06/2018,31/05/2018,3012087,Heeran Construction Ltd,,Property Investments and Estates,"10,910.00"
3421860,19/04/2018,21/03/2018,3016093,Assisi Community Care,,Public Health,"5,153.98"
3439648,29/06/2018,31/05/2018,3012087,Heeran Construction Ltd,,Property Investments and Estates,"3,330.00"
3431876,08/06/2018,09/05/2018,3018330,Six Degrees Technology Group Ltd,,WAES Director (Principal),"3,840.00"
3439637,29/06/2018,31/05/2018,3012087,Heeran Construction Ltd,,Property Investments and Estates,"8,775.00"
3439638,29/06/2018,31/05/2018,3012087,Heeran Construction Ltd,,Property Investments and Estates,"1,200.00"
3441956,07/06/2018,08/05/2018,3011629,Discovery Education Europe Ltd,,Schools,"1,492.25"
3448847,26/06/2018,20/06/2018,3016720,Watret & Company Ltd,,HRA City West Homes,650
3418087,10/04/2018,06/04/2018,3000173,Queen Alexandra College Enterprises Ltd,,Education,"19,865.04"
3439727,06/06/2018,23/05/2018,3025414,Castle Water Ltd,,HRA City West Homes,"2,441.70"
12157447,01/06/2018,24/05/2018,3009005,Anchor Trust,,Bi-Borough Director of Integrated Care,"32,589.80"
3428543,01/06/2018,02/05/2018,3001193,Key Management Systems Ltd,,HRA City West Homes,"1,570.00"
3431118,08/06/2018,14/05/2018,3013466,Parayhouse School,,Education,"9,457.00"
3441798,29/06/2018,31/05/2018,3001193,Key Management Systems Ltd,,HRA City West Homes,"1,863.35"
3414985,30/04/2018,31/03/2018,3001003,Nelson Trust,,Public Health,"3,240.74"
3415026,30/04/2018,31/03/2018,3001003,Nelson Trust,,Public Health,"2,272.40"
3447267,19/06/2018,25/05/2018,3025414,Castle Water Ltd,,Schools,657.16
12157455,01/06/2018,24/05/2018,3009005,Anchor Trust,,Bi-Borough Director of Integrated Care,"2,404.00"
12097467,06/04/2018,31/03/2018,3010609,Barrie Bookkeeping & Payroll Solutions,,Bi-Borough Director of Integrated Care,849.37
12097466,06/04/2018,31/03/2018,3010609,Barrie Bookkeeping & Payroll Solutions,,Bi-Borough Director of Integrated Care,629.89
12157458,01/06/2018,24/05/2018,3009005,Anchor Trust,,Bi-Borough Director of Integrated Care,"2,404.00"
3415595,20/04/2018,22/03/2018,3029512,The Assembly Line Ltd,,Economy,"4,250.00"
3426635,02/05/2018,29/03/2018,3023370,Oxford Diocesan Council For Social Work Incorporated,,Family Services 3,"3,942.00"
12124781,02/05/2018,04/04/2018,3010609,Barrie Bookkeeping & Payroll Solutions,,Bi-Borough Director of Integrated Care,583.52
12157462,01/06/2018,24/05/2018,3009005,Anchor Trust,,Bi-Borough Director of Integrated Care,"2,404.00"
12134388,14/05/2018,30/04/2018,3001804,Respect Care Services Ltd,,Bi-Borough Director of Integrated Care,789.8
12101913,10/04/2018,22/03/2018,3001804,Respect Care Services Ltd,,Bi-Borough Director of Integrated Care,847.8
12166990,13/06/2018,21/05/2018,3001804,Respect Care Services Ltd,,Bi-Borough Director of Integrated Care,750
3428083,30/05/2018,30/04/2018,3001003,Nelson Trust,,Public Health,"3,136.20"
3265905,01/05/2018,10/01/2017,3005502,Corona Energy Retail 4 Ltd,,Family Services 2,737.03
3428084,30/05/2018,30/04/2018,3001003,Nelson Trust,,Public Health,"1,098.46"
12157464,01/06/2018,24/05/2018,3009005,Anchor Trust,,Bi-Borough Director of Integrated Care,"2,404.00"
12169244,15/06/2018,31/05/2018,3010609,Barrie Bookkeeping & Payroll Solutions,,Bi-Borough Director of Integrated Care,"1,344.96"
12109379,18/04/2018,31/10/2017,3000115,Westminster Society,,Bi-Borough Director of Integrated Care,816
12109377,18/04/2018,31/10/2017,3000115,Westminster Society,,Bi-Borough Director of Integrated Care,816
12157472,01/06/2018,24/05/2018,3009005,Anchor Trust,,Bi-Borough Director of Integrated Care,"2,404.00"
12157487,01/06/2018,24/05/2018,3009005,Anchor Trust,,Bi-Borough Director of Integrated Care,"2,404.00"
3424312,26/04/2018,13/03/2018,3001440,Kwest Business Research Ltd,,HRA City West Homes,"3,794.00"
3441804,29/06/2018,31/05/2018,3001003,Nelson Trust,,Public Health,"1,672.64"
3424313,23/05/2018,25/04/2018,3001440,Kwest Business Research Ltd,,HRA City West Homes,"1,294.20"
12157497,01/06/2018,24/05/2018,3009005,Anchor Trust,,Bi-Borough Director of Integrated Care,"2,404.00"
3435241,24/05/2018,12/03/2018,3013998,Abingdon House School,,Education,"5,520.00"
12157499,01/06/2018,24/05/2018,3009005,Anchor Trust,,Bi-Borough Director of Integrated Care,"2,404.00"
3430014,14/05/2018,27/03/2018,3019984,Bircham Dyson Bell LLP,,Chief Executive's Office,"41,647.30"
12157504,01/06/2018,24/05/2018,3009005,Anchor Trust,,Bi-Borough Director of Integrated Care,"2,404.00"
3442449,08/06/2018,07/06/2018,3019984,Bircham Dyson Bell LLP,,Chief Executive's Office,"13,223.60"
3442449,08/06/2018,07/06/2018,3019984,Bircham Dyson Bell LLP,,Chief Executive's Office,"66,437.74"
3416891,20/04/2018,22/03/2018,3019961,Hudson Fuggle Ltd,,"Policy, Performance and Communications","2,330.00"
3441566,29/06/2018,30/05/2018,3019984,Bircham Dyson Bell LLP,,Chief Executive's Office,"79,834.25"
3417323,20/04/2018,22/03/2018,3019961,Hudson Fuggle Ltd,,"Policy, Performance and Communications","1,370.00"
3445588,14/06/2018,12/03/2018,3012604,Every City Ltd,,Highways Infrastructure & Public Realm,827
3445587,14/06/2018,12/04/2018,3012604,Every City Ltd,,Highways Infrastructure & Public Realm,827
3416541,06/04/2018,07/03/2018,3011774,Tempest Resourcing Ltd,,Schools,560
3433631,14/06/2018,15/05/2018,3029274,Mala Charga Theatre,,Housing Operations,"8,007.50"
3437060,22/06/2018,25/05/2018,3029512,The Assembly Line Ltd,,"Policy, Performance and Communications","2,975.00"
12177750,22/06/2018,18/03/2018,3002950,Zocalo Ltd T/as Bluebird Care,,Bi-Borough Director of Integrated Care,533
12177758,22/06/2018,18/04/2018,3002950,Zocalo Ltd T/as Bluebird Care,,Bi-Borough Director of Integrated Care,554
3430896,08/06/2018,09/05/2018,3019961,Hudson Fuggle Ltd,,"Policy, Performance and Communications","1,190.00"
3422931,30/04/2018,31/01/2018,3006236,ECD Architects Ltd,,HRA City West Homes,"14,438.57"
3445542,29/06/2018,31/05/2018,3019961,Hudson Fuggle Ltd,,"Policy, Performance and Communications","10,035.00"
3422932,01/05/2018,28/02/2018,3006236,ECD Architects Ltd,,HRA City West Homes,"30,630.00"
3416540,13/04/2018,14/03/2018,3011774,Tempest Resourcing Ltd,,Schools,700
3439575,04/06/2018,17/04/2018,3029302,Personal detail - redacted,,"Policy, Performance and Communications","1,081.50"
12157514,01/06/2018,24/05/2018,3009005,Anchor Trust,,Bi-Borough Director of Integrated Care,"2,404.00"
3434356,22/05/2018,20/04/2018,3018746,CornerStone Training and Support Limited,,Family Services 3,"10,500.00"
3446851,26/06/2018,12/06/2018,3025414,Castle Water Ltd,,Schools,539.91
12157516,01/06/2018,24/05/2018,3009005,Anchor Trust,,Bi-Borough Director of Integrated Care,"2,404.00"
3430075,11/05/2018,31/03/2018,3006236,ECD Architects Ltd,,Property Investments and Estates,"16,000.00"
3427690,25/05/2018,30/04/2018,3006236,ECD Architects Ltd,,HRA City West Homes,"19,855.00"
3416530,20/04/2018,21/03/2018,3011774,Tempest Resourcing Ltd,,Schools,700
3428158,25/05/2018,30/04/2018,3006236,ECD Architects Ltd,,Property Investments and Estates,"7,000.00"
3442614,11/06/2018,29/03/2018,3012614,Tricostar Software Ltd,,Legal Services,"8,702.29"
3415082,20/04/2018,21/03/2018,3002240,Chemsol Ltd,,Public Protection and Licensing,"2,378.81"
3415146,19/04/2018,20/03/2018,3004993,Blissett Bookbinders,,Tri-borough Libraries and Archives,"3,057.00"
3416539,27/04/2018,28/03/2018,3011774,Tempest Resourcing Ltd,,Schools,700
3415083,27/04/2018,29/03/2018,3002240,Chemsol Ltd,,Public Protection and Licensing,542.84
12157522,01/06/2018,24/05/2018,3009005,Anchor Trust,,Bi-Borough Director of Integrated Care,"2,404.00"
3421144,04/05/2018,04/04/2018,3011774,Tempest Resourcing Ltd,,Schools,560
12157525,01/06/2018,24/05/2018,3009005,Anchor Trust,,Bi-Borough Director of Integrated Care,"2,404.00"
3431508,16/05/2018,05/02/2018,3008885,Phoenix House T/A Phoenix Futures,,Public Health,"3,204.51"
12157526,01/06/2018,24/05/2018,3009005,Anchor Trust,,Bi-Borough Director of Integrated Care,"2,404.00"
3432032,21/05/2018,05/03/2018,3008885,Phoenix House T/A Phoenix Futures,,Public Health,"3,323.20"
12115283,25/04/2018,13/04/2018,3026220,The Andover Nursing Home,,Bi-Borough Director of Integrated Care,"6,400.00"
3431510,16/05/2018,04/04/2018,3008885,Phoenix House T/A Phoenix Futures,,Public Health,"3,673.54"
12146192,23/05/2018,15/05/2018,3026220,The Andover Nursing Home,,Bi-Borough Director of Integrated Care,"6,400.00"
3434303,06/06/2018,09/05/2018,3008885,Phoenix House T/A Phoenix Futures,,Public Health,"1,704.00"
12176409,21/06/2018,12/06/2018,3026220,The Andover Nursing Home,,Bi-Borough Director of Integrated Care,"6,400.00"
12158518,04/06/2018,31/05/2018,3003832,Personal detail - redacted,,Family Services 3,856.32
3415179,18/04/2018,21/03/2018,3007558,Network Rail Infrastructure Ltd,,Housing Operations,"17,600.00"
3423327,26/04/2018,23/02/2018,3019939,LY London,,Tri-borough Children's Services,"1,000.00"
12158457,04/06/2018,31/05/2018,3003832,Personal detail - redacted,,Family Services 3,878.42
3423333,18/05/2018,21/04/2018,3017997,Personal detail - redacted,,Chief Executive's Office,"3,394.60"
3423335,18/05/2018,21/04/2018,3017997,Personal detail - redacted,,Chief Executive's Office,"1,191.80"
3415159,11/04/2018,20/03/2018,3005099,Agilisys Ltd,,TB Information Services and Strategy,"39,330.07"
3415160,24/04/2018,26/03/2018,3005099,Agilisys Ltd,,"Policy, Performance and Communications","66,524.19"
3420421,19/04/2018,12/04/2018,3005099,Agilisys Ltd,,TB Information Services and Strategy,"39,839.76"
12104670,13/04/2018,09/04/2018,3002908,Personal detail - redacted,,Bi-Borough Director of Integrated Care,"6,824.12"
3420739,29/05/2018,12/04/2018,3005099,Agilisys Ltd,,TB Information Services and Strategy,"1,476.60"
3423392,02/05/2018,20/04/2018,3005099,Agilisys Ltd,,"Policy, Performance and Communications","67,021.66"
3423393,02/05/2018,20/04/2018,3005099,Agilisys Ltd,,"Policy, Performance and Communications","19,074.55"
3444420,13/06/2018,25/05/2018,3005099,Agilisys Ltd,,"Policy, Performance and Communications","65,925.44"
3439683,20/06/2018,29/05/2018,3005099,Agilisys Ltd,,TB Information Services and Strategy,"40,518.56"
3446080,18/06/2018,11/06/2018,3005099,Agilisys Ltd,,"Policy, Performance and Communications","66,823.90"
3445687,15/06/2018,08/06/2018,3005099,Agilisys Ltd,,"Policy, Performance and Communications","16,368.80"
12133519,11/05/2018,04/05/2018,3002908,Personal detail - redacted,,Bi-Borough Director of Integrated Care,"7,650.70"
3415651,08/05/2018,29/03/2018,3029756,Bruern Abbey School,,Education,"9,664.00"
12162785,08/06/2018,04/06/2018,3002908,Personal detail - redacted,,Bi-Borough Director of Integrated Care,"7,120.84"
12104710,13/04/2018,09/04/2018,3017142,Personal detail - redacted,,Bi-Borough Director of Integrated Care,"1,412.92"
12133100,11/05/2018,04/05/2018,3017142,Personal detail - redacted,,Bi-Borough Director of Integrated Care,"1,412.92"
3429170,25/05/2018,25/04/2018,3011774,Tempest Resourcing Ltd,,Schools,700
12162835,08/06/2018,04/06/2018,3017142,Personal detail - redacted,,Bi-Borough Director of Integrated Care,"1,412.92"
12104596,13/04/2018,09/04/2018,3015756,Personal detail - redacted,,Bi-Borough Director of Integrated Care,"1,443.84"
12133381,11/05/2018,04/05/2018,3015756,Personal detail - redacted,,Bi-Borough Director of Integrated Care,"1,443.84"
12162643,08/06/2018,04/06/2018,3015756,Personal detail - redacted,,Bi-Borough Director of Integrated Care,"1,443.84"
3421525,18/04/2018,09/03/2018,3028566,Angela Housham T/A Angela Housham Consulting,,"Growth, Planning and Housing","45,500.00"
12104627,13/04/2018,09/04/2018,3009141,Personal detail - redacted,,Bi-Borough Director of Integrated Care,"2,585.96"
12133496,11/05/2018,04/05/2018,3009141,Personal detail - redacted,,Bi-Borough Director of Integrated Care,"2,585.96"
12162762,08/06/2018,04/06/2018,3009141,Personal detail - redacted,,Bi-Borough Director of Integrated Care,"2,585.96"
12140206,18/05/2018,17/05/2018,3028765,Personal detail - redacted,,Director of Integrated Commissioning,600
3419601,30/04/2018,31/03/2018,3021170,Working Transitions,,Public Protection and Licensing,"1,000.00"
3429171,01/06/2018,02/05/2018,3011774,Tempest Resourcing Ltd,,Schools,700
3415435,09/04/2018,16/02/2018,3016322,Swiss Cottage School,,Education,"5,529.88"
3407866,12/04/2018,13/03/2018,3027924,Personal detail - redacted,,Highways Infrastructure & Public Realm,"2,730.00"
3431546,30/05/2018,30/04/2018,3021170,Working Transitions,,Public Protection and Licensing,"2,500.00"
3431547,30/05/2018,30/04/2018,3021170,Working Transitions,,Revenues and Benefits,"1,000.00"
3441669,07/06/2018,18/04/2018,3010636,Kompass (Uk) Ltd,,Tri-borough Libraries and Archives,"2,500.00"
3432433,08/06/2018,09/05/2018,3011774,Tempest Resourcing Ltd,,Schools,700
3440313,06/06/2018,01/05/2018,3018996,Mountcare Ltd,,Housing Operations,"3,525.00"
3415783,13/04/2018,15/03/2018,3009579,Victoria Solutions Limited (t/a Victoria Forms),,Public Protection and Licensing,800
3439934,04/06/2018,30/04/2018,3027924,Personal detail - redacted,,Highways Infrastructure & Public Realm,"2,730.00"
3415436,20/04/2018,16/02/2018,3016322,Swiss Cottage School,,Education,"7,991.38"
3437549,15/06/2018,17/05/2018,3011774,Tempest Resourcing Ltd,,Schools,560
3437668,29/06/2018,31/05/2018,3027924,Personal detail - redacted,,Highways Infrastructure & Public Realm,"2,730.00"
3446848,29/06/2018,31/05/2018,3021170,Working Transitions,,Revenues and Benefits,800
3433038,24/05/2018,24/04/2018,3031962,Personal detail - redacted,,Chief Executive's Office,595.9
12104765,13/04/2018,09/04/2018,3025823,Personal detail - redacted,,Bi-Borough Director of Integrated Care,"3,400.00"
3441583,08/06/2018,01/06/2018,3018996,Mountcare Ltd,,Housing Operations,"2,850.00"
12133155,11/05/2018,04/05/2018,3025823,Personal detail - redacted,,Bi-Borough Director of Integrated Care,"3,400.00"
3448720,22/06/2018,23/05/2018,3011774,Tempest Resourcing Ltd,,Schools,700
3420579,20/04/2018,16/02/2018,3016322,Swiss Cottage School,,Education,"5,529.88"
3388458,01/05/2018,10/01/2018,3005502,Corona Energy Retail 4 Ltd,,Schools,709.74
3442604,29/06/2018,30/05/2018,3011774,Tempest Resourcing Ltd,,Schools,700
3417887,30/04/2018,31/03/2018,3009644,Wettons Cleaning Services Ltd,,Schools,"1,872.95"
12105244,16/04/2018,25/02/2018,3000115,Westminster Society,,Bi-Borough Director of Integrated Care,"1,725.00"
3408308,03/04/2018,09/02/2018,3005502,Corona Energy Retail 4 Ltd,,Property Investments and Estates,"3,372.50"
3415437,20/04/2018,16/02/2018,3016322,Swiss Cottage School,,Education,"7,991.38"
3398457,03/04/2018,09/02/2018,3005502,Corona Energy Retail 4 Ltd,,Property Investments and Estates,"10,707.67"
3415115,04/04/2018,29/01/2018,3003875,Avenues Youth Project,,"Policy, Performance and Communications",766.74
3415115,04/04/2018,29/01/2018,3003875,Avenues Youth Project,,"Policy, Performance and Communications",766.74
3427135,30/05/2018,30/04/2018,3009644,Wettons Cleaning Services Ltd,,Schools,"1,872.95"
3417231,09/04/2018,08/03/2018,3005502,Corona Energy Retail 4 Ltd,,Community Services,"2,806.07"
3439843,29/06/2018,31/05/2018,3009644,Wettons Cleaning Services Ltd,,Schools,"2,014.41"
3417568,17/04/2018,08/03/2018,3005502,Corona Energy Retail 4 Ltd,,HRA City West Homes,"158,818.66"
3427037,03/05/2018,08/03/2018,3005502,Corona Energy Retail 4 Ltd,,Schools,676.36
3416602,06/04/2018,08/03/2018,3005502,Corona Energy Retail 4 Ltd,,Schools,699.65
3415829,18/04/2018,08/03/2018,3005502,Corona Energy Retail 4 Ltd,,Schools,"1,665.06"
3418967,11/04/2018,08/03/2018,3005502,Corona Energy Retail 4 Ltd,,Schools,627.54
3422938,23/04/2018,08/03/2018,3005502,Corona Energy Retail 4 Ltd,,Schools,875.65
3411161,10/04/2018,08/03/2018,3005502,Corona Energy Retail 4 Ltd,,Property Investments and Estates,"1,688.19"
3408158,23/04/2018,08/03/2018,3005502,Corona Energy Retail 4 Ltd,,Property Investments and Estates,"9,875.51"
3415438,20/04/2018,16/02/2018,3016322,Swiss Cottage School,,Education,"7,991.38"
3431897,17/05/2018,01/04/2018,3023414,Wildstone Media Consulting Ltd,,"Policy, Performance and Communications","36,459.00"
3407975,12/04/2018,13/03/2018,3024761,One Plus One Marriage & Partnership Research,,Family Services 2,"1,500.00"
3428150,23/05/2018,11/04/2018,3005502,Corona Energy Retail 4 Ltd,,Property Investments and Estates,"3,023.21"
3431157,18/05/2018,11/04/2018,3005502,Corona Energy Retail 4 Ltd,,HRA City West Homes,"169,117.51"
3424775,02/05/2018,11/04/2018,3005502,Corona Energy Retail 4 Ltd,,Community Services,"3,029.95"
3427026,03/05/2018,11/04/2018,3005502,Corona Energy Retail 4 Ltd,,Schools,695.83
3422939,02/05/2018,11/04/2018,3005502,Corona Energy Retail 4 Ltd,,Schools,600.89
3430539,14/05/2018,11/04/2018,3005502,Corona Energy Retail 4 Ltd,,Schools,697.76
3423957,02/05/2018,11/04/2018,3005502,Corona Energy Retail 4 Ltd,,Schools,947.14
3422594,02/05/2018,11/04/2018,3005502,Corona Energy Retail 4 Ltd,,Schools,"1,529.72"
12162862,08/06/2018,04/06/2018,3025823,Personal detail - redacted,,Bi-Borough Director of Integrated Care,"3,400.00"
12104970,13/04/2018,09/04/2018,3028263,Personal detail - redacted,,Bi-Borough Director of Integrated Care,868
3443266,11/06/2018,10/05/2018,3005502,Corona Energy Retail 4 Ltd,,Community Services,"2,306.20"
3431760,31/05/2018,10/05/2018,3005502,Corona Energy Retail 4 Ltd,,Schools,523.18
3442023,07/06/2018,10/05/2018,3005502,Corona Energy Retail 4 Ltd,,Schools,741.05
3431160,31/05/2018,10/05/2018,3005502,Corona Energy Retail 4 Ltd,,Property Investments and Estates,"1,964.22"
3432485,31/05/2018,10/05/2018,3005502,Corona Energy Retail 4 Ltd,,Schools,980.22
3416605,15/05/2018,31/03/2018,3005883,Bglobal Metering Ltd,,HRA City West Homes,"1,874.97"
3427294,30/05/2018,30/04/2018,3005883,Bglobal Metering Ltd,,HRA City West Homes,"1,874.97"
3415079,20/04/2018,23/03/2018,3002147,Eileen Say Catering Equipment Ltd,,Children's Services Commissioning,"1,745.00"
12133300,11/05/2018,04/05/2018,3028263,Personal detail - redacted,,Bi-Borough Director of Integrated Care,868
3431159,31/05/2018,10/05/2018,3005502,Corona Energy Retail 4 Ltd,,HRA City West Homes,"144,925.41"
12162917,08/06/2018,04/06/2018,3028263,Personal detail - redacted,,Bi-Borough Director of Integrated Care,868
3426500,02/05/2018,30/04/2018,3010901,Dorothy Gardner Nursery School,,Family Services 2,"206,000.00"
3427077,11/05/2018,11/04/2018,3002147,Eileen Say Catering Equipment Ltd,,Children's Services Commissioning,"1,265.00"
3431164,31/05/2018,10/05/2018,3005502,Corona Energy Retail 4 Ltd,,Property Investments and Estates,"9,012.35"
3434054,15/06/2018,18/05/2018,3002147,Eileen Say Catering Equipment Ltd,,Children's Services Commissioning,"3,312.00"
3434056,15/06/2018,18/05/2018,3002147,Eileen Say Catering Equipment Ltd,,Children's Services Commissioning,"1,980.00"
3434057,15/06/2018,18/05/2018,3002147,Eileen Say Catering Equipment Ltd,,Children's Services Commissioning,"1,980.00"
3425975,25/05/2018,27/04/2018,3012855,Hilton Harrop-Griffiths,,Bi-Borough Director of Integrated Care,"1,255.00"
3445328,29/06/2018,08/06/2018,3005502,Corona Energy Retail 4 Ltd,,Property Investments and Estates,"6,391.09"
3442416,11/06/2018,06/03/2018,3025470,Kate Hart Consulting,,"Policy, Performance and Communications",750
12161686,08/06/2018,30/04/2018,3000115,Westminster Society,,Bi-Borough Director of Integrated Care,"2,754.00"
3446800,29/06/2018,08/06/2018,3005502,Corona Energy Retail 4 Ltd,,Community Services,"1,597.02"
3447350,29/06/2018,08/06/2018,3005502,Corona Energy Retail 4 Ltd,,Schools,616.39
3446726,29/06/2018,08/06/2018,3005502,Corona Energy Retail 4 Ltd,,Schools,629.37
3433529,24/05/2018,20/04/2018,3026230,St Catherine's School,,Education,"15,150.34"
12104521,13/04/2018,09/04/2018,3025633,Personal detail - redacted,,Bi-Borough Director of Integrated Care,999.28
12133364,11/05/2018,04/05/2018,3025633,Personal detail - redacted,,Bi-Borough Director of Integrated Care,999.28
12162625,08/06/2018,04/06/2018,3025633,Personal detail - redacted,,Bi-Borough Director of Integrated Care,999.28
12104511,13/04/2018,09/04/2018,3021993,Personal detail - redacted,,Bi-Borough Director of Integrated Care,"1,576.00"
12152857,30/05/2018,30/04/2018,3000115,Westminster Society,,Bi-Borough Director of Integrated Care,504.4
12133354,11/05/2018,04/05/2018,3021993,Personal detail - redacted,,Bi-Borough Director of Integrated Care,"1,576.00"
12167559,13/06/2018,30/04/2018,3001530,Central Recruitment Services Ltd,,Bi-Borough Director of Integrated Care,504.4
12162972,08/06/2018,04/06/2018,3021993,Personal detail - redacted,,Bi-Borough Director of Integrated Care,"1,576.00"
3423146,23/04/2018,20/03/2018,3022536,Personal detail - redacted,,Family Services 2,600
12186156,28/06/2018,01/04/2018,3000115,Westminster Society,,Bi-Borough Director of Integrated Care,"1,700.00"
12186155,28/06/2018,01/04/2018,3000115,Westminster Society,,Bi-Borough Director of Integrated Care,"5,525.00"
3423330,24/04/2018,20/03/2018,3022536,Personal detail - redacted,,Family Services 2,600
3432804,18/05/2018,17/05/2018,3999999,London Borough of Barnet,,Waste and Parks,"38,731.50"
12125555,02/05/2018,08/12/2017,3002389,Clearup Solutions Limited,,Bi-Borough Director of Integrated Care,715
3430266,23/05/2018,26/02/2018,3020018,Regional Contract Services,,Schools,608.12
12104958,13/04/2018,09/04/2018,3025402,Personal detail - redacted,,Bi-Borough Director of Integrated Care,"1,181.04"
12133290,11/05/2018,04/05/2018,3025402,Personal detail - redacted,,Bi-Borough Director of Integrated Care,"1,181.04"
3409840,11/04/2018,12/03/2018,3020018,Regional Contract Services,,Schools,"1,369.73"
3417470,25/04/2018,26/03/2018,3020018,Regional Contract Services,,Schools,"1,218.84"
3423338,18/05/2018,20/04/2018,3019025,Wybone Ltd,,Waste and Parks,"11,317.60"
12162906,08/06/2018,04/06/2018,3025402,Personal detail - redacted,,Bi-Borough Director of Integrated Care,"1,181.04"
12104514,13/04/2018,09/04/2018,3018000,Personal detail - redacted,,Bi-Borough Director of Integrated Care,"2,232.00"
12133356,11/05/2018,04/05/2018,3018000,Personal detail - redacted,,Bi-Borough Director of Integrated Care,"2,232.00"
3420242,09/05/2018,09/04/2018,3020018,Regional Contract Services,,Schools,570.72
3429997,05/06/2018,08/05/2018,3013603,Oxford Computer Consultants Ltd,,Family Services 1,"2,553.48"
12140213,18/05/2018,17/05/2018,3018000,Personal detail - redacted,,Director of Integrated Commissioning,600
3426630,23/05/2018,23/04/2018,3020018,Regional Contract Services,,Schools,550
12134389,14/05/2018,30/04/2018,3001804,Respect Care Services Ltd,,Bi-Borough Director of Integrated Care,"1,800.00"
12101914,10/04/2018,22/03/2018,3001804,Respect Care Services Ltd,,Bi-Borough Director of Integrated Care,750
12166991,13/06/2018,21/05/2018,3001804,Respect Care Services Ltd,,Bi-Borough Director of Integrated Care,"1,800.00"
3425488,23/05/2018,23/04/2018,3020018,Regional Contract Services,,Schools,860.89
12162618,08/06/2018,04/06/2018,3018000,Personal detail - redacted,,Bi-Borough Director of Integrated Care,"2,232.00"
12111017,23/04/2018,19/04/2018,3024009,Personal detail - redacted,,Family Services 2,521.43
3429884,11/05/2018,09/05/2018,3016243,Toast Design Consultancy Ltd,,Waste and Parks,740
3446842,22/06/2018,08/05/2018,3020018,Regional Contract Services,,Schools,"1,268.70"
3435860,20/06/2018,21/05/2018,3020018,Regional Contract Services,,Schools,"1,184.82"
3420051,27/04/2018,28/03/2018,3000185,Mazars Llp,,"Policy, Performance and Communications","2,875.00"
3446574,18/06/2018,13/06/2018,3016243,Toast Design Consultancy Ltd,,Waste and Parks,785
3418976,12/04/2018,15/03/2018,3009017,Westminster City Council (Business Rates,,Family Services 2,"22,800.00"
3408916,03/04/2018,03/03/2018,3028107,Lawtech Group Ltd,,HRA City West Homes,"362,276.54"
3410117,11/04/2018,14/03/2018,3016304,Capital Kids Cricket,,Community Services,666
3416905,04/05/2018,04/04/2018,3028107,Lawtech Group Ltd,,HRA City West Homes,"289,110.60"
3427785,01/06/2018,02/05/2018,3028107,Lawtech Group Ltd,,HRA City West Homes,"529,425.80"
3433091,18/05/2018,09/05/2018,3015464,Grosvenor Chapel,,Chief Executive's Office,815
3429327,14/05/2018,30/04/2018,3002467,Altwood Properties Ltd,,Housing Operations,"3,336.00"
3429327,14/05/2018,30/04/2018,3002467,Altwood Properties Ltd,,Housing Operations,"66,603.00"
3429328,10/05/2018,30/04/2018,3002467,Altwood Properties Ltd,,Housing Operations,"74,132.85"
3429328,10/05/2018,30/04/2018,3002467,Altwood Properties Ltd,,Housing Operations,"1,651.77"
3440973,06/06/2018,31/05/2018,3002467,Altwood Properties Ltd,,Housing Operations,"66,793.00"
3442042,11/06/2018,31/05/2018,3002467,Altwood Properties Ltd,,Housing Operations,"3,689.40"
3442042,11/06/2018,31/05/2018,3002467,Altwood Properties Ltd,,Housing Operations,"74,505.94"
12178046,25/06/2018,22/06/2018,3024009,Personal detail - redacted,,Family Services 2,637.72
3427120,03/05/2018,27/02/2018,3011225,Kimblecrete Ltd,,Housing Operations,"10,320.00"
3427120,03/05/2018,27/02/2018,3011225,Kimblecrete Ltd,,Housing Operations,"1,470.00"
12185942,28/06/2018,25/04/2018,3002074,Askews & Holts Library Service,,Tri-borough Libraries and Archives,583.94
3417905,27/04/2018,29/03/2018,3012079,Westminster Citizens Advice Bureau,,HRA City West Homes,"3,312.00"
3422745,20/04/2018,10/04/2018,3011309,Personal detail - redacted,,Children's Services Commissioning,"2,535.00"
3446026,20/06/2018,30/04/2018,3012079,Westminster Citizens Advice Bureau,,HRA City West Homes,"3,312.00"
3436720,22/06/2018,24/05/2018,3012079,Westminster Citizens Advice Bureau,,Public Protection and Licensing,"20,000.00"
3438096,31/05/2018,16/03/2018,3007801,RH Environmental Ltd,,Public Protection and Licensing,"1,000.00"
12098361,09/04/2018,05/04/2018,3008414,Personal detail - redacted,,Children's Services Commissioning,630
3426634,02/05/2018,16/03/2018,3022692,Blythe Hall Ltd T/A The Tutors Group Lionheart Education,,Education,"30,940.00"
3422746,20/04/2018,10/04/2018,3008414,Personal detail - redacted,,Children's Services Commissioning,"1,267.50"
3418621,10/04/2018,09/04/2018,3008414,Personal detail - redacted,,Children's Services Commissioning,"2,496.00"
3369652,09/04/2018,30/11/2017,3000014,Frankham Consultancy Group Ltd,,HRA City West Homes,"13,104.00"
3407824,09/04/2018,01/12/2017,3000014,Frankham Consultancy Group Ltd,,HRA City West Homes,"13,104.00"
3439897,04/06/2018,23/04/2018,3016253,Shepherds Bookbinders Ltd,,"Policy, Performance and Communications","1,350.00"
3426162,30/05/2018,30/04/2018,3019911,Personal detail - redacted,,Housing Operations,750
12102461,11/04/2018,18/03/2018,3001875,Health Vision Uk,,Bi-Borough Director of Integrated Care,"1,170.00"
12116492,26/04/2018,15/04/2018,3001875,Health Vision Uk,,Bi-Borough Director of Integrated Care,"1,207.50"
12157720,01/06/2018,13/05/2018,3001875,Health Vision Uk,,Bi-Borough Director of Integrated Care,"1,200.00"
12177764,22/06/2018,15/06/2018,3001875,Health Vision Uk,,Bi-Borough Director of Integrated Care,"1,200.00"
3403249,09/04/2018,28/02/2018,3000014,Frankham Consultancy Group Ltd,,HRA City West Homes,"20,176.00"
3403250,09/04/2018,28/02/2018,3000014,Frankham Consultancy Group Ltd,,HRA City West Homes,"2,600.00"
3432327,08/06/2018,11/05/2018,3030130,Personal detail - redacted,,Chief Executive's Office,"3,640.00"
3424864,23/05/2018,15/03/2018,3030130,Personal detail - redacted,,Chief Executive's Office,"3,640.00"
3416911,30/04/2018,31/03/2018,3029025,Ryder Architecture Ltd,,"Growth, Planning and Housing","49,500.00"
12186167,28/06/2018,27/06/2018,3029326,Personal detail - redacted,,Director of Integrated Commissioning,600
3426747,02/05/2018,02/05/2018,3011648,Anzuk Teachers Ltd (Closed Use 3011733),,Schools,575
3441869,13/06/2018,23/04/2018,3031076,Appnovation Technologies Ltd,,Public Health,"3,282.50"
3441870,20/06/2018,21/05/2018,3031076,Appnovation Technologies Ltd,,Public Health,"5,728.00"
3419338,16/04/2018,18/12/2017,3000132,Barnardo's Service Ltd,,Family Services 3,"3,262.73"
3410218,03/04/2018,20/10/2016,3001990,Alere Toxicology Plc,,Family Services 2,"1,186.60"
3404405,03/04/2018,02/03/2018,3018328,Tavistock Centre For Couple Relationship,,Family Services 2,"20,000.00"
3426430,30/05/2018,30/04/2018,3029025,Ryder Architecture Ltd,,"Growth, Planning and Housing","49,500.00"
3417307,09/04/2018,04/04/2018,3016767,ROWLAND TYSOE (CRANLEIGH) LTD,,Community Services,600.92
12175053,20/06/2018,27/11/2018,3005391,Pursuing Independent Paths,,Bi-Borough Director of Integrated Care,"1,170.96"
12169452,15/06/2018,06/02/2018,3005391,Pursuing Independent Paths,,Bi-Borough Director of Integrated Care,975.8
12169494,15/06/2018,27/03/2018,3005391,Pursuing Independent Paths,,Bi-Borough Director of Integrated Care,975.8
12169368,15/06/2018,24/04/2018,3005391,Pursuing Independent Paths,,Bi-Borough Director of Integrated Care,975.8
12169410,15/06/2018,28/05/2018,3005391,Pursuing Independent Paths,,Bi-Borough Director of Integrated Care,975.8
3439902,22/06/2018,23/05/2018,3018328,Tavistock Centre For Couple Relationship,,Family Services 2,"2,000.00"
3430019,16/05/2018,30/11/2017,3021941,Arcus Consulting LLP,,HRA City West Homes,"3,480.00"
12134390,14/05/2018,30/04/2018,3001804,Respect Care Services Ltd,,Bi-Borough Director of Integrated Care,"1,260.00"
12101915,10/04/2018,22/03/2018,3001804,Respect Care Services Ltd,,Bi-Borough Director of Integrated Care,"1,260.00"
12166992,13/06/2018,21/05/2018,3001804,Respect Care Services Ltd,,Bi-Borough Director of Integrated Care,"1,065.00"
3430020,16/05/2018,30/11/2017,3021941,Arcus Consulting LLP,,HRA City West Homes,812
3422245,20/04/2018,21/03/2018,3021941,Arcus Consulting LLP,,HRA City West Homes,812
12131580,09/05/2018,30/11/2017,3000115,Westminster Society,,Bi-Borough Director of Integrated Care,"3,527.50"
12131629,09/05/2018,31/12/2017,3000115,Westminster Society,,Bi-Borough Director of Integrated Care,"2,346.00"
12131757,09/05/2018,28/01/2018,3000115,Westminster Society,,Bi-Borough Director of Integrated Care,"2,822.00"
12172392,18/06/2018,31/03/2018,3000115,Westminster Society,,Bi-Borough Director of Integrated Care,"2,592.50"
3432635,17/05/2018,03/01/2018,3017099,BankSearch Information Consultancy LTD,,Economy,990
12175054,20/06/2018,27/11/2018,3005391,Pursuing Independent Paths,,Bi-Borough Director of Integrated Care,"1,170.96"
12169453,15/06/2018,06/02/2018,3005391,Pursuing Independent Paths,,Bi-Borough Director of Integrated Care,"1,170.96"
12169495,15/06/2018,27/03/2018,3005391,Pursuing Independent Paths,,Bi-Borough Director of Integrated Care,"1,170.96"
12169369,15/06/2018,24/04/2018,3005391,Pursuing Independent Paths,,Bi-Borough Director of Integrated Care,"1,170.96"
12169411,15/06/2018,28/05/2018,3005391,Pursuing Independent Paths,,Bi-Borough Director of Integrated Care,"1,170.96"
12175055,20/06/2018,27/11/2018,3005391,Pursuing Independent Paths,,Bi-Borough Director of Integrated Care,780.64
12169454,15/06/2018,06/02/2018,3005391,Pursuing Independent Paths,,Bi-Borough Director of Integrated Care,780.64
12169496,15/06/2018,27/03/2018,3005391,Pursuing Independent Paths,,Bi-Borough Director of Integrated Care,780.64
12169370,15/06/2018,24/04/2018,3005391,Pursuing Independent Paths,,Bi-Borough Director of Integrated Care,780.64
12169412,15/06/2018,28/05/2018,3005391,Pursuing Independent Paths,,Bi-Borough Director of Integrated Care,780.64
3416297,13/04/2018,31/03/2018,3030077,Encompass Consultancy Ltd,,WAES Director (Principal),"1,704.50"
3449931,28/06/2018,25/06/2018,3999999,Argo Capital Management,,Economy,"2,000.00"
12104554,13/04/2018,09/04/2018,3009184,Personal detail - redacted,,Bi-Borough Director of Integrated Care,"1,478.80"
3430121,15/05/2018,24/01/2018,3009878,Glaze & Frame Ltd,,HRA City West Homes,570
12109381,18/04/2018,31/03/2018,3001870,Sweet Tree Home Care Services,,Bi-Borough Director of Integrated Care,"1,321.25"
12162976,08/06/2018,18/05/2018,3001870,Sweet Tree Home Care Services,,Bi-Borough Director of Integrated Care,"1,330.00"
12175113,20/06/2018,12/06/2018,3001870,Sweet Tree Home Care Services,,Bi-Borough Director of Integrated Care,"1,295.00"
12146313,23/05/2018,31/03/2018,3001870,Sweet Tree Home Care Services,,Bi-Borough Director of Integrated Care,"1,085.00"
12133187,11/05/2018,04/05/2018,3009184,Personal detail - redacted,,Bi-Borough Director of Integrated Care,"6,540.00"
3415075,13/04/2018,15/03/2018,3002085,Peter Brett Associates,,HRA City West Homes,"8,000.00"
3415076,13/04/2018,15/03/2018,3002085,Peter Brett Associates,,HRA City West Homes,"2,000.00"
3416630,20/04/2018,22/03/2018,3002085,Peter Brett Associates,,HRA City West Homes,"5,500.00"
3439937,14/06/2018,15/05/2018,3029302,Personal detail - redacted,,"Policy, Performance and Communications",582.5
3426195,14/05/2018,30/04/2018,3030077,Encompass Consultancy Ltd,,WAES Director (Principal),"1,704.50"
12162589,08/06/2018,04/06/2018,3009184,Personal detail - redacted,,Bi-Borough Director of Integrated Care,"1,680.00"
3432369,30/05/2018,14/05/2018,3022692,Blythe Hall Ltd T/A The Tutors Group Lionheart Education,,Education,"65,411.08"
12145064,23/05/2018,20/02/2018,3028168,Ark Home Healthcare ,,Bi-Borough Director of Integrated Care,742.5
3409885,12/04/2018,13/03/2018,3012093,Wellesley Construction Services Ltd,,Schools,"8,375.00"
3417906,30/04/2018,31/03/2018,3012093,Wellesley Construction Services Ltd,,Property Investments and Estates,"2,700.00"
3441634,29/06/2018,31/05/2018,3012093,Wellesley Construction Services Ltd,,Schools,"2,287.50"
3441143,29/06/2018,31/05/2018,3012093,Wellesley Construction Services Ltd,,Schools,"4,665.00"
3441144,29/06/2018,31/05/2018,3012093,Wellesley Construction Services Ltd,,Schools,"4,187.50"
3441875,14/06/2018,31/05/2018,3030077,Encompass Consultancy Ltd,,WAES Director (Principal),"1,704.50"
3440881,06/06/2018,01/06/2018,3011225,Kimblecrete Ltd,,Housing Operations,"1,617.00"
3440881,06/06/2018,01/06/2018,3011225,Kimblecrete Ltd,,Housing Operations,"10,752.00"
3438777,29/06/2018,30/05/2018,3002085,Peter Brett Associates,,HRA City West Homes,"44,536.00"
3415191,30/04/2018,31/03/2018,3008429,Elliott Group Ltd,,Waste and Parks,"8,755.00"
3447358,19/06/2018,30/04/2018,3008429,Elliott Group Ltd,,Waste and Parks,"7,004.00"
3427420,04/05/2018,23/04/2018,3025836,Everyone Active Admin Services Ltd,,Chief Executive's Office,900
3447359,29/06/2018,31/05/2018,3008429,Elliott Group Ltd,,Waste and Parks,"8,755.00"
12145063,23/05/2018,23/04/2018,3028168,Ark Home Healthcare ,,Bi-Borough Director of Integrated Care,742.5
3415652,27/04/2018,29/03/2018,3029545,Westminster Associates Ltd,,Executive Director of Shared Corporate Services,"3,780.30"
12145059,23/05/2018,23/04/2018,3028168,Ark Home Healthcare ,,Bi-Borough Director of Integrated Care,750
12145060,23/05/2018,20/02/2018,3028168,Ark Home Healthcare ,,Bi-Borough Director of Integrated Care,630
12145061,23/05/2018,23/04/2018,3028168,Ark Home Healthcare ,,Bi-Borough Director of Integrated Care,630
12145072,23/05/2018,23/04/2018,3028168,Ark Home Healthcare ,,Bi-Borough Director of Integrated Care,630
12145066,23/05/2018,20/02/2018,3028168,Ark Home Healthcare ,,Bi-Borough Director of Integrated Care,"1,170.00"
12131738,09/05/2018,31/12/2017,3000115,Westminster Society,,Bi-Borough Director of Integrated Care,510
3434383,15/06/2018,17/05/2018,3029545,Westminster Associates Ltd,,WCC People Services,"3,500.00"
3433633,21/05/2018,04/02/2018,3025836,Everyone Active Admin Services Ltd,,Schools,669.15
12145062,23/05/2018,23/04/2018,3028168,Ark Home Healthcare ,,Bi-Borough Director of Integrated Care,"1,170.00"
12145069,23/05/2018,23/04/2018,3028168,Ark Home Healthcare ,,Bi-Borough Director of Integrated Care,"1,170.00"
12145070,23/05/2018,20/02/2018,3028168,Ark Home Healthcare ,,Bi-Borough Director of Integrated Care,"1,215.00"
12145073,23/05/2018,23/04/2018,3028168,Ark Home Healthcare ,,Bi-Borough Director of Integrated Care,"1,230.00"
12145074,23/05/2018,23/04/2018,3028168,Ark Home Healthcare ,,Bi-Borough Director of Integrated Care,"1,275.00"
12098137,06/04/2018,24/01/2018,3028168,Ark Home Healthcare ,,Bi-Borough Director of Integrated Care,"1,170.00"
3443056,29/06/2018,01/06/2018,3029545,Westminster Associates Ltd,,Executive Director of Shared Corporate Services,"2,322.80"
12098120,06/04/2018,24/01/2018,3028168,Ark Home Healthcare ,,Bi-Borough Director of Integrated Care,727.5
12098138,06/04/2018,24/01/2018,3028168,Ark Home Healthcare ,,Bi-Borough Director of Integrated Care,"1,147.50"
12098121,06/04/2018,24/01/2018,3028168,Ark Home Healthcare ,,Bi-Borough Director of Integrated Care,"1,230.00"
3416899,25/04/2018,26/03/2018,3025836,Everyone Active Admin Services Ltd,,Highways Infrastructure & Public Realm,"1,231.75"
3406304,04/04/2018,07/03/2018,3013303,Forward4Families Llp,,Family Services 1,"1,470.00"
3406293,04/04/2018,07/03/2018,3013303,Forward4Families Llp,,Family Services 1,"1,478.00"
3415038,11/04/2018,12/03/2018,3001272,Moore Security Services Ltd,,HRA City West Homes,"32,940.68"
3415039,17/04/2018,12/03/2018,3001272,Moore Security Services Ltd,,HRA City West Homes,"2,302.80"
3415040,11/04/2018,12/03/2018,3001272,Moore Security Services Ltd,,HRA City West Homes,"5,001.94"
12177318,21/06/2018,09/05/2018,3028168,Ark Home Healthcare ,,Bi-Borough Director of Integrated Care,"1,170.00"
3410099,11/04/2018,14/03/2018,3013303,Forward4Families Llp,,Family Services 1,"1,350.00"
12115579,25/04/2018,14/03/2018,3001272,Moore Security Services Ltd,,HRA City West Homes,694.63
12115579,25/04/2018,14/03/2018,3001272,Moore Security Services Ltd,,HRA City West Homes,694.63
12115579,25/04/2018,14/03/2018,3001272,Moore Security Services Ltd,,HRA City West Homes,674.31
12115579,25/04/2018,14/03/2018,3001272,Moore Security Services Ltd,,HRA City West Homes,587.11
12115579,25/04/2018,14/03/2018,3001272,Moore Security Services Ltd,,HRA City West Homes,507.07
12115579,25/04/2018,14/03/2018,3001272,Moore Security Services Ltd,,HRA City West Homes,"2,335.57"
12115579,25/04/2018,14/03/2018,3001272,Moore Security Services Ltd,,HRA City West Homes,694.63
12115579,25/04/2018,14/03/2018,3001272,Moore Security Services Ltd,,HRA City West Homes,694.63
12115579,25/04/2018,14/03/2018,3001272,Moore Security Services Ltd,,HRA City West Homes,"5,468.41"
12115579,25/04/2018,14/03/2018,3001272,Moore Security Services Ltd,,HRA City West Homes,"9,263.91"
12115579,25/04/2018,14/03/2018,3001272,Moore Security Services Ltd,,HRA City West Homes,"1,289.02"
12115579,25/04/2018,14/03/2018,3001272,Moore Security Services Ltd,,HRA City West Homes,"5,373.47"
12115579,25/04/2018,14/03/2018,3001272,Moore Security Services Ltd,,HRA City West Homes,"2,519.42"
12115579,25/04/2018,14/03/2018,3001272,Moore Security Services Ltd,,HRA City West Homes,"1,283.06"
12115579,25/04/2018,14/03/2018,3001272,Moore Security Services Ltd,,HRA City West Homes,"1,033.24"
12115579,25/04/2018,14/03/2018,3001272,Moore Security Services Ltd,,HRA City West Homes,"2,304.61"
12115579,25/04/2018,14/03/2018,3001272,Moore Security Services Ltd,,HRA City West Homes,694.63
12115579,25/04/2018,14/03/2018,3001272,Moore Security Services Ltd,,HRA City West Homes,"5,026.00"
12115579,25/04/2018,14/03/2018,3001272,Moore Security Services Ltd,,HRA City West Homes,"6,940.00"
12115579,25/04/2018,14/03/2018,3001272,Moore Security Services Ltd,,HRA City West Homes,731.03
12115579,25/04/2018,14/03/2018,3001272,Moore Security Services Ltd,,HRA City West Homes,507.07
12115579,25/04/2018,14/03/2018,3001272,Moore Security Services Ltd,,HRA City West Homes,"1,321.38"
12115579,25/04/2018,14/03/2018,3001272,Moore Security Services Ltd,,HRA City West Homes,"1,357.78"
12115579,25/04/2018,14/03/2018,3001272,Moore Security Services Ltd,,HRA City West Homes,791.69
12115579,25/04/2018,14/03/2018,3001272,Moore Security Services Ltd,,HRA City West Homes,694.63
12115579,25/04/2018,14/03/2018,3001272,Moore Security Services Ltd,,HRA City West Homes,587.11
12115579,25/04/2018,14/03/2018,3001272,Moore Security Services Ltd,,HRA City West Homes,"1,516.50"
12115579,25/04/2018,14/03/2018,3001272,Moore Security Services Ltd,,HRA City West Homes,"3,394.76"
12115579,25/04/2018,14/03/2018,3001272,Moore Security Services Ltd,,HRA City West Homes,704.55
12115579,25/04/2018,14/03/2018,3001272,Moore Security Services Ltd,,HRA City West Homes,553.14
12115579,25/04/2018,14/03/2018,3001272,Moore Security Services Ltd,,HRA City West Homes,580.82
12115579,25/04/2018,14/03/2018,3001272,Moore Security Services Ltd,,HRA City West Homes,729.35
12115579,25/04/2018,14/03/2018,3001272,Moore Security Services Ltd,,HRA City West Homes,502.49
12115579,25/04/2018,14/03/2018,3001272,Moore Security Services Ltd,,HRA City West Homes,"1,345.64"
12115579,25/04/2018,14/03/2018,3001272,Moore Security Services Ltd,,HRA City West Homes,"1,345.64"
12115579,25/04/2018,14/03/2018,3001272,Moore Security Services Ltd,,HRA City West Homes,"1,357.78"
12115579,25/04/2018,14/03/2018,3001272,Moore Security Services Ltd,,HRA City West Homes,533.72
12115579,25/04/2018,14/03/2018,3001272,Moore Security Services Ltd,,HRA City West Homes,"1,617.60"
12115579,25/04/2018,14/03/2018,3001272,Moore Security Services Ltd,,HRA City West Homes,718.9
12115579,25/04/2018,14/03/2018,3001272,Moore Security Services Ltd,,HRA City West Homes,616.25
12115579,25/04/2018,14/03/2018,3001272,Moore Security Services Ltd,,HRA City West Homes,"3,796.87"
12115579,25/04/2018,14/03/2018,3001272,Moore Security Services Ltd,,HRA City West Homes,806.85
12115579,25/04/2018,14/03/2018,3001272,Moore Security Services Ltd,,HRA City West Homes,611.67
12115579,25/04/2018,14/03/2018,3001272,Moore Security Services Ltd,,HRA City West Homes,"1,512.46"
12115579,25/04/2018,14/03/2018,3001272,Moore Security Services Ltd,,HRA City West Homes,711.72
12115579,25/04/2018,14/03/2018,3001272,Moore Security Services Ltd,,HRA City West Homes,"1,069.57"
12115579,25/04/2018,14/03/2018,3001272,Moore Security Services Ltd,,HRA City West Homes,535.83
12115579,25/04/2018,14/03/2018,3001272,Moore Security Services Ltd,,HRA City West Homes,"1,340.75"
12115579,25/04/2018,14/03/2018,3001272,Moore Security Services Ltd,,HRA City West Homes,587.11
12115579,25/04/2018,14/03/2018,3001272,Moore Security Services Ltd,,HRA City West Homes,"3,876.66"
12115579,25/04/2018,14/03/2018,3001272,Moore Security Services Ltd,,HRA City West Homes,706.77
12115579,25/04/2018,14/03/2018,3001272,Moore Security Services Ltd,,HRA City West Homes,679.39
12115579,25/04/2018,14/03/2018,3001272,Moore Security Services Ltd,,HRA City West Homes,"2,110.97"
12115579,25/04/2018,14/03/2018,3001272,Moore Security Services Ltd,,HRA City West Homes,"1,656.02"
12115579,25/04/2018,14/03/2018,3001272,Moore Security Services Ltd,,HRA City West Homes,729.35
12115579,25/04/2018,14/03/2018,3001272,Moore Security Services Ltd,,HRA City West Homes,962.55
12115579,25/04/2018,14/03/2018,3001272,Moore Security Services Ltd,,HRA City West Homes,"1,304.35"
12115579,25/04/2018,14/03/2018,3001272,Moore Security Services Ltd,,HRA City West Homes,"1,352.88"
12115579,25/04/2018,14/03/2018,3001272,Moore Security Services Ltd,,HRA City West Homes,864.48
12115579,25/04/2018,14/03/2018,3001272,Moore Security Services Ltd,,HRA City West Homes,592.67
12115579,25/04/2018,14/03/2018,3001272,Moore Security Services Ltd,,HRA City West Homes,578.29
12115579,25/04/2018,14/03/2018,3001272,Moore Security Services Ltd,,HRA City West Homes,"9,202.32"
12115579,25/04/2018,14/03/2018,3001272,Moore Security Services Ltd,,HRA City West Homes,735.57
12115579,25/04/2018,14/03/2018,3001272,Moore Security Services Ltd,,HRA City West Homes,700.64
12115579,25/04/2018,14/03/2018,3001272,Moore Security Services Ltd,,HRA City West Homes,"2,648.83"
12115579,25/04/2018,14/03/2018,3001272,Moore Security Services Ltd,,HRA City West Homes,"3,828.13"
12115579,25/04/2018,14/03/2018,3001272,Moore Security Services Ltd,,HRA City West Homes,572.78
12115579,25/04/2018,14/03/2018,3001272,Moore Security Services Ltd,,HRA City West Homes,743.16
12115579,25/04/2018,14/03/2018,3001272,Moore Security Services Ltd,,HRA City West Homes,"5,766.46"
12115579,25/04/2018,14/03/2018,3001272,Moore Security Services Ltd,,HRA City West Homes,"1,289.02"
12115579,25/04/2018,14/03/2018,3001272,Moore Security Services Ltd,,HRA City West Homes,535.83
12115579,25/04/2018,14/03/2018,3001272,Moore Security Services Ltd,,HRA City West Homes,624.66
12115579,25/04/2018,14/03/2018,3001272,Moore Security Services Ltd,,HRA City West Homes,"5,405.56"
12115579,25/04/2018,14/03/2018,3001272,Moore Security Services Ltd,,HRA City West Homes,743.16
12115579,25/04/2018,14/03/2018,3001272,Moore Security Services Ltd,,HRA City West Homes,784.76
12115579,25/04/2018,14/03/2018,3001272,Moore Security Services Ltd,,HRA City West Homes,553.14
12115579,25/04/2018,14/03/2018,3001272,Moore Security Services Ltd,,HRA City West Homes,"1,340.74"
12115579,25/04/2018,14/03/2018,3001272,Moore Security Services Ltd,,HRA City West Homes,513.75
12115578,25/04/2018,14/03/2018,3001272,Moore Security Services Ltd,,HRA City West Homes,874.52
12115578,25/04/2018,14/03/2018,3001272,Moore Security Services Ltd,,HRA City West Homes,511.06
12115578,25/04/2018,14/03/2018,3001272,Moore Security Services Ltd,,HRA City West Homes,511.06
12115578,25/04/2018,14/03/2018,3001272,Moore Security Services Ltd,,HRA City West Homes,511.06
12115578,25/04/2018,14/03/2018,3001272,Moore Security Services Ltd,,HRA City West Homes,511.05
12115578,25/04/2018,14/03/2018,3001272,Moore Security Services Ltd,,HRA City West Homes,"1,265.77"
12115578,25/04/2018,14/03/2018,3001272,Moore Security Services Ltd,,HRA City West Homes,"1,942.03"
12115578,25/04/2018,14/03/2018,3001272,Moore Security Services Ltd,,HRA City West Homes,"3,797.32"
12115578,25/04/2018,14/03/2018,3001272,Moore Security Services Ltd,,HRA City West Homes,969.05
12115578,25/04/2018,14/03/2018,3001272,Moore Security Services Ltd,,HRA City West Homes,"8,425.11"
12115578,25/04/2018,14/03/2018,3001272,Moore Security Services Ltd,,HRA City West Homes,511.06
12115578,25/04/2018,14/03/2018,3001272,Moore Security Services Ltd,,HRA City West Homes,630.86
12115578,25/04/2018,14/03/2018,3001272,Moore Security Services Ltd,,HRA City West Homes,"5,491.25"
12115578,25/04/2018,14/03/2018,3001272,Moore Security Services Ltd,,HRA City West Homes,511.06
12115578,25/04/2018,14/03/2018,3001272,Moore Security Services Ltd,,HRA City West Homes,511.06
12115578,25/04/2018,14/03/2018,3001272,Moore Security Services Ltd,,HRA City West Homes,511.06
12115578,25/04/2018,14/03/2018,3001272,Moore Security Services Ltd,,HRA City West Homes,511.06
12115578,25/04/2018,14/03/2018,3001272,Moore Security Services Ltd,,HRA City West Homes,511.05
12115578,25/04/2018,14/03/2018,3001272,Moore Security Services Ltd,,HRA City West Homes,511.05
12115578,25/04/2018,14/03/2018,3001272,Moore Security Services Ltd,,HRA City West Homes,511.05
12115578,25/04/2018,14/03/2018,3001272,Moore Security Services Ltd,,HRA City West Homes,"1,267.79"
12115578,25/04/2018,14/03/2018,3001272,Moore Security Services Ltd,,HRA City West Homes,"8,512.11"
12115578,25/04/2018,14/03/2018,3001272,Moore Security Services Ltd,,HRA City West Homes,511.05
12115578,25/04/2018,14/03/2018,3001272,Moore Security Services Ltd,,HRA City West Homes,511.05
12115578,25/04/2018,14/03/2018,3001272,Moore Security Services Ltd,,HRA City West Homes,511.05
12115578,25/04/2018,14/03/2018,3001272,Moore Security Services Ltd,,HRA City West Homes,511.06
12115578,25/04/2018,14/03/2018,3001272,Moore Security Services Ltd,,HRA City West Homes,511.06
12115578,25/04/2018,14/03/2018,3001272,Moore Security Services Ltd,,HRA City West Homes,511.06
12115578,25/04/2018,14/03/2018,3001272,Moore Security Services Ltd,,HRA City West Homes,511.05
12115578,25/04/2018,14/03/2018,3001272,Moore Security Services Ltd,,HRA City West Homes,511.05
12115578,25/04/2018,14/03/2018,3001272,Moore Security Services Ltd,,HRA City West Homes,511.05
12115578,25/04/2018,14/03/2018,3001272,Moore Security Services Ltd,,HRA City West Homes,"1,449.78"
12115578,25/04/2018,14/03/2018,3001272,Moore Security Services Ltd,,HRA City West Homes,511.06
12115578,25/04/2018,14/03/2018,3001272,Moore Security Services Ltd,,HRA City West Homes,511.06
12115578,25/04/2018,14/03/2018,3001272,Moore Security Services Ltd,,HRA City West Homes,511.05
12115578,25/04/2018,14/03/2018,3001272,Moore Security Services Ltd,,HRA City West Homes,511.05
12115578,25/04/2018,14/03/2018,3001272,Moore Security Services Ltd,,HRA City West Homes,511.05
12115578,25/04/2018,14/03/2018,3001272,Moore Security Services Ltd,,HRA City West Homes,511.05
12115578,25/04/2018,14/03/2018,3001272,Moore Security Services Ltd,,HRA City West Homes,511.05
12115578,25/04/2018,14/03/2018,3001272,Moore Security Services Ltd,,HRA City West Homes,602.05
12115578,25/04/2018,14/03/2018,3001272,Moore Security Services Ltd,,HRA City West Homes,"1,119.18"
12115578,25/04/2018,14/03/2018,3001272,Moore Security Services Ltd,,HRA City West Homes,511.06
12115578,25/04/2018,14/03/2018,3001272,Moore Security Services Ltd,,HRA City West Homes,638.44
12115578,25/04/2018,14/03/2018,3001272,Moore Security Services Ltd,,HRA City West Homes,511.05
12115578,25/04/2018,14/03/2018,3001272,Moore Security Services Ltd,,HRA City West Homes,511.05
12115578,25/04/2018,14/03/2018,3001272,Moore Security Services Ltd,,HRA City West Homes,511.05
12115577,25/04/2018,14/03/2018,3001272,Moore Security Services Ltd,,HRA City West Homes,530.78
12115577,25/04/2018,14/03/2018,3001272,Moore Security Services Ltd,,HRA City West Homes,530.78
12160523,06/06/2018,03/05/2018,3001272,Moore Security Services Ltd,,HRA City West Homes,"1,919.62"
12160523,06/06/2018,03/05/2018,3001272,Moore Security Services Ltd,,HRA City West Homes,612.66
12160523,06/06/2018,03/05/2018,3001272,Moore Security Services Ltd,,HRA City West Homes,"12,225.00"
12160523,06/06/2018,03/05/2018,3001272,Moore Security Services Ltd,,HRA City West Homes,676.16
12160523,06/06/2018,03/05/2018,3001272,Moore Security Services Ltd,,HRA City West Homes,882.1
12160523,06/06/2018,03/05/2018,3001272,Moore Security Services Ltd,,HRA City West Homes,587.11
12160523,06/06/2018,03/05/2018,3001272,Moore Security Services Ltd,,HRA City West Homes,"6,248.00"
12160523,06/06/2018,03/05/2018,3001272,Moore Security Services Ltd,,HRA City West Homes,"2,901.60"
12160523,06/06/2018,03/05/2018,3001272,Moore Security Services Ltd,,HRA City West Homes,"2,835.86"
12160523,06/06/2018,03/05/2018,3001272,Moore Security Services Ltd,,HRA City West Homes,"2,584.45"
12160523,06/06/2018,03/05/2018,3001272,Moore Security Services Ltd,,HRA City West Homes,"2,305.08"
12160523,06/06/2018,03/05/2018,3001272,Moore Security Services Ltd,,HRA City West Homes,713.77
12160523,06/06/2018,03/05/2018,3001272,Moore Security Services Ltd,,HRA City West Homes,792.63
12160523,06/06/2018,03/05/2018,3001272,Moore Security Services Ltd,,HRA City West Homes,"15,949.64"
12160523,06/06/2018,03/05/2018,3001272,Moore Security Services Ltd,,HRA City West Homes,"5,585.78"
12160523,06/06/2018,03/05/2018,3001272,Moore Security Services Ltd,,HRA City West Homes,612.66
12160523,06/06/2018,03/05/2018,3001272,Moore Security Services Ltd,,HRA City West Homes,"1,938.32"
12160523,06/06/2018,03/05/2018,3001272,Moore Security Services Ltd,,HRA City West Homes,882.1
12160523,06/06/2018,03/05/2018,3001272,Moore Security Services Ltd,,HRA City West Homes,674.34
12160523,06/06/2018,03/05/2018,3001272,Moore Security Services Ltd,,HRA City West Homes,642.84
12160523,06/06/2018,03/05/2018,3001272,Moore Security Services Ltd,,HRA City West Homes,"8,800.20"
12160523,06/06/2018,03/05/2018,3001272,Moore Security Services Ltd,,HRA City West Homes,"2,901.60"
12160523,06/06/2018,03/05/2018,3001272,Moore Security Services Ltd,,HRA City West Homes,621.83
12160523,06/06/2018,03/05/2018,3001272,Moore Security Services Ltd,,HRA City West Homes,560.1
12160523,06/06/2018,03/05/2018,3001272,Moore Security Services Ltd,,HRA City West Homes,"2,110.97"
12160523,06/06/2018,03/05/2018,3001272,Moore Security Services Ltd,,HRA City West Homes,546.64
12160523,06/06/2018,03/05/2018,3001272,Moore Security Services Ltd,,HRA City West Homes,693.43
12160523,06/06/2018,03/05/2018,3001272,Moore Security Services Ltd,,HRA City West Homes,"20,167.12"
12160523,06/06/2018,03/05/2018,3001272,Moore Security Services Ltd,,HRA City West Homes,"5,191.00"
12160523,06/06/2018,03/05/2018,3001272,Moore Security Services Ltd,,HRA City West Homes,"2,901.80"
12160523,06/06/2018,03/05/2018,3001272,Moore Security Services Ltd,,HRA City West Homes,"6,564.38"
12160523,06/06/2018,03/05/2018,3001272,Moore Security Services Ltd,,HRA City West Homes,694.63
12160523,06/06/2018,03/05/2018,3001272,Moore Security Services Ltd,,HRA City West Homes,694.63
12160523,06/06/2018,03/05/2018,3001272,Moore Security Services Ltd,,HRA City West Homes,543.47
12160523,06/06/2018,03/05/2018,3001272,Moore Security Services Ltd,,HRA City West Homes,724.28
12160523,06/06/2018,03/05/2018,3001272,Moore Security Services Ltd,,HRA City West Homes,864.48
12160523,06/06/2018,03/05/2018,3001272,Moore Security Services Ltd,,HRA City West Homes,595.45
12160523,06/06/2018,03/05/2018,3001272,Moore Security Services Ltd,,HRA City West Homes,571.21
12160523,06/06/2018,03/05/2018,3001272,Moore Security Services Ltd,,HRA City West Homes,611.38
12160523,06/06/2018,03/05/2018,3001272,Moore Security Services Ltd,,HRA City West Homes,"2,518.40"
12160523,06/06/2018,03/05/2018,3001272,Moore Security Services Ltd,,HRA City West Homes,631.37
12160523,06/06/2018,03/05/2018,3001272,Moore Security Services Ltd,,HRA City West Homes,631.37
12160523,06/06/2018,03/05/2018,3001272,Moore Security Services Ltd,,HRA City West Homes,"4,462.11"
12160523,06/06/2018,03/05/2018,3001272,Moore Security Services Ltd,,HRA City West Homes,584.36
12160523,06/06/2018,03/05/2018,3001272,Moore Security Services Ltd,,HRA City West Homes,857.78
12160523,06/06/2018,03/05/2018,3001272,Moore Security Services Ltd,,HRA City West Homes,"2,013.91"
12160523,06/06/2018,03/05/2018,3001272,Moore Security Services Ltd,,HRA City West Homes,934.91
12160523,06/06/2018,03/05/2018,3001272,Moore Security Services Ltd,,HRA City West Homes,693.35
12160523,06/06/2018,03/05/2018,3001272,Moore Security Services Ltd,,HRA City West Homes,"1,938.32"
12160523,06/06/2018,03/05/2018,3001272,Moore Security Services Ltd,,HRA City West Homes,"2,110.97"
12160524,06/06/2018,03/05/2018,3001272,Moore Security Services Ltd,,HRA City West Homes,511.05
12160524,06/06/2018,03/05/2018,3001272,Moore Security Services Ltd,,HRA City West Homes,511.05
12160524,06/06/2018,03/05/2018,3001272,Moore Security Services Ltd,,HRA City West Homes,511.06
12160524,06/06/2018,03/05/2018,3001272,Moore Security Services Ltd,,HRA City West Homes,"4,593.75"
12160524,06/06/2018,03/05/2018,3001272,Moore Security Services Ltd,,HRA City West Homes,511.05
12160524,06/06/2018,03/05/2018,3001272,Moore Security Services Ltd,,HRA City West Homes,"3,731.60"
12160524,06/06/2018,03/05/2018,3001272,Moore Security Services Ltd,,HRA City West Homes,511.05
12160524,06/06/2018,03/05/2018,3001272,Moore Security Services Ltd,,HRA City West Homes,588
12160524,06/06/2018,03/05/2018,3001272,Moore Security Services Ltd,,HRA City West Homes,588
12160524,06/06/2018,03/05/2018,3001272,Moore Security Services Ltd,,HRA City West Homes,588
12160524,06/06/2018,03/05/2018,3001272,Moore Security Services Ltd,,HRA City West Homes,588
12160524,06/06/2018,03/05/2018,3001272,Moore Security Services Ltd,,HRA City West Homes,"2,470.38"
12160524,06/06/2018,03/05/2018,3001272,Moore Security Services Ltd,,HRA City West Homes,686.97
12160524,06/06/2018,03/05/2018,3001272,Moore Security Services Ltd,,HRA City West Homes,588
12160524,06/06/2018,03/05/2018,3001272,Moore Security Services Ltd,,HRA City West Homes,588
12160524,06/06/2018,03/05/2018,3001272,Moore Security Services Ltd,,HRA City West Homes,568.69
12160525,06/06/2018,03/05/2018,3001272,Moore Security Services Ltd,,HRA City West Homes,838.13
12160525,06/06/2018,03/05/2018,3001272,Moore Security Services Ltd,,HRA City West Homes,"1,723.76"
12178812,26/06/2018,11/06/2018,3001272,Moore Security Services Ltd,,HRA City West Homes,"1,316.48"
12178812,26/06/2018,11/06/2018,3001272,Moore Security Services Ltd,,HRA City West Homes,744.09
12178812,26/06/2018,11/06/2018,3001272,Moore Security Services Ltd,,HRA City West Homes,631.76
12178812,26/06/2018,11/06/2018,3001272,Moore Security Services Ltd,,HRA City West Homes,721.25
12178812,26/06/2018,11/06/2018,3001272,Moore Security Services Ltd,,HRA City West Homes,"1,457.86"
12178812,26/06/2018,11/06/2018,3001272,Moore Security Services Ltd,,HRA City West Homes,682.5
12178812,26/06/2018,11/06/2018,3001272,Moore Security Services Ltd,,HRA City West Homes,"2,608.70"
12178812,26/06/2018,11/06/2018,3001272,Moore Security Services Ltd,,HRA City West Homes,553.02
12178812,26/06/2018,11/06/2018,3001272,Moore Security Services Ltd,,HRA City West Homes,"1,463.93"
12178812,26/06/2018,11/06/2018,3001272,Moore Security Services Ltd,,HRA City West Homes,"2,969.14"
12178812,26/06/2018,11/06/2018,3001272,Moore Security Services Ltd,,HRA City West Homes,"1,082.12"
12178812,26/06/2018,11/06/2018,3001272,Moore Security Services Ltd,,HRA City West Homes,"1,328.62"
12178812,26/06/2018,11/06/2018,3001272,Moore Security Services Ltd,,HRA City West Homes,587.11
12178812,26/06/2018,11/06/2018,3001272,Moore Security Services Ltd,,HRA City West Homes,513.27
12178812,26/06/2018,11/06/2018,3001272,Moore Security Services Ltd,,HRA City West Homes,"1,316.48"
12178812,26/06/2018,11/06/2018,3001272,Moore Security Services Ltd,,HRA City West Homes,553.92
12178812,26/06/2018,11/06/2018,3001272,Moore Security Services Ltd,,HRA City West Homes,"1,858.37"
12178812,26/06/2018,11/06/2018,3001272,Moore Security Services Ltd,,HRA City West Homes,"1,156.38"
12178812,26/06/2018,11/06/2018,3001272,Moore Security Services Ltd,,HRA City West Homes,"4,244.00"
12178812,26/06/2018,11/06/2018,3001272,Moore Security Services Ltd,,HRA City West Homes,"1,316.48"
12178812,26/06/2018,11/06/2018,3001272,Moore Security Services Ltd,,HRA City West Homes,"1,393.97"
12178812,26/06/2018,11/06/2018,3001272,Moore Security Services Ltd,,HRA City West Homes,597.04
12178812,26/06/2018,11/06/2018,3001272,Moore Security Services Ltd,,HRA City West Homes,718.9
12178812,26/06/2018,11/06/2018,3001272,Moore Security Services Ltd,,HRA City West Homes,784.07
12178812,26/06/2018,11/06/2018,3001272,Moore Security Services Ltd,,HRA City West Homes,629.53
12178812,26/06/2018,11/06/2018,3001272,Moore Security Services Ltd,,HRA City West Homes,899.79
12178812,26/06/2018,11/06/2018,3001272,Moore Security Services Ltd,,HRA City West Homes,"1,569.58"
12178812,26/06/2018,11/06/2018,3001272,Moore Security Services Ltd,,HRA City West Homes,"1,457.86"
12178812,26/06/2018,11/06/2018,3001272,Moore Security Services Ltd,,HRA City West Homes,674.89
12178812,26/06/2018,11/06/2018,3001272,Moore Security Services Ltd,,HRA City West Homes,"1,078.15"
12178812,26/06/2018,11/06/2018,3001272,Moore Security Services Ltd,,HRA City West Homes,"1,244.54"
12178812,26/06/2018,11/06/2018,3001272,Moore Security Services Ltd,,HRA City West Homes,"1,316.48"
12178812,26/06/2018,11/06/2018,3001272,Moore Security Services Ltd,,HRA City West Homes,567.73
12178812,26/06/2018,11/06/2018,3001272,Moore Security Services Ltd,,HRA City West Homes,"10,143.20"
12178812,26/06/2018,11/06/2018,3001272,Moore Security Services Ltd,,HRA City West Homes,711.71
12178812,26/06/2018,11/06/2018,3001272,Moore Security Services Ltd,,HRA City West Homes,798.7
12178812,26/06/2018,11/06/2018,3001272,Moore Security Services Ltd,,HRA City West Homes,579.87
12178812,26/06/2018,11/06/2018,3001272,Moore Security Services Ltd,,HRA City West Homes,611.67
12178812,26/06/2018,11/06/2018,3001272,Moore Security Services Ltd,,HRA City West Homes,519.2
12178812,26/06/2018,11/06/2018,3001272,Moore Security Services Ltd,,HRA City West Homes,629.25
12178812,26/06/2018,11/06/2018,3001272,Moore Security Services Ltd,,HRA City West Homes,"2,009.44"
12178812,26/06/2018,11/06/2018,3001272,Moore Security Services Ltd,,HRA City West Homes,608.96
12178812,26/06/2018,11/06/2018,3001272,Moore Security Services Ltd,,HRA City West Homes,"1,463.93"
12178812,26/06/2018,11/06/2018,3001272,Moore Security Services Ltd,,HRA City West Homes,621.31
12178812,26/06/2018,11/06/2018,3001272,Moore Security Services Ltd,,HRA City West Homes,714.26
12178812,26/06/2018,11/06/2018,3001272,Moore Security Services Ltd,,HRA City West Homes,522.69
12178812,26/06/2018,11/06/2018,3001272,Moore Security Services Ltd,,HRA City West Homes,769.78
12178812,26/06/2018,11/06/2018,3001272,Moore Security Services Ltd,,HRA City West Homes,564.13
12178812,26/06/2018,11/06/2018,3001272,Moore Security Services Ltd,,HRA City West Homes,"1,647.93"
12178812,26/06/2018,11/06/2018,3001272,Moore Security Services Ltd,,HRA City West Homes,"2,774.19"
12178812,26/06/2018,11/06/2018,3001272,Moore Security Services Ltd,,HRA City West Homes,832.06
12178812,26/06/2018,11/06/2018,3001272,Moore Security Services Ltd,,HRA City West Homes,"1,352.88"
12178812,26/06/2018,11/06/2018,3001272,Moore Security Services Ltd,,HRA City West Homes,671.3
12178812,26/06/2018,11/06/2018,3001272,Moore Security Services Ltd,,HRA City West Homes,624.19
12178813,26/06/2018,11/06/2018,3001272,Moore Security Services Ltd,,HRA City West Homes,511.06
12178813,26/06/2018,11/06/2018,3001272,Moore Security Services Ltd,,HRA City West Homes,511.05
12178813,26/06/2018,11/06/2018,3001272,Moore Security Services Ltd,,HRA City West Homes,"1,186.00"
12178813,26/06/2018,11/06/2018,3001272,Moore Security Services Ltd,,HRA City West Homes,"1,467.98"
12178813,26/06/2018,11/06/2018,3001272,Moore Security Services Ltd,,HRA City West Homes,511.06
12178813,26/06/2018,11/06/2018,3001272,Moore Security Services Ltd,,HRA City West Homes,511.05
12178813,26/06/2018,11/06/2018,3001272,Moore Security Services Ltd,,HRA City West Homes,511.05
12178813,26/06/2018,11/06/2018,3001272,Moore Security Services Ltd,,HRA City West Homes,725.39
12178813,26/06/2018,11/06/2018,3001272,Moore Security Services Ltd,,HRA City West Homes,"3,558.00"
12178813,26/06/2018,11/06/2018,3001272,Moore Security Services Ltd,,HRA City West Homes,"1,310.25"
12178813,26/06/2018,11/06/2018,3001272,Moore Security Services Ltd,,HRA City West Homes,"2,422.00"
12178813,26/06/2018,11/06/2018,3001272,Moore Security Services Ltd,,HRA City West Homes,782.01
12178813,26/06/2018,11/06/2018,3001272,Moore Security Services Ltd,,HRA City West Homes,"1,267.79"
12178813,26/06/2018,11/06/2018,3001272,Moore Security Services Ltd,,HRA City West Homes,595.98
12178813,26/06/2018,11/06/2018,3001272,Moore Security Services Ltd,,HRA City West Homes,511.05
12178813,26/06/2018,11/06/2018,3001272,Moore Security Services Ltd,,HRA City West Homes,"4,744.00"
12178813,26/06/2018,11/06/2018,3001272,Moore Security Services Ltd,,HRA City West Homes,511.05
12178813,26/06/2018,11/06/2018,3001272,Moore Security Services Ltd,,HRA City West Homes,511.05
12178813,26/06/2018,11/06/2018,3001272,Moore Security Services Ltd,,HRA City West Homes,511.06
12178813,26/06/2018,11/06/2018,3001272,Moore Security Services Ltd,,HRA City West Homes,"1,028.19"
12178813,26/06/2018,11/06/2018,3001272,Moore Security Services Ltd,,HRA City West Homes,511.05
12178813,26/06/2018,11/06/2018,3001272,Moore Security Services Ltd,,HRA City West Homes,511.05
12178813,26/06/2018,11/06/2018,3001272,Moore Security Services Ltd,,HRA City West Homes,"1,186.00"
12178813,26/06/2018,11/06/2018,3001272,Moore Security Services Ltd,,HRA City West Homes,"1,878.94"
12178813,26/06/2018,11/06/2018,3001272,Moore Security Services Ltd,,HRA City West Homes,"1,456.75"
12178813,26/06/2018,11/06/2018,3001272,Moore Security Services Ltd,,HRA City West Homes,"1,310.25"
12178813,26/06/2018,11/06/2018,3001272,Moore Security Services Ltd,,HRA City West Homes,"1,186.00"
12178813,26/06/2018,11/06/2018,3001272,Moore Security Services Ltd,,HRA City West Homes,"5,030.23"
12178813,26/06/2018,11/06/2018,3001272,Moore Security Services Ltd,,HRA City West Homes,"2,372.00"
12178813,26/06/2018,11/06/2018,3001272,Moore Security Services Ltd,,HRA City West Homes,"1,164.16"
12178813,26/06/2018,11/06/2018,3001272,Moore Security Services Ltd,,HRA City West Homes,"2,422.00"
12178813,26/06/2018,11/06/2018,3001272,Moore Security Services Ltd,,HRA City West Homes,"4,819.00"
12178813,26/06/2018,11/06/2018,3001272,Moore Security Services Ltd,,HRA City West Homes,700.12
12178813,26/06/2018,11/06/2018,3001272,Moore Security Services Ltd,,HRA City West Homes,595.98
12178813,26/06/2018,11/06/2018,3001272,Moore Security Services Ltd,,HRA City West Homes,"1,148.50"
12178813,26/06/2018,11/06/2018,3001272,Moore Security Services Ltd,,HRA City West Homes,706.94
12178814,26/06/2018,11/06/2018,3001272,Moore Security Services Ltd,,HRA City West Homes,927.09
12178814,26/06/2018,11/06/2018,3001272,Moore Security Services Ltd,,HRA City West Homes,"1,279.93"
12178814,26/06/2018,11/06/2018,3001272,Moore Security Services Ltd,,HRA City West Homes,599.67
12178814,26/06/2018,11/06/2018,3001272,Moore Security Services Ltd,,HRA City West Homes,"1,304.19"
12177334,21/06/2018,09/05/2018,3028168,Ark Home Healthcare ,,Bi-Borough Director of Integrated Care,502.5
3433671,22/05/2018,19/04/2018,3013449,G & S Smirthwaite Ltd,,Family Services 2,"1,196.00"
3428869,10/05/2018,21/02/2018,3027940,Belvue High School,,Education,"9,891.67"
3428023,07/06/2018,02/05/2018,3013449,G & S Smirthwaite Ltd,,Family Services 2,575
12134391,14/05/2018,30/04/2018,3001804,Respect Care Services Ltd,,Bi-Borough Director of Integrated Care,"1,755.00"
12101916,10/04/2018,22/03/2018,3001804,Respect Care Services Ltd,,Bi-Borough Director of Integrated Care,"1,710.00"
12166993,13/06/2018,21/05/2018,3001804,Respect Care Services Ltd,,Bi-Borough Director of Integrated Care,"1,710.00"
3437177,22/06/2018,23/05/2018,3013449,G & S Smirthwaite Ltd,,Family Services 2,"1,701.00"
3437178,22/06/2018,23/05/2018,3013449,G & S Smirthwaite Ltd,,Family Services 2,678
3373533,20/04/2018,08/12/2017,3028768,The Furniture Practice Ltd,,Property Investments and Estates,"4,848.00"
3426480,25/05/2018,30/04/2018,3013303,Forward4Families Llp,,Family Services 1,"1,000.00"
12177337,21/06/2018,09/05/2018,3028168,Ark Home Healthcare ,,Bi-Borough Director of Integrated Care,660
12177338,21/06/2018,09/05/2018,3028168,Ark Home Healthcare ,,Bi-Borough Director of Integrated Care,"1,237.50"
12177324,21/06/2018,13/06/2018,3028168,Ark Home Healthcare ,,Bi-Borough Director of Integrated Care,"1,170.00"
12177335,21/06/2018,13/06/2018,3028168,Ark Home Healthcare ,,Bi-Borough Director of Integrated Care,510
12177320,21/06/2018,13/06/2018,3028168,Ark Home Healthcare ,,Bi-Borough Director of Integrated Care,630
12177321,21/06/2018,13/06/2018,3028168,Ark Home Healthcare ,,Bi-Borough Director of Integrated Care,"1,252.50"
3420240,10/05/2018,10/04/2018,3019735,15 Porchester Square Ltd,,HRA City West Homes,"1,600.34"
3447229,25/06/2018,17/06/2018,3016046,Personal detail - redacted,,WAES Director (Principal),"2,635.00"
3420753,11/05/2018,13/04/2018,3003668,Royal Holloway University Of London,,Children's Services Commissioning,"1,190.00"
3423799,04/05/2018,23/05/2017,3002129,Oracle Corporation UK Ltd,,WCC People Services,"4,484.37"
3443687,14/06/2018,31/01/2016,3008555,The Connection At St Martin's,,Housing Operations,"60,000.00"
3441786,29/06/2018,31/05/2018,3001712,Covergold Ltd,,Tri-borough Libraries and Archives,790
3441775,29/06/2018,31/05/2018,3001712,Covergold Ltd,,Tri-borough Libraries and Archives,520
3441778,29/06/2018,31/05/2018,3001712,Covergold Ltd,,Tri-borough Libraries and Archives,700
3430654,16/05/2018,06/03/2018,3028555,Morgan Sindall Property Services Ltd,,HRA City West Homes,"26,591.40"
3430655,16/05/2018,06/03/2018,3028555,Morgan Sindall Property Services Ltd,,HRA City West Homes,"26,591.40"
3430653,16/05/2018,06/03/2018,3028555,Morgan Sindall Property Services Ltd,,HRA City West Homes,"26,591.40"
3430652,16/05/2018,06/03/2018,3028555,Morgan Sindall Property Services Ltd,,HRA City West Homes,"26,591.40"
3439630,29/06/2018,01/06/2018,3013303,Forward4Families Llp,,Family Services 1,"1,536.74"
3423800,04/05/2018,27/06/2017,3002129,Oracle Corporation UK Ltd,,WCC People Services,"16,907.68"
3423801,04/05/2018,28/07/2017,3002129,Oracle Corporation UK Ltd,,WCC People Services,"13,010.82"
3423802,04/05/2018,29/08/2017,3002129,Oracle Corporation UK Ltd,,WCC People Services,"12,106.98"
12102464,11/04/2018,18/03/2018,3001875,Health Vision Uk,,Bi-Borough Director of Integrated Care,"1,485.00"
12116495,26/04/2018,15/04/2018,3001875,Health Vision Uk,,Bi-Borough Director of Integrated Care,"1,466.25"
12157723,01/06/2018,13/05/2018,3001875,Health Vision Uk,,Bi-Borough Director of Integrated Care,"1,522.50"
12177767,22/06/2018,15/06/2018,3001875,Health Vision Uk,,Bi-Borough Director of Integrated Care,"1,485.00"
3406284,04/04/2018,07/03/2018,3015309,Ramboll Uk Ltd,,HRA City West Homes,"7,879.99"
3422850,17/05/2018,19/04/2018,3015309,Ramboll Uk Ltd,,HRA City West Homes,"2,265.85"
3423973,18/05/2018,20/04/2018,3002900,St Matthews Conference Centre Ltd,,Family Services 2,560.35
12152797,30/05/2018,05/04/2018,3002278,Ark Home Healthcare Ltd,,Bi-Borough Director of Integrated Care,592.5
3410181,03/04/2018,08/01/2018,3000336,Judge & Priestley,,HRA City West Homes,"1,012.80"
3419039,11/04/2018,01/04/2018,3015654,Gemini Consultants Ltd,,HRA City West Homes,"10,950.65"
3418092,17/04/2018,12/02/2018,3000336,Judge & Priestley,,HRA City West Homes,"1,790.00"
12143290,21/05/2018,15/04/2018,3001867,Independent Care Solution,,Bi-Borough Director of Integrated Care,600
12105046,13/04/2018,18/03/2018,3001867,Independent Care Solution,,Bi-Borough Director of Integrated Care,630
12102465,11/04/2018,18/03/2018,3001875,Health Vision Uk,,Bi-Borough Director of Integrated Care,"1,500.00"
12116496,26/04/2018,15/04/2018,3001875,Health Vision Uk,,Bi-Borough Director of Integrated Care,"1,492.50"
12157724,01/06/2018,13/05/2018,3001875,Health Vision Uk,,Bi-Borough Director of Integrated Care,"1,500.00"
12177768,22/06/2018,15/06/2018,3001875,Health Vision Uk,,Bi-Borough Director of Integrated Care,"1,500.00"
3418093,17/04/2018,26/02/2018,3000336,Judge & Priestley,,HRA City West Homes,754
3415553,29/06/2018,29/03/2018,3027455,Metropolitan Workshop LLP,,HRA City West Homes,"8,437.50"
3421188,23/04/2018,21/02/2018,3002129,Oracle Corporation UK Ltd,,WCC People Services,808.08
3409690,09/04/2018,12/03/2018,3000336,Judge & Priestley,,HRA City West Homes,"1,349.00"
3414895,16/04/2018,19/03/2018,3000336,Judge & Priestley,,HRA City West Homes,"2,087.28"
3414896,23/04/2018,26/03/2018,3000336,Judge & Priestley,,HRA City West Homes,"1,560.00"
12161696,08/06/2018,26/04/2018,3002278,Ark Home Healthcare Ltd,,Bi-Borough Director of Integrated Care,570
3427161,03/05/2018,31/03/2018,3000336,Judge & Priestley,,Revenues and Benefits,"1,750.00"
3436024,06/06/2018,31/03/2018,3000336,Judge & Priestley,,HRA City West Homes,903.2
3436035,06/06/2018,09/04/2018,3000336,Judge & Priestley,,HRA City West Homes,741
12145067,23/05/2018,23/04/2018,3002278,Ark Home Healthcare Ltd,,Bi-Borough Director of Integrated Care,"1,860.00"
3432559,25/05/2018,30/04/2018,3000336,Judge & Priestley,,Revenues and Benefits,"3,050.00"
12167467,13/06/2018,11/06/2018,3000696,Phoenix Compliancy Management,,HRA City West Homes,"2,085.00"
3410362,10/04/2018,13/03/2018,3008945,Tavistock & Portman NHS,,Family Services 1,"9,749.25"
3416298,18/04/2018,13/03/2018,3008945,Tavistock & Portman NHS,,Children's Services Commissioning,"4,799.37"
3431186,08/06/2018,11/05/2018,3008945,Tavistock & Portman NHS,,Children's Services Commissioning,"22,913.42"
3451044,28/06/2018,31/05/2018,3000336,Judge & Priestley,,Revenues and Benefits,"1,512.00"
3441047,29/06/2018,01/06/2018,3004880,University of Westminster,,Highways Infrastructure & Public Realm,725
3418130,12/06/2018,18/01/2018,3017122,Materials Science Consultants Ltd,,Schools,550
3430897,15/05/2018,07/02/2018,3020863,Clarkeprint Ltd,,Schools,"2,656.00"
3410120,09/04/2018,12/03/2018,3017122,Materials Science Consultants Ltd,,Community Services,"2,534.00"
3410121,09/04/2018,12/03/2018,3017122,Materials Science Consultants Ltd,,Community Services,"8,500.00"
3410122,09/04/2018,12/03/2018,3017122,Materials Science Consultants Ltd,,Community Services,950
3410123,09/04/2018,12/03/2018,3017122,Materials Science Consultants Ltd,,Community Services,"2,550.00"
3410124,09/04/2018,12/03/2018,3017122,Materials Science Consultants Ltd,,Community Services,"1,650.00"
12145071,23/05/2018,23/04/2018,3002278,Ark Home Healthcare Ltd,,Bi-Borough Director of Integrated Care,"1,860.00"
3432636,12/06/2018,15/05/2018,3017122,Materials Science Consultants Ltd,,Community Services,775
3432637,12/06/2018,15/05/2018,3017122,Materials Science Consultants Ltd,,Community Services,"1,350.00"
3432626,12/06/2018,15/05/2018,3017122,Materials Science Consultants Ltd,,Community Services,920
3432627,12/06/2018,15/05/2018,3017122,Materials Science Consultants Ltd,,Community Services,"1,350.00"
3429247,14/05/2018,29/03/2018,3024327,Kenmal Limited,,HRA City West Homes,600
3433224,01/06/2018,02/05/2018,3000377,Nisbets,,Community Services,"1,699.99"
3418940,30/04/2018,31/03/2018,3002046,Broadreach House,,Public Health,"2,614.79"
3425897,25/05/2018,27/04/2018,3002046,Broadreach House,,Public Health,"2,013.33"
3426929,11/05/2018,11/04/2018,3023648,ParentPay Ltd,,Schools,604
3440991,29/06/2018,31/05/2018,3002046,Broadreach House,,Public Health,"2,057.14"
3440993,29/06/2018,31/05/2018,3002046,Broadreach House,,Public Health,870.67
12095271,03/04/2018,27/03/2018,3005450,Camden Chinese Community Centre Ltd,,Bi-Borough Director of Integrated Care,630
12163597,11/06/2018,07/06/2018,3005450,Camden Chinese Community Centre Ltd,,Bi-Borough Director of Integrated Care,585
12187117,29/06/2018,27/06/2018,3005450,Camden Chinese Community Centre Ltd,,Bi-Borough Director of Integrated Care,607.5
12168404,14/06/2018,26/03/2018,3009775,Headway East London,,Bi-Borough Director of Integrated Care,680
12152798,30/05/2018,05/04/2018,3002278,Ark Home Healthcare Ltd,,Bi-Borough Director of Integrated Care,"2,880.00"
12161697,08/06/2018,26/04/2018,3002278,Ark Home Healthcare Ltd,,Bi-Borough Director of Integrated Care,"2,970.00"
12139201,16/05/2018,11/04/2018,3009775,Headway East London,,Bi-Borough Director of Integrated Care,656
12152800,30/05/2018,05/04/2018,3002278,Ark Home Healthcare Ltd,,Bi-Borough Director of Integrated Care,"2,220.00"
12161698,08/06/2018,26/04/2018,3002278,Ark Home Healthcare Ltd,,Bi-Borough Director of Integrated Care,"2,220.00"
12110860,20/04/2018,05/01/2018,3021527,Hopscotch Asian Womens Centre,,Bi-Borough Director of Integrated Care,946.5
12110856,20/04/2018,30/01/2018,3021527,Hopscotch Asian Womens Centre,,Bi-Borough Director of Integrated Care,757.2
12110861,20/04/2018,04/03/2018,3021527,Hopscotch Asian Womens Centre,,Bi-Borough Director of Integrated Care,946.5
3422380,18/04/2018,18/04/2018,3010137,Topcoat Construction Ltd,,HRA City West Homes,"16,280.20"
12168405,14/06/2018,25/04/2018,3009775,Headway East London,,Bi-Borough Director of Integrated Care,680
12139213,16/05/2018,26/04/2018,3009775,Headway East London,,Bi-Borough Director of Integrated Care,738
3407840,06/04/2018,08/03/2018,3030521,Red Tulip Ltd,,"Policy, Performance and Communications","9,263.50"
3407854,06/04/2018,08/03/2018,3030521,Red Tulip Ltd,,"Policy, Performance and Communications","9,902.40"
12152803,30/05/2018,05/04/2018,3002278,Ark Home Healthcare Ltd,,Bi-Borough Director of Integrated Care,"2,100.00"
12161701,08/06/2018,26/04/2018,3002278,Ark Home Healthcare Ltd,,Bi-Borough Director of Integrated Care,"2,100.00"
12095693,04/04/2018,01/03/2018,3002278,Ark Home Healthcare Ltd,,Bi-Borough Director of Integrated Care,990
3405045,03/04/2018,02/03/2018,3009802,Jma Design & Technical Services,,HRA City West Homes,792
3435201,01/06/2018,02/05/2018,3028976,Sixth Sense Training Ltd,,Public Protection and Licensing,"2,200.00"
3415236,13/04/2018,16/03/2018,3009802,Jma Design & Technical Services,,HRA City West Homes,594
12167563,13/06/2018,11/04/2018,3002278,Ark Home Healthcare Ltd,,Bi-Borough Director of Integrated Care,990
12168398,14/06/2018,24/05/2018,3009775,Headway East London,,Bi-Borough Director of Integrated Care,656
3426985,21/05/2018,01/05/2018,3012684,Westminster Artisans Ltd,,Public Health,"12,500.00"
3405546,04/04/2018,05/03/2018,3013429,Able 2 Occupational Therapy Services Ltd,,Director of Integrated Commissioning,"27,526.43"
12168406,14/06/2018,06/06/2018,3009775,Headway East London,,Bi-Borough Director of Integrated Care,510
12167800,14/06/2018,25/04/2018,3002278,Ark Home Healthcare Ltd,,Bi-Borough Director of Integrated Care,792
12098241,09/04/2018,22/03/2018,3001804,Respect Care Services Ltd,,Bi-Borough Director of Integrated Care,568
12095695,04/04/2018,01/03/2018,3002278,Ark Home Healthcare Ltd,,Bi-Borough Director of Integrated Care,594
3418117,11/04/2018,05/03/2018,3013812,T & B (Contractors) Ltd,,HRA City West Homes,"289,057.78"
12175110,20/06/2018,19/06/2018,3009775,Headway East London,,Bi-Borough Director of Integrated Care,680
3439216,06/06/2018,29/05/2018,3013437,Brian Thomas Photography,,"Policy, Performance and Communications",690
12167565,13/06/2018,11/04/2018,3002278,Ark Home Healthcare Ltd,,Bi-Borough Director of Integrated Care,594
12134393,14/05/2018,30/04/2018,3001804,Respect Care Services Ltd,,Bi-Borough Director of Integrated Care,840
12101918,10/04/2018,22/03/2018,3001804,Respect Care Services Ltd,,Bi-Borough Director of Integrated Care,825
12166995,13/06/2018,21/05/2018,3001804,Respect Care Services Ltd,,Bi-Borough Director of Integrated Care,540
3417970,04/05/2018,05/04/2018,3013429,Able 2 Occupational Therapy Services Ltd,,Director of Integrated Commissioning,"35,372.17"
12167802,14/06/2018,25/04/2018,3002278,Ark Home Healthcare Ltd,,Bi-Borough Director of Integrated Care,544.5
3420563,17/04/2018,12/04/2018,3013812,T & B (Contractors) Ltd,,HRA City West Homes,"131,555.46"
3427246,03/05/2018,02/05/2018,3013812,T & B (Contractors) Ltd,,HRA City West Homes,"128,166.77"
12134394,14/05/2018,30/04/2018,3001804,Respect Care Services Ltd,,Bi-Borough Director of Integrated Care,"1,680.00"
12101919,10/04/2018,22/03/2018,3001804,Respect Care Services Ltd,,Bi-Borough Director of Integrated Care,"1,680.00"
12166996,13/06/2018,21/05/2018,3001804,Respect Care Services Ltd,,Bi-Borough Director of Integrated Care,"1,680.00"
12160833,07/06/2018,31/05/2018,3001804,Respect Care Services Ltd,,Bi-Borough Director of Integrated Care,568
3429048,01/06/2018,04/05/2018,3013429,Able 2 Occupational Therapy Services Ltd,,Director of Integrated Commissioning,"30,525.65"
12095696,04/04/2018,01/03/2018,3002278,Ark Home Healthcare Ltd,,Bi-Borough Director of Integrated Care,"1,188.00"
12109382,18/04/2018,31/03/2018,3001870,Sweet Tree Home Care Services,,Bi-Borough Director of Integrated Care,743.2
12162977,08/06/2018,18/05/2018,3001870,Sweet Tree Home Care Services,,Bi-Borough Director of Integrated Care,687.46
12175114,20/06/2018,12/06/2018,3001870,Sweet Tree Home Care Services,,Bi-Borough Director of Integrated Care,743.2
12146314,23/05/2018,31/03/2018,3001870,Sweet Tree Home Care Services,,Bi-Borough Director of Integrated Care,743.2
3416508,09/04/2018,13/02/2018,3015067,Abbey Builders Ltd,,Public Protection and Licensing,"8,269.00"
3440321,13/06/2018,01/06/2018,3013812,T & B (Contractors) Ltd,,HRA City West Homes,"68,411.24"
12167566,13/06/2018,11/04/2018,3002278,Ark Home Healthcare Ltd,,Bi-Borough Director of Integrated Care,"1,188.00"
12167803,14/06/2018,25/04/2018,3002278,Ark Home Healthcare Ltd,,Bi-Borough Director of Integrated Care,"1,089.00"
3433088,18/05/2018,13/02/2018,3015067,Abbey Builders Ltd,,Public Protection and Licensing,"6,741.63"
3424023,10/05/2018,10/04/2018,3021755,Maintec Services Ltd,,Schools,"1,542.00"
3434076,30/05/2018,23/03/2018,3003857,Carers Network Westminster Ltd,,Director of Integrated Commissioning,"32,078.67"
12095697,04/04/2018,01/03/2018,3002278,Ark Home Healthcare Ltd,,Bi-Borough Director of Integrated Care,990
3368300,01/05/2018,18/09/2017,3000006,Halfords Ltd,,WCC People Services,833.33
12167567,13/06/2018,11/04/2018,3002278,Ark Home Healthcare Ltd,,Bi-Borough Director of Integrated Care,990
12167804,14/06/2018,25/04/2018,3002278,Ark Home Healthcare Ltd,,Bi-Borough Director of Integrated Care,891
3368829,01/05/2018,02/11/2017,3000006,Halfords Ltd,,WCC People Services,"3,858.33"
3415219,20/04/2018,23/03/2018,3008949,London Underground Ltd,,City Management and Communities,"2,772.00"
3425963,25/05/2018,27/04/2018,3008949,London Underground Ltd,,City Management and Communities,770
3408144,06/04/2018,09/03/2018,3008437,Tfl Surface Transport,,Place Shaping,"71,859.00"
3430086,06/06/2018,09/05/2018,3008437,Tfl Surface Transport,,Highways Infrastructure & Public Realm,"116,034.54"
3430571,07/06/2018,10/05/2018,3008437,Tfl Surface Transport,,City Management and Communities,"5,000.00"
3428135,08/05/2018,16/04/2018,3004692,Calm,,HRA City West Homes,"3,750.00"
3415220,13/04/2018,16/03/2018,3008976,London Buses Services Ltd,,City Management and Communities,"101,102.24"
3415221,16/04/2018,19/03/2018,3008976,London Buses Services Ltd,,City Management and Communities,"11,361.03"
3434187,19/06/2018,20/05/2018,3019967,Blue Sky Training,,Family Services 2,"2,240.00"
3434188,19/06/2018,20/05/2018,3019967,Blue Sky Training,,Family Services 2,"1,800.00"
3434189,19/06/2018,20/05/2018,3019967,Blue Sky Training,,Family Services 2,720
3434186,19/06/2018,20/05/2018,3019967,Blue Sky Training,,Family Services 2,900
3442088,22/06/2018,24/05/2018,3013478,Waterworks Plumbing Services,,Community Services,750
12095661,04/04/2018,01/03/2018,3002278,Ark Home Healthcare Ltd,,Bi-Borough Director of Integrated Care,990
12167569,13/06/2018,11/04/2018,3002278,Ark Home Healthcare Ltd,,Bi-Borough Director of Integrated Care,990
3423946,23/05/2018,23/04/2018,3008524,Chinese National Health Living Centre,,WAES Director (Principal),"5,000.00"
12167806,14/06/2018,25/04/2018,3002278,Ark Home Healthcare Ltd,,Bi-Borough Director of Integrated Care,990
12095664,04/04/2018,01/03/2018,3002278,Ark Home Healthcare Ltd,,Bi-Borough Director of Integrated Care,990
12167572,13/06/2018,11/04/2018,3002278,Ark Home Healthcare Ltd,,Bi-Borough Director of Integrated Care,990
12143307,21/05/2018,09/05/2018,3005450,Camden Chinese Community Centre Ltd,,Bi-Borough Director of Integrated Care,585
12167808,14/06/2018,25/04/2018,3002278,Ark Home Healthcare Ltd,,Bi-Borough Director of Integrated Care,891
3435315,21/06/2018,22/05/2018,3005546,Atkins Ltd,,City Management and Communities,"1,900.00"
3435316,21/06/2018,22/05/2018,3005546,Atkins Ltd,,Highways Infrastructure & Public Realm,"2,900.00"
3435317,21/06/2018,22/05/2018,3005546,Atkins Ltd,,Highways Infrastructure & Public Realm,"1,495.00"
3435313,21/06/2018,22/05/2018,3005546,Atkins Ltd,,Highways Infrastructure & Public Realm,"1,600.00"
12143306,21/05/2018,09/05/2018,3005450,Camden Chinese Community Centre Ltd,,Bi-Borough Director of Integrated Care,"1,050.00"
12143308,21/05/2018,09/05/2018,3005450,Camden Chinese Community Centre Ltd,,Bi-Borough Director of Integrated Care,855
12095665,04/04/2018,01/03/2018,3002278,Ark Home Healthcare Ltd,,Bi-Borough Director of Integrated Care,594
12167573,13/06/2018,11/04/2018,3002278,Ark Home Healthcare Ltd,,Bi-Borough Director of Integrated Care,594
12109879,19/04/2018,17/04/2018,3000919,Wates Living Space,,HRA City West Homes,"2,442.93"
12109879,19/04/2018,17/04/2018,3000919,Wates Living Space,,HRA City West Homes,"2,995.39"
12109879,19/04/2018,17/04/2018,3000919,Wates Living Space,,Housing Operations,511.29
12109879,19/04/2018,17/04/2018,3000919,Wates Living Space,,HRA City West Homes,761.63
12109879,19/04/2018,17/04/2018,3000919,Wates Living Space,,HRA City West Homes,"18,846.98"
3438349,04/06/2018,06/03/2018,3013755,Geofutures Ltd,,Public Protection and Licensing,"9,950.00"
3415163,04/04/2018,02/02/2018,3005443,University College London (Fees Only),,Schools,"2,385.00"
12138689,16/05/2018,15/05/2018,3000919,Wates Living Space,,HRA City West Homes,"124,481.00"
3424238,24/05/2018,24/04/2018,3017731,Quicksilva Ltd,,Director of Finance and Resources,"3,600.00"
3419216,10/05/2018,10/04/2018,3010328,Society Of Chief Librarians,,Tri-borough Libraries and Archives,615
12095667,04/04/2018,01/03/2018,3002278,Ark Home Healthcare Ltd,,Bi-Borough Director of Integrated Care,"1,386.00"
3446168,25/06/2018,30/04/2018,3000672,F.M Conway Ltd,,City Management and Communities,"61,112.00"
3433581,22/05/2018,30/04/2018,3000672,F.M Conway Ltd,,City Management and Communities,"1,010.00"
3433583,30/05/2018,30/04/2018,3000672,F.M Conway Ltd,,City Management and Communities,"122,270.00"
3433573,18/06/2018,30/04/2018,3000672,F.M Conway Ltd,,City Management and Communities,"144,661.00"
12167575,13/06/2018,11/04/2018,3002278,Ark Home Healthcare Ltd,,Bi-Borough Director of Integrated Care,"1,386.00"
12167811,14/06/2018,25/04/2018,3002278,Ark Home Healthcare Ltd,,Bi-Borough Director of Integrated Care,"1,287.00"
12095670,04/04/2018,01/03/2018,3002278,Ark Home Healthcare Ltd,,Bi-Borough Director of Integrated Care,"1,386.00"
12167578,13/06/2018,11/04/2018,3002278,Ark Home Healthcare Ltd,,Bi-Borough Director of Integrated Care,"1,386.00"
12167814,14/06/2018,25/04/2018,3002278,Ark Home Healthcare Ltd,,Bi-Borough Director of Integrated Care,"1,287.00"
3446360,15/06/2018,15/06/2018,3999999,St Peter's Eaton Square,,Chief Executive's Office,740
12095674,04/04/2018,01/03/2018,3002278,Ark Home Healthcare Ltd,,Bi-Borough Director of Integrated Care,"1,188.00"
3446655,21/06/2018,31/05/2018,3000672,F.M Conway Ltd,,City Management and Communities,"5,906.00"
3446658,21/06/2018,31/05/2018,3000672,F.M Conway Ltd,,City Management and Communities,"38,149.20"
3446654,21/06/2018,31/05/2018,3000672,F.M Conway Ltd,,City Management and Communities,"134,133.40"
3446659,21/06/2018,31/05/2018,3000672,F.M Conway Ltd,,City Management and Communities,"61,741.60"
12167582,13/06/2018,11/04/2018,3002278,Ark Home Healthcare Ltd,,Bi-Borough Director of Integrated Care,"1,188.00"
3407808,03/04/2018,06/03/2018,3000374,Sustrans Ltd,,Highways Infrastructure & Public Realm,"10,000.00"
3406646,03/04/2018,06/03/2018,3000374,Sustrans Ltd,,Highways Infrastructure & Public Realm,"5,000.00"
3407792,03/04/2018,06/03/2018,3000374,Sustrans Ltd,,Highways Infrastructure & Public Realm,"5,000.00"
3406647,04/04/2018,07/03/2018,3000374,Sustrans Ltd,,Highways Infrastructure & Public Realm,"4,716.00"
3443296,14/06/2018,15/05/2018,3000070,Windowflowers Ltd,,Housing Operations,"1,602.00"
12167817,14/06/2018,25/04/2018,3002278,Ark Home Healthcare Ltd,,Bi-Borough Director of Integrated Care,"1,138.50"
12095681,04/04/2018,01/03/2018,3002278,Ark Home Healthcare Ltd,,Bi-Borough Director of Integrated Care,"1,386.00"
12134395,14/05/2018,30/04/2018,3001804,Respect Care Services Ltd,,Bi-Borough Director of Integrated Care,"1,005.00"
12101920,10/04/2018,22/03/2018,3001804,Respect Care Services Ltd,,Bi-Borough Director of Integrated Care,"1,005.00"
12166997,13/06/2018,21/05/2018,3001804,Respect Care Services Ltd,,Bi-Borough Director of Integrated Care,"1,005.00"
3447471,22/06/2018,16/03/2018,3000943,Ebsco Information Services,,Tri-borough Libraries and Archives,"1,153.49"
12167589,13/06/2018,11/04/2018,3002278,Ark Home Healthcare Ltd,,Bi-Borough Director of Integrated Care,"1,386.00"
12175057,20/06/2018,27/11/2018,3005391,Pursuing Independent Paths,,Bi-Borough Director of Integrated Care,975.8
12169456,15/06/2018,06/02/2018,3005391,Pursuing Independent Paths,,Bi-Borough Director of Integrated Care,975.8
12169498,15/06/2018,27/03/2018,3005391,Pursuing Independent Paths,,Bi-Borough Director of Integrated Care,975.8
12169372,15/06/2018,24/04/2018,3005391,Pursuing Independent Paths,,Bi-Borough Director of Integrated Care,975.8
12169414,15/06/2018,28/05/2018,3005391,Pursuing Independent Paths,,Bi-Borough Director of Integrated Care,975.8
12161230,15/06/2018,18/05/2018,3000943,Ebsco Information Services,,Tri-borough Libraries and Archives,"6,252.00"
12167823,14/06/2018,25/04/2018,3002278,Ark Home Healthcare Ltd,,Bi-Borough Director of Integrated Care,"1,287.00"
12095682,04/04/2018,01/03/2018,3002278,Ark Home Healthcare Ltd,,Bi-Borough Director of Integrated Care,"1,188.00"
12167590,13/06/2018,11/04/2018,3002278,Ark Home Healthcare Ltd,,Bi-Borough Director of Integrated Care,"1,188.00"
12167824,14/06/2018,25/04/2018,3002278,Ark Home Healthcare Ltd,,Bi-Borough Director of Integrated Care,"1,089.00"
12095683,04/04/2018,01/03/2018,3002278,Ark Home Healthcare Ltd,,Bi-Borough Director of Integrated Care,544.5
12167591,13/06/2018,11/04/2018,3002278,Ark Home Healthcare Ltd,,Bi-Borough Director of Integrated Care,594
12167825,14/06/2018,25/04/2018,3002278,Ark Home Healthcare Ltd,,Bi-Borough Director of Integrated Care,594
12152807,30/05/2018,05/04/2018,3002278,Ark Home Healthcare Ltd,,Bi-Borough Director of Integrated Care,"1,260.00"
12161705,08/06/2018,26/04/2018,3002278,Ark Home Healthcare Ltd,,Bi-Borough Director of Integrated Care,"1,260.00"
12146338,23/05/2018,13/05/2018,3001889,Priory Nursing Agency & Home Care,,Bi-Borough Director of Integrated Care,"1,800.00"
12174056,19/06/2018,10/06/2018,3001889,Priory Nursing Agency & Home Care,,Bi-Borough Director of Integrated Care,"1,800.00"
12131694,09/05/2018,30/09/2017,3000115,Westminster Society,,Bi-Borough Director of Integrated Care,510
12131581,09/05/2018,30/11/2017,3000115,Westminster Society,,Bi-Borough Director of Integrated Care,510
12131695,09/05/2018,30/09/2017,3000115,Westminster Society,,Bi-Borough Director of Integrated Care,510
12131582,09/05/2018,30/11/2017,3000115,Westminster Society,,Bi-Borough Director of Integrated Care,510
12152808,30/05/2018,05/04/2018,3002278,Ark Home Healthcare Ltd,,Bi-Borough Director of Integrated Care,780
12152809,30/05/2018,05/04/2018,3002278,Ark Home Healthcare Ltd,,Bi-Borough Director of Integrated Care,727.5
12152812,30/05/2018,05/04/2018,3002278,Ark Home Healthcare Ltd,,Bi-Borough Director of Integrated Care,780
12161710,08/06/2018,26/04/2018,3002278,Ark Home Healthcare Ltd,,Bi-Borough Director of Integrated Care,817.5
12152813,30/05/2018,05/04/2018,3002278,Ark Home Healthcare Ltd,,Bi-Borough Director of Integrated Care,"1,320.00"
12161711,08/06/2018,26/04/2018,3002278,Ark Home Healthcare Ltd,,Bi-Borough Director of Integrated Care,"1,200.00"
12152814,30/05/2018,05/04/2018,3002278,Ark Home Healthcare Ltd,,Bi-Borough Director of Integrated Care,"1,020.00"
3420808,17/04/2018,28/12/2017,3000672,F.M Conway Ltd,,City Management and Communities,"2,004.00"
12098080,06/04/2018,06/04/2018,3021645,KVL Plumbing Ltd,,HRA City West Homes,"1,741.12"
3408880,06/04/2018,08/03/2018,3020649,Niblock Builders Ltd,,HRA City West Homes,"9,350.57"
3415497,18/04/2018,19/03/2018,3020649,Niblock Builders Ltd,,HRA City West Homes,"27,110.15"
3445983,18/06/2018,11/05/2018,3020649,Niblock Builders Ltd,,HRA City West Homes,"19,429.20"
12175058,20/06/2018,27/11/2018,3005391,Pursuing Independent Paths,,Bi-Borough Director of Integrated Care,"1,170.95"
12169457,15/06/2018,06/02/2018,3005391,Pursuing Independent Paths,,Bi-Borough Director of Integrated Care,"1,170.96"
12169499,15/06/2018,27/03/2018,3005391,Pursuing Independent Paths,,Bi-Borough Director of Integrated Care,"1,170.96"
12169373,15/06/2018,24/04/2018,3005391,Pursuing Independent Paths,,Bi-Borough Director of Integrated Care,"1,170.96"
12169415,15/06/2018,28/05/2018,3005391,Pursuing Independent Paths,,Bi-Borough Director of Integrated Care,"1,170.96"
3426928,03/05/2018,15/02/2018,3023616,ITSLearning Uk Limited,,Schools,"1,925.00"
3408952,03/04/2018,29/12/2017,3000672,F.M Conway Ltd,,Highways Infrastructure & Public Realm,"1,430.57"
3417217,10/04/2018,29/12/2017,3000672,F.M Conway Ltd,,Highways Infrastructure & Public Realm,"50,847.20"
3424154,04/05/2018,29/12/2017,3000672,F.M Conway Ltd,,City Management and Communities,"15,038.00"
12134396,14/05/2018,30/04/2018,3001804,Respect Care Services Ltd,,Bi-Borough Director of Integrated Care,562.5
12101921,10/04/2018,22/03/2018,3001804,Respect Care Services Ltd,,Bi-Borough Director of Integrated Care,690
3434192,15/06/2018,18/05/2018,3022918,Personal detail - redacted,,Schools,"1,650.00"
3420807,20/04/2018,02/01/2018,3000672,F.M Conway Ltd,,Highways Infrastructure & Public Realm,"26,383.08"
12131584,09/05/2018,30/11/2017,3000115,Westminster Society,,Bi-Borough Director of Integrated Care,"2,210.00"
12131633,09/05/2018,31/12/2017,3000115,Westminster Society,,Bi-Borough Director of Integrated Care,"1,904.00"
12131760,09/05/2018,28/01/2018,3000115,Westminster Society,,Bi-Borough Director of Integrated Care,"1,768.00"
12172393,18/06/2018,31/03/2018,3000115,Westminster Society,,Bi-Borough Director of Integrated Care,"1,768.00"
3417412,04/05/2018,05/04/2018,3009060,Welfare Call (Looked After Children) Ltd,,Family Services 1,"8,225.10"
3450849,27/06/2018,20/04/2018,3002024,Jcm Seating Solutions Ltd,,Family Services 2,"3,416.00"
12161712,08/06/2018,26/04/2018,3002278,Ark Home Healthcare Ltd,,Bi-Borough Director of Integrated Care,862.5
3427119,03/05/2018,01/05/2018,3011213,A J Bush Ltd,,Housing Operations,"26,902.00"
3427113,03/05/2018,26/04/2018,3011231,Branch Co Ltd,,Housing Operations,"2,790.00"
3427113,03/05/2018,26/04/2018,3011231,Branch Co Ltd,,Housing Operations,"42,990.00"
3391494,16/04/2018,30/01/2018,3000672,F.M Conway Ltd,,City Management and Communities,"29,647.00"
12152815,30/05/2018,05/04/2018,3002278,Ark Home Healthcare Ltd,,Bi-Borough Director of Integrated Care,"1,860.00"
12152816,30/05/2018,05/04/2018,3002278,Ark Home Healthcare Ltd,,Bi-Borough Director of Integrated Care,930
12161713,08/06/2018,26/04/2018,3002278,Ark Home Healthcare Ltd,,Bi-Borough Director of Integrated Care,930
12152817,30/05/2018,05/04/2018,3002278,Ark Home Healthcare Ltd,,Bi-Borough Director of Integrated Care,720
12161714,08/06/2018,26/04/2018,3002278,Ark Home Healthcare Ltd,,Bi-Borough Director of Integrated Care,735
12152818,30/05/2018,05/04/2018,3002278,Ark Home Healthcare Ltd,,Bi-Borough Director of Integrated Care,720
3416809,06/04/2018,31/12/2017,3012214,Dwf Llp,,Property Investments and Estates,718.5
3419378,12/04/2018,24/01/2018,3000672,F.M Conway Ltd,,City Management and Communities,"5,664.00"
3440566,11/06/2018,04/06/2018,3011231,Branch Co Ltd,,Housing Operations,"44,166.00"
3440566,11/06/2018,04/06/2018,3011231,Branch Co Ltd,,Housing Operations,"4,290.00"
3440574,05/06/2018,04/06/2018,3011213,A J Bush Ltd,,Housing Operations,"45,925.00"
3416810,11/04/2018,31/01/2018,3012214,Dwf Llp,,Property Investments and Estates,"1,468.50"
3416520,11/04/2018,31/01/2018,3012214,Dwf Llp,,Property Investments and Estates,"3,951.00"
3410045,09/04/2018,31/01/2018,3006866,London Euro Developments Ltd,,Bi-Borough Director of Integrated Care,"1,610.14"
3425320,09/05/2018,30/01/2018,3000672,F.M Conway Ltd,,City Management and Communities,"1,132.91"
3433574,31/05/2018,30/01/2018,3000672,F.M Conway Ltd,,City Management and Communities,991.06
3417218,10/04/2018,30/01/2018,3000672,F.M Conway Ltd,,Highways Infrastructure & Public Realm,"55,659.81"
3430036,14/05/2018,31/01/2018,3000672,F.M Conway Ltd,,City Management and Communities,"33,776.00"
12161715,08/06/2018,26/04/2018,3002278,Ark Home Healthcare Ltd,,Bi-Borough Director of Integrated Care,705
12152820,30/05/2018,05/04/2018,3002278,Ark Home Healthcare Ltd,,Bi-Borough Director of Integrated Care,720
12152822,30/05/2018,05/04/2018,3002278,Ark Home Healthcare Ltd,,Bi-Borough Director of Integrated Care,660
3422484,11/05/2018,11/04/2018,3001635,Home Connections Lettings Ltd,,Housing Operations,"1,000.00"
3422484,11/05/2018,11/04/2018,3001635,Home Connections Lettings Ltd,,Housing Operations,"2,250.00"
3416811,12/04/2018,28/02/2018,3012214,Dwf Llp,,Property Investments and Estates,"1,774.00"
3416812,12/04/2018,28/02/2018,3012214,Dwf Llp,,Property Investments and Estates,841
3416813,12/04/2018,28/02/2018,3012214,Dwf Llp,,Property Investments and Estates,"2,311.25"
3416814,17/04/2018,28/02/2018,3012214,Dwf Llp,,Property Investments and Estates,"12,703.04"
3416509,09/04/2018,06/03/2018,3015067,Abbey Builders Ltd,,Public Protection and Licensing,"12,000.86"
3421816,11/05/2018,11/04/2018,3006866,London Euro Developments Ltd,,Bi-Borough Director of Integrated Care,"1,380.12"
3410088,13/04/2018,14/03/2018,3012214,Dwf Llp,,Property Investments and Estates,"3,015.80"
3416518,25/04/2018,26/03/2018,3012214,Dwf Llp,,Property Investments and Estates,"2,500.00"
3416519,27/04/2018,28/03/2018,3012214,Dwf Llp,,Property Investments and Estates,"1,750.00"
3416815,27/04/2018,28/03/2018,3012214,Dwf Llp,,Property Investments and Estates,"2,014.55"
12161719,08/06/2018,26/04/2018,3002278,Ark Home Healthcare Ltd,,Bi-Borough Director of Integrated Care,637.5
3419797,30/04/2018,31/03/2018,3012214,Dwf Llp,,Property Investments and Estates,"2,327.25"
12152823,30/05/2018,05/04/2018,3002278,Ark Home Healthcare Ltd,,Bi-Borough Director of Integrated Care,735
3419229,30/04/2018,31/03/2018,3012214,Dwf Llp,,HRA City West Homes,"6,058.38"
3419806,04/05/2018,06/04/2018,3012214,Dwf Llp,,Property Investments and Estates,"1,253.00"
3419794,09/05/2018,09/04/2018,3012214,Dwf Llp,,Property Investments and Estates,"4,329.25"
3419795,10/05/2018,10/04/2018,3012214,Dwf Llp,,Property Investments and Estates,718.59
3421574,11/05/2018,11/04/2018,3012214,Dwf Llp,,Property Investments and Estates,"2,013.00"
3422005,16/05/2018,16/04/2018,3012214,Dwf Llp,,Property Investments and Estates,864.5
3423515,17/05/2018,17/04/2018,3012214,Dwf Llp,,Property Investments and Estates,"2,307.00"
3423516,18/05/2018,18/04/2018,3012214,Dwf Llp,,Property Investments and Estates,"1,560.55"
12152824,30/05/2018,05/04/2018,3002278,Ark Home Healthcare Ltd,,Bi-Borough Director of Integrated Care,555
12161721,08/06/2018,26/04/2018,3002278,Ark Home Healthcare Ltd,,Bi-Borough Director of Integrated Care,570
3423517,18/05/2018,20/04/2018,3012214,Dwf Llp,,HRA City West Homes,"1,906.00"
12152826,30/05/2018,05/04/2018,3002278,Ark Home Healthcare Ltd,,Bi-Borough Director of Integrated Care,697.5
12152827,30/05/2018,05/04/2018,3002278,Ark Home Healthcare Ltd,,Bi-Borough Director of Integrated Care,630
12095685,04/04/2018,01/03/2018,3002278,Ark Home Healthcare Ltd,,Bi-Borough Director of Integrated Care,990
12167593,13/06/2018,11/04/2018,3002278,Ark Home Healthcare Ltd,,Bi-Borough Director of Integrated Care,990
12167827,14/06/2018,25/04/2018,3002278,Ark Home Healthcare Ltd,,Bi-Borough Director of Integrated Care,891
12095688,04/04/2018,01/03/2018,3002278,Ark Home Healthcare Ltd,,Bi-Borough Director of Integrated Care,"1,995.00"
12167595,13/06/2018,11/04/2018,3002278,Ark Home Healthcare Ltd,,Bi-Borough Director of Integrated Care,"1,957.50"
3427502,23/05/2018,23/04/2018,3001635,Home Connections Lettings Ltd,,Housing Operations,"39,270.00"
3432912,21/05/2018,29/01/2018,3011752,International Teacher Recruitment Ltd,,Schools,624
3416547,09/04/2018,27/02/2018,3011752,International Teacher Recruitment Ltd,,Schools,624
3416538,09/04/2018,06/03/2018,3011752,International Teacher Recruitment Ltd,,Schools,624
3416546,11/04/2018,12/03/2018,3011752,International Teacher Recruitment Ltd,,Schools,624
3416536,18/04/2018,19/03/2018,3011752,International Teacher Recruitment Ltd,,Schools,832
3416537,25/04/2018,26/03/2018,3011752,International Teacher Recruitment Ltd,,Schools,624
3432911,21/05/2018,16/04/2018,3011752,International Teacher Recruitment Ltd,,Schools,624
3432910,21/05/2018,16/04/2018,3011752,International Teacher Recruitment Ltd,,Schools,832
3428040,23/05/2018,23/04/2018,3011752,International Teacher Recruitment Ltd,,Schools,624
3429169,30/05/2018,30/04/2018,3011752,International Teacher Recruitment Ltd,,Schools,624
3432432,08/06/2018,09/05/2018,3011752,International Teacher Recruitment Ltd,,Schools,624
3432909,14/06/2018,15/05/2018,3011752,International Teacher Recruitment Ltd,,Schools,624
3437164,21/06/2018,22/05/2018,3011752,International Teacher Recruitment Ltd,,Schools,832
12102467,11/04/2018,18/03/2018,3001875,Health Vision Uk,,Bi-Borough Director of Integrated Care,"4,200.00"
12116498,26/04/2018,15/04/2018,3001875,Health Vision Uk,,Bi-Borough Director of Integrated Care,"4,200.00"
12157726,01/06/2018,13/05/2018,3001875,Health Vision Uk,,Bi-Borough Director of Integrated Care,"4,200.00"
12177770,22/06/2018,15/06/2018,3001875,Health Vision Uk,,Bi-Borough Director of Integrated Care,"4,200.00"
12134397,14/05/2018,30/04/2018,3001804,Respect Care Services Ltd,,Bi-Borough Director of Integrated Care,"1,260.00"
12101922,10/04/2018,22/03/2018,3001804,Respect Care Services Ltd,,Bi-Borough Director of Integrated Care,"1,260.00"
12166999,13/06/2018,21/05/2018,3001804,Respect Care Services Ltd,,Bi-Borough Director of Integrated Care,"1,260.00"
3427503,24/05/2018,24/04/2018,3001635,Home Connections Lettings Ltd,,Housing Operations,"10,000.00"
3451956,29/06/2018,29/05/2018,3012214,Dwf Llp,,Revenues and Benefits,710
3420685,18/04/2018,13/03/2018,3015067,Abbey Builders Ltd,,Public Protection and Licensing,"9,265.00"
12167829,14/06/2018,25/04/2018,3002278,Ark Home Healthcare Ltd,,Bi-Borough Director of Integrated Care,"1,837.50"
12095698,04/04/2018,01/03/2018,3002278,Ark Home Healthcare Ltd,,Bi-Borough Director of Integrated Care,594
12167599,13/06/2018,11/04/2018,3002278,Ark Home Healthcare Ltd,,Bi-Borough Director of Integrated Care,594
12167833,14/06/2018,25/04/2018,3002278,Ark Home Healthcare Ltd,,Bi-Borough Director of Integrated Care,594
12095701,04/04/2018,01/03/2018,3002278,Ark Home Healthcare Ltd,,Bi-Borough Director of Integrated Care,594
12167602,13/06/2018,11/04/2018,3002278,Ark Home Healthcare Ltd,,Bi-Borough Director of Integrated Care,594
12167836,14/06/2018,25/04/2018,3002278,Ark Home Healthcare Ltd,,Bi-Borough Director of Integrated Care,594
12175059,20/06/2018,27/11/2018,3005391,Pursuing Independent Paths,,Bi-Borough Director of Integrated Care,"1,170.96"
12169458,15/06/2018,06/02/2018,3005391,Pursuing Independent Paths,,Bi-Borough Director of Integrated Care,"1,170.96"
12169500,15/06/2018,27/03/2018,3005391,Pursuing Independent Paths,,Bi-Borough Director of Integrated Care,"1,170.96"
12169374,15/06/2018,24/04/2018,3005391,Pursuing Independent Paths,,Bi-Borough Director of Integrated Care,"1,170.96"
12169416,15/06/2018,28/05/2018,3005391,Pursuing Independent Paths,,Bi-Borough Director of Integrated Care,"1,170.96"
3402107,09/04/2018,21/02/2018,3000672,F.M Conway Ltd,,City Management and Communities,"10,056.00"
12095703,04/04/2018,01/03/2018,3002278,Ark Home Healthcare Ltd,,Bi-Borough Director of Integrated Care,792
12167604,13/06/2018,11/04/2018,3002278,Ark Home Healthcare Ltd,,Bi-Borough Director of Integrated Care,792
3433575,26/06/2018,27/02/2018,3000672,F.M Conway Ltd,,City Management and Communities,"40,289.85"
3420628,04/05/2018,27/02/2018,3000672,F.M Conway Ltd,,City Management and Communities,685.49
3420631,30/04/2018,27/02/2018,3000672,F.M Conway Ltd,,Highways Infrastructure & Public Realm,"6,011.10"
3420686,18/04/2018,14/03/2018,3015067,Abbey Builders Ltd,,Public Protection and Licensing,600
12175060,20/06/2018,27/11/2018,3005391,Pursuing Independent Paths,,Bi-Borough Director of Integrated Care,975.44
12169459,15/06/2018,06/02/2018,3005391,Pursuing Independent Paths,,Bi-Borough Director of Integrated Care,975.4
12169501,15/06/2018,27/03/2018,3005391,Pursuing Independent Paths,,Bi-Borough Director of Integrated Care,975.4
12169375,15/06/2018,24/04/2018,3005391,Pursuing Independent Paths,,Bi-Borough Director of Integrated Care,975.4
12169417,15/06/2018,28/05/2018,3005391,Pursuing Independent Paths,,Bi-Borough Director of Integrated Care,975.4
3420632,04/05/2018,27/02/2018,3000672,F.M Conway Ltd,,City Management and Communities,"2,467.45"
12175061,20/06/2018,27/11/2018,3005391,Pursuing Independent Paths,,Bi-Borough Director of Integrated Care,"1,170.96"
12169460,15/06/2018,06/02/2018,3005391,Pursuing Independent Paths,,Bi-Borough Director of Integrated Care,"1,170.96"
12169502,15/06/2018,27/03/2018,3005391,Pursuing Independent Paths,,Bi-Borough Director of Integrated Care,"1,170.96"
12169376,15/06/2018,24/04/2018,3005391,Pursuing Independent Paths,,Bi-Borough Director of Integrated Care,"1,170.96"
12169418,15/06/2018,28/05/2018,3005391,Pursuing Independent Paths,,Bi-Borough Director of Integrated Care,"1,170.96"
3414926,16/04/2018,16/02/2018,3000672,F.M Conway Ltd,,City Management and Communities,"5,846.00"
3414931,16/04/2018,16/02/2018,3000672,F.M Conway Ltd,,City Management and Communities,631
3414932,16/04/2018,16/02/2018,3000672,F.M Conway Ltd,,City Management and Communities,845
3414934,20/04/2018,16/02/2018,3000672,F.M Conway Ltd,,City Management and Communities,"4,225.00"
3419380,20/04/2018,16/02/2018,3000672,F.M Conway Ltd,,City Management and Communities,680
3419381,20/04/2018,16/02/2018,3000672,F.M Conway Ltd,,City Management and Communities,"3,964.00"
3419382,16/04/2018,16/02/2018,3000672,F.M Conway Ltd,,City Management and Communities,"5,576.00"
12131585,09/05/2018,30/11/2017,3000115,Westminster Society,,Bi-Borough Director of Integrated Care,"1,700.00"
12131634,09/05/2018,31/12/2017,3000115,Westminster Society,,Bi-Borough Director of Integrated Care,"1,360.00"
12131758,09/05/2018,28/01/2018,3000115,Westminster Society,,Bi-Borough Director of Integrated Care,"1,360.00"
12172394,18/06/2018,31/03/2018,3000115,Westminster Society,,Bi-Borough Director of Integrated Care,"1,360.00"
12167838,14/06/2018,25/04/2018,3002278,Ark Home Healthcare Ltd,,Bi-Borough Director of Integrated Care,792
12167865,14/06/2018,30/04/2018,3000115,Westminster Society,,Bi-Borough Director of Integrated Care,816
3407782,04/04/2018,07/03/2018,3000672,F.M Conway Ltd,,Parking,905
3410504,03/04/2018,23/11/2017,3028706,Cambridge Green Solutions Ltd,,Property Investments and Estates,"2,590.00"
12095704,04/04/2018,01/03/2018,3002278,Ark Home Healthcare Ltd,,Bi-Borough Director of Integrated Care,594
3420764,17/04/2018,24/02/2018,3002990,Caxton Youth Organisation,,Children's Services Commissioning,"22,300.00"
12095708,04/04/2018,01/03/2018,3002278,Ark Home Healthcare Ltd,,Director of Integrated Commissioning,594
12152831,30/05/2018,05/04/2018,3002278,Ark Home Healthcare Ltd,,Bi-Borough Director of Integrated Care,787.5
3427766,01/06/2018,02/05/2018,3022859,Crompton Medical Centre,,Public Health,"2,000.00"
12161727,08/06/2018,26/04/2018,3002278,Ark Home Healthcare Ltd,,Bi-Borough Director of Integrated Care,945
12152833,30/05/2018,05/04/2018,3002278,Ark Home Healthcare Ltd,,Bi-Borough Director of Integrated Care,750
3403039,23/04/2018,28/02/2018,3002880,Central London Community Healthcare,,Public Health,"17,425.00"
3410440,06/04/2018,09/03/2018,3002880,Central London Community Healthcare,,Public Health,"1,091.10"
3410444,12/04/2018,15/03/2018,3002880,Central London Community Healthcare,,Public Health,"17,425.00"
3410434,12/04/2018,15/03/2018,3002880,Central London Community Healthcare,,Public Health,"43,595.00"
3410435,12/04/2018,15/03/2018,3002880,Central London Community Healthcare,,Director of Integrated Commissioning,"91,298.00"
3410436,12/04/2018,15/03/2018,3002880,Central London Community Healthcare,,Public Health,"287,651.00"
3410437,12/04/2018,15/03/2018,3002880,Central London Community Healthcare,,Public Health,"9,899.00"
3427067,21/05/2018,23/04/2018,3002880,Central London Community Healthcare,,Schools,"2,340.00"
3428487,21/05/2018,23/04/2018,3002880,Central London Community Healthcare,,Schools,"13,130.00"
3425096,25/05/2018,30/04/2018,3002880,Central London Community Healthcare,,Public Health,"43,583.00"
3425097,25/05/2018,30/04/2018,3002880,Central London Community Healthcare,,Director of Integrated Commissioning,"91,298.00"
3439350,28/06/2018,31/05/2018,3002880,Central London Community Healthcare,,Public Health,"43,583.00"
3439358,28/06/2018,31/05/2018,3002880,Central London Community Healthcare,,Director of Integrated Commissioning,"91,298.00"
3439351,28/06/2018,31/05/2018,3002880,Central London Community Healthcare,,Public Health,"575,303.01"
3439359,28/06/2018,31/05/2018,3002880,Central London Community Healthcare,,Public Health,"19,798.00"
12095711,04/04/2018,01/03/2018,3002278,Ark Home Healthcare Ltd,,Bi-Borough Director of Integrated Care,594
3420704,26/04/2018,21/08/2017,3011133,University Of London,,Bi-Borough Director of Integrated Care,"1,412.03"
3416904,06/04/2018,20/09/2017,3027568,CoSector Limited,,TB Information Services and Strategy,"3,063.33"
3418244,26/04/2018,21/02/2018,3027568,CoSector Limited,,TB Information Services and Strategy,"2,892.37"
3418245,26/04/2018,05/03/2018,3027568,CoSector Limited,,TB Information Services and Strategy,"1,652.78"
3420712,16/04/2018,13/03/2018,3011133,University Of London,,Bi-Borough Director of Integrated Care,"1,003.24"
3416795,04/05/2018,04/04/2018,3011133,University Of London,,Family Services 2,"1,773.85"
3427784,08/05/2018,04/04/2018,3027568,CoSector Limited,,Bi-Borough Director of Integrated Care,"2,006.48"
3418248,04/05/2018,04/04/2018,3027568,CoSector Limited,,TB Information Services and Strategy,"1,652.78"
12167612,13/06/2018,11/04/2018,3002278,Ark Home Healthcare Ltd,,Bi-Borough Director of Integrated Care,594
3431559,13/06/2018,14/05/2018,3027568,CoSector Limited,,Bi-Borough Director of Integrated Care,"2,020.76"
3432550,04/06/2018,14/05/2018,3000672,F.M Conway Ltd,,City Management and Communities,"1,665.38"
3439587,29/06/2018,31/05/2018,3027568,CoSector Limited,,Bi-Borough Director of Integrated Care,"1,940.76"
3439600,29/06/2018,31/05/2018,3027568,CoSector Limited,,TB Information Services and Strategy,747.07
3439586,29/06/2018,31/05/2018,3027568,CoSector Limited,,TB Information Services and Strategy,"1,695.38"
3415585,04/04/2018,28/02/2018,3028772,Data Collection & Analysis (Monisyst) Ltd,,City Management and Communities,"1,530.00"
3415586,14/06/2018,06/03/2018,3028772,Data Collection & Analysis (Monisyst) Ltd,,City Management and Communities,"11,050.00"
3415657,20/04/2018,23/03/2018,3028772,Data Collection & Analysis (Monisyst) Ltd,,City Management and Communities,"5,000.00"
